Publisher Label,Publisher URI,"Directorate code","Directorate","Service code","Service","Revenue or capital code","Revenue capital","Cost centre","Cost centre description","Bvsub Category","Bvsub description","Bvsum code","Bvsum description","Account code","Account description","Transaction No","Period","Transaction Date","Amount","Classification code","Classification description","Supplier ID","Supplier description","Company registration number","Company registration number Uri","VAT registration number"
"London Borough of Redbridge","http://opendatacommunities.org/doc/london-borough-council/redbridge","6BSOCIALSERV","Social Services","6CCHILLOOKED","Children Looked After","REV","Revenue","R2140","CQ and F - Safeguarding and Care Planning Soc Care","01-EMPLOYEES","Employees","01A","Direct employee expenses","4","Agency Staff - Pay","3713732","202307",26/10/2022 00:00:00,1708.58,"31230","Employment and Recruitment Agencies","REDACTED DATA","MATRIX SCM LTD","2227962","http://opencorporates.com/companies/gb/2227962","249573468"
"London Borough of Redbridge","http://opendatacommunities.org/doc/london-borough-council/redbridge","6BSOCIALSERV","Social Services","6CCHILLOOKED","Children Looked After","REV","Revenue","R2158","CSW Service","01-EMPLOYEES","Employees","01A","Direct employee expenses","4","Agency Staff - Pay","3713732","202307",26/10/2022 00:00:00,1625.75,"31230","Employment and Recruitment Agencies","REDACTED DATA","MATRIX SCM LTD","2227962","http://opencorporates.com/companies/gb/2227962","249573468"
"London Borough of Redbridge","http://opendatacommunities.org/doc/london-borough-council/redbridge","6BSOCIALSERV","Social Services","6CCHILLOOKED","Children Looked After","REV","Revenue","R2158","CSW Service","01-EMPLOYEES","Employees","01A","Direct employee expenses","4","Agency Staff - Pay","3713732","202307",26/10/2022 00:00:00,1453.2,"31230","Employment and Recruitment Agencies","REDACTED DATA","MATRIX SCM LTD","2227962","http://opencorporates.com/companies/gb/2227962","249573468"
"London Borough of Redbridge","http://opendatacommunities.org/doc/london-borough-council/redbridge","6BSOCIALSERV","Social Services","6CCHILLOOKED","Children Looked After","REV","Revenue","R2158","CSW Service","01-EMPLOYEES","Employees","01A","Direct employee expenses","4","Agency Staff - Pay","3713732","202307",26/10/2022 00:00:00,1452.85,"31230","Employment and Recruitment Agencies","REDACTED DATA","MATRIX SCM LTD","2227962","http://opencorporates.com/companies/gb/2227962","249573468"
"London Borough of Redbridge","http://opendatacommunities.org/doc/london-borough-council/redbridge","6BSOCIALSERV","Social Services","6CCHILLOOKED","Children Looked After","REV","Revenue","R2164","F&A - Contact","01-EMPLOYEES","Employees","01A","Direct employee expenses","4","Agency Staff - Pay","3713732","202307",26/10/2022 00:00:00,635.12,"31230","Employment and Recruitment Agencies","REDACTED DATA","MATRIX SCM LTD","2227962","http://opencorporates.com/companies/gb/2227962","249573468"
"London Borough of Redbridge","http://opendatacommunities.org/doc/london-borough-council/redbridge","6BSOCIALSERV","Social Services","6CCHILLOOKED","Children Looked After","REV","Revenue","R2166","Child Protection Assmt Service Soc Care","01-EMPLOYEES","Employees","01A","Direct employee expenses","4","Agency Staff - Pay","3713732","202307",26/10/2022 00:00:00,697.62,"31230","Employment and Recruitment Agencies","REDACTED DATA","MATRIX SCM LTD","2227962","http://opencorporates.com/companies/gb/2227962","249573468"
"London Borough of Redbridge","http://opendatacommunities.org/doc/london-borough-council/redbridge","6BSOCIALSERV","Social Services","6CCHILLOOKED","Children Looked After","REV","Revenue","R2178","Early Intervention & Family Support Service","01-EMPLOYEES","Employees","01A","Direct employee expenses","4","Agency Staff - Pay","3713732","202307",26/10/2022 00:00:00,936,"31230","Employment and Recruitment Agencies","REDACTED DATA","MATRIX SCM LTD","2227962","http://opencorporates.com/companies/gb/2227962","249573468"
"London Borough of Redbridge","http://opendatacommunities.org/doc/london-borough-council/redbridge","6BSOCIALSERV","Social Services","6CCHILLOOKED","Children Looked After","REV","Revenue","R2178","Early Intervention & Family Support Service","01-EMPLOYEES","Employees","01A","Direct employee expenses","4","Agency Staff - Pay","3713732","202307",26/10/2022 00:00:00,364,"31230","Employment and Recruitment Agencies","REDACTED DATA","MATRIX SCM LTD","2227962","http://opencorporates.com/companies/gb/2227962","249573468"
"London Borough of Redbridge","http://opendatacommunities.org/doc/london-borough-council/redbridge","6BSOCIALSERV","Social Services","6COTHC&FSERV","Other Children's & Families' Services","REV","Revenue","R2123","LAC Service","01-EMPLOYEES","Employees","01A","Direct employee expenses","4","Agency Staff - Pay","3713732","202307",26/10/2022 00:00:00,1453.2,"31230","Employment and Recruitment Agencies","REDACTED DATA","MATRIX SCM LTD","2227962","http://opencorporates.com/companies/gb/2227962","249573468"
"London Borough of Redbridge","http://opendatacommunities.org/doc/london-borough-council/redbridge","6BSOCIALSERV","Social Services","6COTHC&FSERV","Other Children's & Families' Services","REV","Revenue","R2123","LAC Service","01-EMPLOYEES","Employees","01A","Direct employee expenses","4","Agency Staff - Pay","3713732","202307",26/10/2022 00:00:00,32.85,"31230","Employment and Recruitment Agencies","REDACTED DATA","MATRIX SCM LTD","2227962","http://opencorporates.com/companies/gb/2227962","249573468"
"London Borough of Redbridge","http://opendatacommunities.org/doc/london-borough-council/redbridge","6BSOCIALSERV","Social Services","6COTHC&FSERV","Other Children's & Families' Services","REV","Revenue","R2123","LAC Service","01-EMPLOYEES","Employees","01A","Direct employee expenses","4","Agency Staff - Pay","3713732","202307",26/10/2022 00:00:00,1154.44,"31230","Employment and Recruitment Agencies","REDACTED DATA","MATRIX SCM LTD","2227962","http://opencorporates.com/companies/gb/2227962","249573468"
"London Borough of Redbridge","http://opendatacommunities.org/doc/london-borough-council/redbridge","6BSOCIALSERV","Social Services","6COTHC&FSERV","Other Children's & Families' Services","REV","Revenue","R2123","LAC Service","01-EMPLOYEES","Employees","01A","Direct employee expenses","4","Agency Staff - Pay","3713732","202307",26/10/2022 00:00:00,1356.12,"31230","Employment and Recruitment Agencies","REDACTED DATA","MATRIX SCM LTD","2227962","http://opencorporates.com/companies/gb/2227962","249573468"
"London Borough of Redbridge","http://opendatacommunities.org/doc/london-borough-council/redbridge","9BNONBVO","Outside the BVACOP Objective Structure","9CNONBVO","Outside the BVACOP Objective Structure","REV","Revenue","R0026","Collection Fund","05-THIRD","Third Party Payments","05E","Government departments","6752","GLA Council Tax � Precepts","60502050","202307",01/10/2022 00:00:00,3597793.51,"48583","Local Government","REDACTED DATA","GREATER LONDON AUTHORITY","",,"GB743811731"
"London Borough of Redbridge","http://opendatacommunities.org/doc/london-borough-council/redbridge","5BGFHOUSING","General Fund Housing","5CHOMELESS","Homelessness","REV","Revenue","R5630","HAC Temporary Accomodation","05-THIRD","Third Party Payments","05H","Private contractors","6900","Nightly Let Plus Charges","3710081","202307",02/10/2022 00:00:00,1380,"31230","Employment and Recruitment Agencies","REDACTED DATA","ACCESS UK LTD T/AS ADAM","2343760","http://opencorporates.com/companies/gb/2343760","GB 108 2213 56"
"London Borough of Redbridge","http://opendatacommunities.org/doc/london-borough-council/redbridge","5BGFHOUSING","General Fund Housing","5CHOMELESS","Homelessness","REV","Revenue","R5630","HAC Temporary Accomodation","05-THIRD","Third Party Payments","05H","Private contractors","6900","Nightly Let Plus Charges","3710081","202307",02/10/2022 00:00:00,0,"31230","Employment and Recruitment Agencies","REDACTED DATA","ACCESS UK LTD T/AS ADAM","2343760","http://opencorporates.com/companies/gb/2343760","GB 108 2213 56"
"London Borough of Redbridge","http://opendatacommunities.org/doc/london-borough-council/redbridge","5BGFHOUSING","General Fund Housing","5CHOMELESS","Homelessness","REV","Revenue","R5630","HAC Temporary Accomodation","05-THIRD","Third Party Payments","05H","Private contractors","6900","Nightly Let Plus Charges","3710081","202307",02/10/2022 00:00:00,855,"31230","Employment and Recruitment Agencies","REDACTED DATA","ACCESS UK LTD T/AS ADAM","2343760","http://opencorporates.com/companies/gb/2343760","GB 108 2213 56"
"London Borough of Redbridge","http://opendatacommunities.org/doc/london-borough-council/redbridge","5BGFHOUSING","General Fund Housing","5CHOMELESS","Homelessness","REV","Revenue","R5630","HAC Temporary Accomodation","05-THIRD","Third Party Payments","05H","Private contractors","6900","Nightly Let Plus Charges","3710081","202307",02/10/2022 00:00:00,0,"31230","Employment and Recruitment Agencies","REDACTED DATA","ACCESS UK LTD T/AS ADAM","2343760","http://opencorporates.com/companies/gb/2343760","GB 108 2213 56"
"London Borough of Redbridge","http://opendatacommunities.org/doc/london-borough-council/redbridge","5BGFHOUSING","General Fund Housing","5CHOMELESS","Homelessness","REV","Revenue","R5630","HAC Temporary Accomodation","05-THIRD","Third Party Payments","05H","Private contractors","6900","Nightly Let Plus Charges","3710081","202307",02/10/2022 00:00:00,1260,"31230","Employment and Recruitment Agencies","REDACTED DATA","ACCESS UK LTD T/AS ADAM","2343760","http://opencorporates.com/companies/gb/2343760","GB 108 2213 56"
"London Borough of Redbridge","http://opendatacommunities.org/doc/london-borough-council/redbridge","5BGFHOUSING","General Fund Housing","5CHOMELESS","Homelessness","REV","Revenue","R5630","HAC Temporary Accomodation","05-THIRD","Third Party Payments","05H","Private contractors","6900","Nightly Let Plus Charges","3710081","202307",02/10/2022 00:00:00,0,"31230","Employment and Recruitment Agencies","REDACTED DATA","ACCESS UK LTD T/AS ADAM","2343760","http://opencorporates.com/companies/gb/2343760","GB 108 2213 56"
"London Borough of Redbridge","http://opendatacommunities.org/doc/london-borough-council/redbridge","5BGFHOUSING","General Fund Housing","5CHOMELESS","Homelessness","REV","Revenue","R5630","HAC Temporary Accomodation","05-THIRD","Third Party Payments","05H","Private contractors","6900","Nightly Let Plus Charges","3710081","202307",02/10/2022 00:00:00,0,"31230","Employment and Recruitment Agencies","REDACTED DATA","ACCESS UK LTD T/AS ADAM","2343760","http://opencorporates.com/companies/gb/2343760","GB 108 2213 56"
"London Borough of Redbridge","http://opendatacommunities.org/doc/london-borough-council/redbridge","5BGFHOUSING","General Fund Housing","5CHOMELESS","Homelessness","REV","Revenue","R5630","HAC Temporary Accomodation","05-THIRD","Third Party Payments","05H","Private contractors","6900","Nightly Let Plus Charges","3710081","202307",02/10/2022 00:00:00,0,"31230","Employment and Recruitment Agencies","REDACTED DATA","ACCESS UK LTD T/AS ADAM","2343760","http://opencorporates.com/companies/gb/2343760","GB 108 2213 56"
"London Borough of Redbridge","http://opendatacommunities.org/doc/london-borough-council/redbridge","5BGFHOUSING","General Fund Housing","5CHOMELESS","Homelessness","REV","Revenue","R5630","HAC Temporary Accomodation","05-THIRD","Third Party Payments","05H","Private contractors","6900","Nightly Let Plus Charges","3710081","202307",02/10/2022 00:00:00,972.6,"31230","Employment and Recruitment Agencies","REDACTED DATA","ACCESS UK LTD T/AS ADAM","2343760","http://opencorporates.com/companies/gb/2343760","GB 108 2213 56"
"London Borough of Redbridge","http://opendatacommunities.org/doc/london-borough-council/redbridge","5BGFHOUSING","General Fund Housing","5CHOMELESS","Homelessness","REV","Revenue","R5630","HAC Temporary Accomodation","05-THIRD","Third Party Payments","05H","Private contractors","6900","Nightly Let Plus Charges","3710081","202307",02/10/2022 00:00:00,0,"31230","Employment and Recruitment Agencies","REDACTED DATA","ACCESS UK LTD T/AS ADAM","2343760","http://opencorporates.com/companies/gb/2343760","GB 108 2213 56"
"London Borough of Redbridge","http://opendatacommunities.org/doc/london-borough-council/redbridge","6BSOCIALSERV","Social Services","6COTHC&FSERV","Other Children's & Families' Services","REV","Revenue","R2123","LAC Service","01-EMPLOYEES","Employees","01A","Direct employee expenses","4","Agency Staff - Pay","3713732","202307",26/10/2022 00:00:00,231.2,"31230","Employment and Recruitment Agencies","REDACTED DATA","MATRIX SCM LTD","2227962","http://opencorporates.com/companies/gb/2227962","249573468"
"London Borough of Redbridge","http://opendatacommunities.org/doc/london-borough-council/redbridge","6BSOCIALSERV","Social Services","6COTHC&FSERV","Other Children's & Families' Services","REV","Revenue","R2123","LAC Service","01-EMPLOYEES","Employees","01A","Direct employee expenses","4","Agency Staff - Pay","3713732","202307",26/10/2022 00:00:00,1462.79,"31230","Employment and Recruitment Agencies","REDACTED DATA","MATRIX SCM LTD","2227962","http://opencorporates.com/companies/gb/2227962","249573468"
"London Borough of Redbridge","http://opendatacommunities.org/doc/london-borough-council/redbridge","6BSOCIALSERV","Social Services","6COTHC&FSERV","Other Children's & Families' Services","REV","Revenue","R2123","LAC Service","01-EMPLOYEES","Employees","01A","Direct employee expenses","4","Agency Staff - Pay","3713732","202307",26/10/2022 00:00:00,98.2,"31230","Employment and Recruitment Agencies","REDACTED DATA","MATRIX SCM LTD","2227962","http://opencorporates.com/companies/gb/2227962","249573468"
"London Borough of Redbridge","http://opendatacommunities.org/doc/london-borough-council/redbridge","7BCDC","Corporate & Democratic Core","7CCORPMGT","Corporate Management","REV","Revenue","R9827","Pub Rels and Infn","01-EMPLOYEES","Employees","01A","Direct employee expenses","4","Agency Staff - Pay","3713732","202307",26/10/2022 00:00:00,1595.75,"31230","Employment and Recruitment Agencies","REDACTED DATA","MATRIX SCM LTD","2227962","http://opencorporates.com/companies/gb/2227962","249573468"
"London Borough of Redbridge","http://opendatacommunities.org/doc/london-borough-council/redbridge","7BCDC","Corporate & Democratic Core","7CCORPMGT","Corporate Management","REV","Revenue","R9827","Pub Rels and Infn","01-EMPLOYEES","Employees","01A","Direct employee expenses","4","Agency Staff - Pay","3713732","202307",26/10/2022 00:00:00,1740.8,"31230","Employment and Recruitment Agencies","REDACTED DATA","MATRIX SCM LTD","2227962","http://opencorporates.com/companies/gb/2227962","249573468"
"London Borough of Redbridge","http://opendatacommunities.org/doc/london-borough-council/redbridge","7BCDC","Corporate & Democratic Core","7CCORPMGT","Corporate Management","REV","Revenue","R9827","Pub Rels and Infn","01-EMPLOYEES","Employees","01A","Direct employee expenses","4","Agency Staff - Pay","3713732","202307",26/10/2022 00:00:00,658.72,"31230","Employment and Recruitment Agencies","REDACTED DATA","MATRIX SCM LTD","2227962","http://opencorporates.com/companies/gb/2227962","249573468"
"London Borough of Redbridge","http://opendatacommunities.org/doc/london-borough-council/redbridge","9BNONBVO","Outside the BVACOP Objective Structure","9CNONBVO","Outside the BVACOP Objective Structure","CAP","Capital","C1033","Modernising IT Applications","99-NONBV","Capital, Balance Sheet and Control","50A","Capital - Employee Costs","9006","Employee Costs - Other","3713732","202307",26/10/2022 00:00:00,1892.92,"31230","Employment and Recruitment Agencies","REDACTED DATA","MATRIX SCM LTD","2227962","http://opencorporates.com/companies/gb/2227962","249573468"
"London Borough of Redbridge","http://opendatacommunities.org/doc/london-borough-council/redbridge","9BNONBVO","Outside the BVACOP Objective Structure","9CNONBVO","Outside the BVACOP Objective Structure","CAP","Capital","C1033","Modernising IT Applications","99-NONBV","Capital, Balance Sheet and Control","50A","Capital - Employee Costs","9006","Employee Costs - Other","3713732","202307",26/10/2022 00:00:00,1892.92,"31230","Employment and Recruitment Agencies","REDACTED DATA","MATRIX SCM LTD","2227962","http://opencorporates.com/companies/gb/2227962","249573468"
"London Borough of Redbridge","http://opendatacommunities.org/doc/london-borough-council/redbridge","9BNONBVO","Outside the BVACOP Objective Structure","9CNONBVO","Outside the BVACOP Objective Structure","REV","Revenue","R5009","Feasibility Costs","01-EMPLOYEES","Employees","01A","Direct employee expenses","4","Agency Staff - Pay","3713732","202307",26/10/2022 00:00:00,1816.96,"31230","Employment and Recruitment Agencies","REDACTED DATA","MATRIX SCM LTD","2227962","http://opencorporates.com/companies/gb/2227962","249573468"
"London Borough of Redbridge","http://opendatacommunities.org/doc/london-borough-council/redbridge","9BNONBVO","Outside the BVACOP Objective Structure","9CNONBVO","Outside the BVACOP Objective Structure","REV","Revenue","R5021","Affordable Homes Programme - Revenue","01-EMPLOYEES","Employees","01A","Direct employee expenses","4","Agency Staff - Pay","3713732","202307",26/10/2022 00:00:00,1092.75,"31230","Employment and Recruitment Agencies","REDACTED DATA","MATRIX SCM LTD","2227962","http://opencorporates.com/companies/gb/2227962","249573468"
"London Borough of Redbridge","http://opendatacommunities.org/doc/london-borough-council/redbridge","9BNONBVO","Outside the BVACOP Objective Structure","9CNONBVO","Outside the BVACOP Objective Structure","REV","Revenue","R5048","HRA Consultancy Costs","01-EMPLOYEES","Employees","01A","Direct employee expenses","4","Agency Staff - Pay","3713732","202307",26/10/2022 00:00:00,587.16,"31230","Employment and Recruitment Agencies","REDACTED DATA","MATRIX SCM LTD","2227962","http://opencorporates.com/companies/gb/2227962","249573468"
"London Borough of Redbridge","http://opendatacommunities.org/doc/london-borough-council/redbridge","5BGFHOUSING","General Fund Housing","5CHOMELESS","Homelessness","REV","Revenue","R5630","HAC Temporary Accomodation","05-THIRD","Third Party Payments","05H","Private contractors","6900","Nightly Let Plus Charges","3710081","202307",02/10/2022 00:00:00,1607.1,"31230","Employment and Recruitment Agencies","REDACTED DATA","ACCESS UK LTD T/AS ADAM","2343760","http://opencorporates.com/companies/gb/2343760","GB 108 2213 56"
"London Borough of Redbridge","http://opendatacommunities.org/doc/london-borough-council/redbridge","5BGFHOUSING","General Fund Housing","5CHOMELESS","Homelessness","REV","Revenue","R5630","HAC Temporary Accomodation","05-THIRD","Third Party Payments","05H","Private contractors","6900","Nightly Let Plus Charges","3710081","202307",02/10/2022 00:00:00,855,"31230","Employment and Recruitment Agencies","REDACTED DATA","ACCESS UK LTD T/AS ADAM","2343760","http://opencorporates.com/companies/gb/2343760","GB 108 2213 56"
"London Borough of Redbridge","http://opendatacommunities.org/doc/london-borough-council/redbridge","5BGFHOUSING","General Fund Housing","5CHOMELESS","Homelessness","REV","Revenue","R5630","HAC Temporary Accomodation","05-THIRD","Third Party Payments","05H","Private contractors","6900","Nightly Let Plus Charges","3710081","202307",02/10/2022 00:00:00,0,"31230","Employment and Recruitment Agencies","REDACTED DATA","ACCESS UK LTD T/AS ADAM","2343760","http://opencorporates.com/companies/gb/2343760","GB 108 2213 56"
"London Borough of Redbridge","http://opendatacommunities.org/doc/london-borough-council/redbridge","5BGFHOUSING","General Fund Housing","5CHOMELESS","Homelessness","REV","Revenue","R5630","HAC Temporary Accomodation","05-THIRD","Third Party Payments","05H","Private contractors","6900","Nightly Let Plus Charges","3710081","202307",02/10/2022 00:00:00,0,"31230","Employment and Recruitment Agencies","REDACTED DATA","ACCESS UK LTD T/AS ADAM","2343760","http://opencorporates.com/companies/gb/2343760","GB 108 2213 56"
"London Borough of Redbridge","http://opendatacommunities.org/doc/london-borough-council/redbridge","5BGFHOUSING","General Fund Housing","5CHOMELESS","Homelessness","REV","Revenue","R5630","HAC Temporary Accomodation","05-THIRD","Third Party Payments","05H","Private contractors","6900","Nightly Let Plus Charges","3710081","202307",02/10/2022 00:00:00,1617.9,"31230","Employment and Recruitment Agencies","REDACTED DATA","ACCESS UK LTD T/AS ADAM","2343760","http://opencorporates.com/companies/gb/2343760","GB 108 2213 56"
"London Borough of Redbridge","http://opendatacommunities.org/doc/london-borough-council/redbridge","5BGFHOUSING","General Fund Housing","5CHOMELESS","Homelessness","REV","Revenue","R5630","HAC Temporary Accomodation","05-THIRD","Third Party Payments","05H","Private contractors","6900","Nightly Let Plus Charges","3710081","202307",02/10/2022 00:00:00,0,"31230","Employment and Recruitment Agencies","REDACTED DATA","ACCESS UK LTD T/AS ADAM","2343760","http://opencorporates.com/companies/gb/2343760","GB 108 2213 56"
"London Borough of Redbridge","http://opendatacommunities.org/doc/london-borough-council/redbridge","5BGFHOUSING","General Fund Housing","5CHOMELESS","Homelessness","REV","Revenue","R5630","HAC Temporary Accomodation","05-THIRD","Third Party Payments","05H","Private contractors","6900","Nightly Let Plus Charges","3710081","202307",02/10/2022 00:00:00,1380,"31230","Employment and Recruitment Agencies","REDACTED DATA","ACCESS UK LTD T/AS ADAM","2343760","http://opencorporates.com/companies/gb/2343760","GB 108 2213 56"
"London Borough of Redbridge","http://opendatacommunities.org/doc/london-borough-council/redbridge","5BGFHOUSING","General Fund Housing","5CHOMELESS","Homelessness","REV","Revenue","R5630","HAC Temporary Accomodation","05-THIRD","Third Party Payments","05H","Private contractors","6900","Nightly Let Plus Charges","3710081","202307",02/10/2022 00:00:00,0,"31230","Employment and Recruitment Agencies","REDACTED DATA","ACCESS UK LTD T/AS ADAM","2343760","http://opencorporates.com/companies/gb/2343760","GB 108 2213 56"
"London Borough of Redbridge","http://opendatacommunities.org/doc/london-borough-council/redbridge","5BGFHOUSING","General Fund Housing","5CHOMELESS","Homelessness","REV","Revenue","R5630","HAC Temporary Accomodation","05-THIRD","Third Party Payments","05H","Private contractors","6900","Nightly Let Plus Charges","3710081","202307",02/10/2022 00:00:00,927.9,"31230","Employment and Recruitment Agencies","REDACTED DATA","ACCESS UK LTD T/AS ADAM","2343760","http://opencorporates.com/companies/gb/2343760","GB 108 2213 56"
"London Borough of Redbridge","http://opendatacommunities.org/doc/london-borough-council/redbridge","5BGFHOUSING","General Fund Housing","5CHOMELESS","Homelessness","REV","Revenue","R5630","HAC Temporary Accomodation","05-THIRD","Third Party Payments","05H","Private contractors","6900","Nightly Let Plus Charges","3710081","202307",02/10/2022 00:00:00,0,"31230","Employment and Recruitment Agencies","REDACTED DATA","ACCESS UK LTD T/AS ADAM","2343760","http://opencorporates.com/companies/gb/2343760","GB 108 2213 56"
"London Borough of Redbridge","http://opendatacommunities.org/doc/london-borough-council/redbridge","5BGFHOUSING","General Fund Housing","5CHOMELESS","Homelessness","REV","Revenue","R5630","HAC Temporary Accomodation","05-THIRD","Third Party Payments","05H","Private contractors","6900","Nightly Let Plus Charges","3710081","202307",02/10/2022 00:00:00,0,"31230","Employment and Recruitment Agencies","REDACTED DATA","ACCESS UK LTD T/AS ADAM","2343760","http://opencorporates.com/companies/gb/2343760","GB 108 2213 56"
"London Borough of Redbridge","http://opendatacommunities.org/doc/london-borough-council/redbridge","9BNONBVO","Outside the BVACOP Objective Structure","9CNONBVO","Outside the BVACOP Objective Structure","REV","Revenue","R5048","HRA Consultancy Costs","01-EMPLOYEES","Employees","01A","Direct employee expenses","4","Agency Staff - Pay","3713732","202307",26/10/2022 00:00:00,599.4,"31230","Employment and Recruitment Agencies","REDACTED DATA","MATRIX SCM LTD","2227962","http://opencorporates.com/companies/gb/2227962","249573468"
"London Borough of Redbridge","http://opendatacommunities.org/doc/london-borough-council/redbridge","9BNONBVO","Outside the BVACOP Objective Structure","9CNONBVO","Outside the BVACOP Objective Structure","REV","Revenue","R5048","HRA Consultancy Costs","01-EMPLOYEES","Employees","01A","Direct employee expenses","4","Agency Staff - Pay","3713732","202307",26/10/2022 00:00:00,587.16,"31230","Employment and Recruitment Agencies","REDACTED DATA","MATRIX SCM LTD","2227962","http://opencorporates.com/companies/gb/2227962","249573468"
"London Borough of Redbridge","http://opendatacommunities.org/doc/london-borough-council/redbridge","9BNONBVO","Outside the BVACOP Objective Structure","9CNONBVO","Outside the BVACOP Objective Structure","REV","Revenue","R5213","Area Housing Team","01-EMPLOYEES","Employees","01A","Direct employee expenses","4","Agency Staff - Pay","3713732","202307",26/10/2022 00:00:00,847.44,"31230","Employment and Recruitment Agencies","REDACTED DATA","MATRIX SCM LTD","2227962","http://opencorporates.com/companies/gb/2227962","249573468"
"London Borough of Redbridge","http://opendatacommunities.org/doc/london-borough-council/redbridge","9BNONBVO","Outside the BVACOP Objective Structure","9CNONBVO","Outside the BVACOP Objective Structure","REV","Revenue","R5214","Environmental Services Team","01-EMPLOYEES","Employees","01A","Direct employee expenses","4","Agency Staff - Pay","3713732","202307",26/10/2022 00:00:00,613.78,"31230","Employment and Recruitment Agencies","REDACTED DATA","MATRIX SCM LTD","2227962","http://opencorporates.com/companies/gb/2227962","249573468"
"London Borough of Redbridge","http://opendatacommunities.org/doc/london-borough-council/redbridge","9BNONBVO","Outside the BVACOP Objective Structure","9CNONBVO","Outside the BVACOP Objective Structure","REV","Revenue","R5214","Environmental Services Team","01-EMPLOYEES","Employees","01A","Direct employee expenses","4","Agency Staff - Pay","3713732","202307",26/10/2022 00:00:00,600.14,"31230","Employment and Recruitment Agencies","REDACTED DATA","MATRIX SCM LTD","2227962","http://opencorporates.com/companies/gb/2227962","249573468"
"London Borough of Redbridge","http://opendatacommunities.org/doc/london-borough-council/redbridge","9BNONBVO","Outside the BVACOP Objective Structure","9CNONBVO","Outside the BVACOP Objective Structure","REV","Revenue","R5214","Environmental Services Team","01-EMPLOYEES","Employees","01A","Direct employee expenses","4","Agency Staff - Pay","3713732","202307",26/10/2022 00:00:00,637.32,"31230","Employment and Recruitment Agencies","REDACTED DATA","MATRIX SCM LTD","2227962","http://opencorporates.com/companies/gb/2227962","249573468"
"London Borough of Redbridge","http://opendatacommunities.org/doc/london-borough-council/redbridge","9BNONBVO","Outside the BVACOP Objective Structure","9CNONBVO","Outside the BVACOP Objective Structure","REV","Revenue","R5214","Environmental Services Team","01-EMPLOYEES","Employees","01A","Direct employee expenses","4","Agency Staff - Pay","3713732","202307",26/10/2022 00:00:00,713,"31230","Employment and Recruitment Agencies","REDACTED DATA","MATRIX SCM LTD","2227962","http://opencorporates.com/companies/gb/2227962","249573468"
"London Borough of Redbridge","http://opendatacommunities.org/doc/london-borough-council/redbridge","9BNONBVO","Outside the BVACOP Objective Structure","9CNONBVO","Outside the BVACOP Objective Structure","REV","Revenue","R5219","Capital Programme Team","01-EMPLOYEES","Employees","01A","Direct employee expenses","4","Agency Staff - Pay","3713732","202307",26/10/2022 00:00:00,1287.2,"31230","Employment and Recruitment Agencies","REDACTED DATA","MATRIX SCM LTD","2227962","http://opencorporates.com/companies/gb/2227962","249573468"
"London Borough of Redbridge","http://opendatacommunities.org/doc/london-borough-council/redbridge","9BNONBVO","Outside the BVACOP Objective Structure","9CNONBVO","Outside the BVACOP Objective Structure","REV","Revenue","R5222","Home Ownership Team","01-EMPLOYEES","Employees","01A","Direct employee expenses","4","Agency Staff - Pay","3713732","202307",26/10/2022 00:00:00,464.49,"31230","Employment and Recruitment Agencies","REDACTED DATA","MATRIX SCM LTD","2227962","http://opencorporates.com/companies/gb/2227962","249573468"
"London Borough of Redbridge","http://opendatacommunities.org/doc/london-borough-council/redbridge","9BNONBVO","Outside the BVACOP Objective Structure","9CNONBVO","Outside the BVACOP Objective Structure","REV","Revenue","R5222","Home Ownership Team","01-EMPLOYEES","Employees","01A","Direct employee expenses","4","Agency Staff - Pay","3713732","202307",26/10/2022 00:00:00,791.9,"31230","Employment and Recruitment Agencies","REDACTED DATA","MATRIX SCM LTD","2227962","http://opencorporates.com/companies/gb/2227962","249573468"
"London Borough of Redbridge","http://opendatacommunities.org/doc/london-borough-council/redbridge","9BNONBVO","Outside the BVACOP Objective Structure","9CNONBVO","Outside the BVACOP Objective Structure","REV","Revenue","R5223","Income Recovery Team (HRA)","01-EMPLOYEES","Employees","01A","Direct employee expenses","4","Agency Staff - Pay","3713732","202307",26/10/2022 00:00:00,459.25,"31230","Employment and Recruitment Agencies","REDACTED DATA","MATRIX SCM LTD","2227962","http://opencorporates.com/companies/gb/2227962","249573468"
"London Borough of Redbridge","http://opendatacommunities.org/doc/london-borough-council/redbridge","9BNONBVO","Outside the BVACOP Objective Structure","9CNONBVO","Outside the BVACOP Objective Structure","REV","Revenue","R7602","Street Cleansing","01-EMPLOYEES","Employees","01A","Direct employee expenses","4","Agency Staff - Pay","3713732","202307",26/10/2022 00:00:00,603.71,"31230","Employment and Recruitment Agencies","REDACTED DATA","MATRIX SCM LTD","2227962","http://opencorporates.com/companies/gb/2227962","249573468"
"London Borough of Redbridge","http://opendatacommunities.org/doc/london-borough-council/redbridge","9BNONBVO","Outside the BVACOP Objective Structure","9CNONBVO","Outside the BVACOP Objective Structure","REV","Revenue","R7602","Street Cleansing","01-EMPLOYEES","Employees","01A","Direct employee expenses","4","Agency Staff - Pay","3713732","202307",26/10/2022 00:00:00,586.95,"31230","Employment and Recruitment Agencies","REDACTED DATA","MATRIX SCM LTD","2227962","http://opencorporates.com/companies/gb/2227962","249573468"
"London Borough of Redbridge","http://opendatacommunities.org/doc/london-borough-council/redbridge","9BNONBVO","Outside the BVACOP Objective Structure","9CNONBVO","Outside the BVACOP Objective Structure","REV","Revenue","R7602","Street Cleansing","01-EMPLOYEES","Employees","01A","Direct employee expenses","4","Agency Staff - Pay","3713732","202307",26/10/2022 00:00:00,276.76,"31230","Employment and Recruitment Agencies","REDACTED DATA","MATRIX SCM LTD","2227962","http://opencorporates.com/companies/gb/2227962","249573468"
"London Borough of Redbridge","http://opendatacommunities.org/doc/london-borough-council/redbridge","9BNONBVO","Outside the BVACOP Objective Structure","9CNONBVO","Outside the BVACOP Objective Structure","REV","Revenue","R7602","Street Cleansing","01-EMPLOYEES","Employees","01A","Direct employee expenses","4","Agency Staff - Pay","3713732","202307",26/10/2022 00:00:00,201.28,"31230","Employment and Recruitment Agencies","REDACTED DATA","MATRIX SCM LTD","2227962","http://opencorporates.com/companies/gb/2227962","249573468"
"London Borough of Redbridge","http://opendatacommunities.org/doc/london-borough-council/redbridge","9BNONBVO","Outside the BVACOP Objective Structure","9CNONBVO","Outside the BVACOP Objective Structure","REV","Revenue","R7602","Street Cleansing","01-EMPLOYEES","Employees","01A","Direct employee expenses","4","Agency Staff - Pay","3713732","202307",26/10/2022 00:00:00,178.48,"31230","Employment and Recruitment Agencies","REDACTED DATA","MATRIX SCM LTD","2227962","http://opencorporates.com/companies/gb/2227962","249573468"
"London Borough of Redbridge","http://opendatacommunities.org/doc/london-borough-council/redbridge","9BNONBVO","Outside the BVACOP Objective Structure","9CNONBVO","Outside the BVACOP Objective Structure","REV","Revenue","R7602","Street Cleansing","01-EMPLOYEES","Employees","01A","Direct employee expenses","4","Agency Staff - Pay","3713732","202307",26/10/2022 00:00:00,795,"31230","Employment and Recruitment Agencies","REDACTED DATA","MATRIX SCM LTD","2227962","http://opencorporates.com/companies/gb/2227962","249573468"
"London Borough of Redbridge","http://opendatacommunities.org/doc/london-borough-council/redbridge","9BNONBVO","Outside the BVACOP Objective Structure","9CNONBVO","Outside the BVACOP Objective Structure","REV","Revenue","R7602","Street Cleansing","01-EMPLOYEES","Employees","01A","Direct employee expenses","4","Agency Staff - Pay","3713732","202307",26/10/2022 00:00:00,572.42,"31230","Employment and Recruitment Agencies","REDACTED DATA","MATRIX SCM LTD","2227962","http://opencorporates.com/companies/gb/2227962","249573468"
"London Borough of Redbridge","http://opendatacommunities.org/doc/london-borough-council/redbridge","9BNONBVO","Outside the BVACOP Objective Structure","9CNONBVO","Outside the BVACOP Objective Structure","REV","Revenue","R7602","Street Cleansing","01-EMPLOYEES","Employees","01A","Direct employee expenses","4","Agency Staff - Pay","3713732","202307",26/10/2022 00:00:00,222.6,"31230","Employment and Recruitment Agencies","REDACTED DATA","MATRIX SCM LTD","2227962","http://opencorporates.com/companies/gb/2227962","249573468"
"London Borough of Redbridge","http://opendatacommunities.org/doc/london-borough-council/redbridge","9BNONBVO","Outside the BVACOP Objective Structure","9CNONBVO","Outside the BVACOP Objective Structure","REV","Revenue","R7602","Street Cleansing","01-EMPLOYEES","Employees","01A","Direct employee expenses","4","Agency Staff - Pay","3713732","202307",26/10/2022 00:00:00,222.6,"31230","Employment and Recruitment Agencies","REDACTED DATA","MATRIX SCM LTD","2227962","http://opencorporates.com/companies/gb/2227962","249573468"
"London Borough of Redbridge","http://opendatacommunities.org/doc/london-borough-council/redbridge","9BNONBVO","Outside the BVACOP Objective Structure","9CNONBVO","Outside the BVACOP Objective Structure","REV","Revenue","R7602","Street Cleansing","01-EMPLOYEES","Employees","01A","Direct employee expenses","4","Agency Staff - Pay","3713732","202307",26/10/2022 00:00:00,364.74,"31230","Employment and Recruitment Agencies","REDACTED DATA","MATRIX SCM LTD","2227962","http://opencorporates.com/companies/gb/2227962","249573468"
"London Borough of Redbridge","http://opendatacommunities.org/doc/london-borough-council/redbridge","9BNONBVO","Outside the BVACOP Objective Structure","9CNONBVO","Outside the BVACOP Objective Structure","REV","Revenue","R7602","Street Cleansing","01-EMPLOYEES","Employees","01A","Direct employee expenses","4","Agency Staff - Pay","3713732","202307",26/10/2022 00:00:00,452.88,"31230","Employment and Recruitment Agencies","REDACTED DATA","MATRIX SCM LTD","2227962","http://opencorporates.com/companies/gb/2227962","249573468"
"London Borough of Redbridge","http://opendatacommunities.org/doc/london-borough-council/redbridge","9BNONBVO","Outside the BVACOP Objective Structure","9CNONBVO","Outside the BVACOP Objective Structure","REV","Revenue","R7602","Street Cleansing","01-EMPLOYEES","Employees","01A","Direct employee expenses","4","Agency Staff - Pay","3713732","202307",26/10/2022 00:00:00,161.75,"31230","Employment and Recruitment Agencies","REDACTED DATA","MATRIX SCM LTD","2227962","http://opencorporates.com/companies/gb/2227962","249573468"
"London Borough of Redbridge","http://opendatacommunities.org/doc/london-borough-council/redbridge","9BNONBVO","Outside the BVACOP Objective Structure","9CNONBVO","Outside the BVACOP Objective Structure","REV","Revenue","R7602","Street Cleansing","01-EMPLOYEES","Employees","01A","Direct employee expenses","4","Agency Staff - Pay","3713732","202307",26/10/2022 00:00:00,243.16,"31230","Employment and Recruitment Agencies","REDACTED DATA","MATRIX SCM LTD","2227962","http://opencorporates.com/companies/gb/2227962","249573468"
"London Borough of Redbridge","http://opendatacommunities.org/doc/london-borough-council/redbridge","9BNONBVO","Outside the BVACOP Objective Structure","9CNONBVO","Outside the BVACOP Objective Structure","REV","Revenue","R7602","Street Cleansing","01-EMPLOYEES","Employees","01A","Direct employee expenses","4","Agency Staff - Pay","3713732","202307",26/10/2022 00:00:00,161.75,"31230","Employment and Recruitment Agencies","REDACTED DATA","MATRIX SCM LTD","2227962","http://opencorporates.com/companies/gb/2227962","249573468"
"London Borough of Redbridge","http://opendatacommunities.org/doc/london-borough-council/redbridge","9BNONBVO","Outside the BVACOP Objective Structure","9CNONBVO","Outside the BVACOP Objective Structure","REV","Revenue","R7602","Street Cleansing","01-EMPLOYEES","Employees","01A","Direct employee expenses","4","Agency Staff - Pay","3713732","202307",26/10/2022 00:00:00,567.95,"31230","Employment and Recruitment Agencies","REDACTED DATA","MATRIX SCM LTD","2227962","http://opencorporates.com/companies/gb/2227962","249573468"
"London Borough of Redbridge","http://opendatacommunities.org/doc/london-borough-council/redbridge","9BNONBVO","Outside the BVACOP Objective Structure","9CNONBVO","Outside the BVACOP Objective Structure","REV","Revenue","R7602","Street Cleansing","01-EMPLOYEES","Employees","01A","Direct employee expenses","4","Agency Staff - Pay","3713732","202307",26/10/2022 00:00:00,572.42,"31230","Employment and Recruitment Agencies","REDACTED DATA","MATRIX SCM LTD","2227962","http://opencorporates.com/companies/gb/2227962","249573468"
"London Borough of Redbridge","http://opendatacommunities.org/doc/london-borough-council/redbridge","9BNONBVO","Outside the BVACOP Objective Structure","9CNONBVO","Outside the BVACOP Objective Structure","REV","Revenue","R7602","Street Cleansing","01-EMPLOYEES","Employees","01A","Direct employee expenses","4","Agency Staff - Pay","3713732","202307",26/10/2022 00:00:00,572.42,"31230","Employment and Recruitment Agencies","REDACTED DATA","MATRIX SCM LTD","2227962","http://opencorporates.com/companies/gb/2227962","249573468"
"London Borough of Redbridge","http://opendatacommunities.org/doc/london-borough-council/redbridge","9BNONBVO","Outside the BVACOP Objective Structure","9CNONBVO","Outside the BVACOP Objective Structure","REV","Revenue","R7602","Street Cleansing","01-EMPLOYEES","Employees","01A","Direct employee expenses","4","Agency Staff - Pay","3713732","202307",26/10/2022 00:00:00,190.88,"31230","Employment and Recruitment Agencies","REDACTED DATA","MATRIX SCM LTD","2227962","http://opencorporates.com/companies/gb/2227962","249573468"
"London Borough of Redbridge","http://opendatacommunities.org/doc/london-borough-council/redbridge","9BNONBVO","Outside the BVACOP Objective Structure","9CNONBVO","Outside the BVACOP Objective Structure","REV","Revenue","R7602","Street Cleansing","01-EMPLOYEES","Employees","01A","Direct employee expenses","4","Agency Staff - Pay","3713732","202307",26/10/2022 00:00:00,572.42,"31230","Employment and Recruitment Agencies","REDACTED DATA","MATRIX SCM LTD","2227962","http://opencorporates.com/companies/gb/2227962","249573468"
"London Borough of Redbridge","http://opendatacommunities.org/doc/london-borough-council/redbridge","9BNONBVO","Outside the BVACOP Objective Structure","9CNONBVO","Outside the BVACOP Objective Structure","REV","Revenue","R7602","Street Cleansing","01-EMPLOYEES","Employees","01A","Direct employee expenses","4","Agency Staff - Pay","3713732","202307",26/10/2022 00:00:00,572.42,"31230","Employment and Recruitment Agencies","REDACTED DATA","MATRIX SCM LTD","2227962","http://opencorporates.com/companies/gb/2227962","249573468"
"London Borough of Redbridge","http://opendatacommunities.org/doc/london-borough-council/redbridge","9BNONBVO","Outside the BVACOP Objective Structure","9CNONBVO","Outside the BVACOP Objective Structure","REV","Revenue","R7602","Street Cleansing","01-EMPLOYEES","Employees","01A","Direct employee expenses","4","Agency Staff - Pay","3713732","202307",26/10/2022 00:00:00,567.95,"31230","Employment and Recruitment Agencies","REDACTED DATA","MATRIX SCM LTD","2227962","http://opencorporates.com/companies/gb/2227962","249573468"
"London Borough of Redbridge","http://opendatacommunities.org/doc/london-borough-council/redbridge","9BNONBVO","Outside the BVACOP Objective Structure","9CNONBVO","Outside the BVACOP Objective Structure","REV","Revenue","R7602","Street Cleansing","01-EMPLOYEES","Employees","01A","Direct employee expenses","4","Agency Staff - Pay","3713732","202307",26/10/2022 00:00:00,165.65,"31230","Employment and Recruitment Agencies","REDACTED DATA","MATRIX SCM LTD","2227962","http://opencorporates.com/companies/gb/2227962","249573468"
"London Borough of Redbridge","http://opendatacommunities.org/doc/london-borough-council/redbridge","9BNONBVO","Outside the BVACOP Objective Structure","9CNONBVO","Outside the BVACOP Objective Structure","REV","Revenue","R7602","Street Cleansing","01-EMPLOYEES","Employees","01A","Direct employee expenses","4","Agency Staff - Pay","3713732","202307",26/10/2022 00:00:00,148.05,"31230","Employment and Recruitment Agencies","REDACTED DATA","MATRIX SCM LTD","2227962","http://opencorporates.com/companies/gb/2227962","249573468"
"London Borough of Redbridge","http://opendatacommunities.org/doc/london-borough-council/redbridge","9BNONBVO","Outside the BVACOP Objective Structure","9CNONBVO","Outside the BVACOP Objective Structure","REV","Revenue","R7602","Street Cleansing","01-EMPLOYEES","Employees","01A","Direct employee expenses","4","Agency Staff - Pay","3713732","202307",26/10/2022 00:00:00,422.02,"31230","Employment and Recruitment Agencies","REDACTED DATA","MATRIX SCM LTD","2227962","http://opencorporates.com/companies/gb/2227962","249573468"
"London Borough of Redbridge","http://opendatacommunities.org/doc/london-borough-council/redbridge","9BNONBVO","Outside the BVACOP Objective Structure","9CNONBVO","Outside the BVACOP Objective Structure","REV","Revenue","R7602","Street Cleansing","01-EMPLOYEES","Employees","01A","Direct employee expenses","4","Agency Staff - Pay","3713732","202307",26/10/2022 00:00:00,567.95,"31230","Employment and Recruitment Agencies","REDACTED DATA","MATRIX SCM LTD","2227962","http://opencorporates.com/companies/gb/2227962","249573468"
"London Borough of Redbridge","http://opendatacommunities.org/doc/london-borough-council/redbridge","9BNONBVO","Outside the BVACOP Objective Structure","9CNONBVO","Outside the BVACOP Objective Structure","REV","Revenue","R7602","Street Cleansing","01-EMPLOYEES","Employees","01A","Direct employee expenses","4","Agency Staff - Pay","3713732","202307",26/10/2022 00:00:00,567.95,"31230","Employment and Recruitment Agencies","REDACTED DATA","MATRIX SCM LTD","2227962","http://opencorporates.com/companies/gb/2227962","249573468"
"London Borough of Redbridge","http://opendatacommunities.org/doc/london-borough-council/redbridge","9BNONBVO","Outside the BVACOP Objective Structure","9CNONBVO","Outside the BVACOP Objective Structure","REV","Revenue","R7602","Street Cleansing","01-EMPLOYEES","Employees","01A","Direct employee expenses","4","Agency Staff - Pay","3713732","202307",26/10/2022 00:00:00,567.95,"31230","Employment and Recruitment Agencies","REDACTED DATA","MATRIX SCM LTD","2227962","http://opencorporates.com/companies/gb/2227962","249573468"
"London Borough of Redbridge","http://opendatacommunities.org/doc/london-borough-council/redbridge","9BNONBVO","Outside the BVACOP Objective Structure","9CNONBVO","Outside the BVACOP Objective Structure","REV","Revenue","R7602","Street Cleansing","01-EMPLOYEES","Employees","01A","Direct employee expenses","4","Agency Staff - Pay","3713732","202307",26/10/2022 00:00:00,167.02,"31230","Employment and Recruitment Agencies","REDACTED DATA","MATRIX SCM LTD","2227962","http://opencorporates.com/companies/gb/2227962","249573468"
"London Borough of Redbridge","http://opendatacommunities.org/doc/london-borough-council/redbridge","9BNONBVO","Outside the BVACOP Objective Structure","9CNONBVO","Outside the BVACOP Objective Structure","REV","Revenue","R7602","Street Cleansing","01-EMPLOYEES","Employees","01A","Direct employee expenses","4","Agency Staff - Pay","3713732","202307",26/10/2022 00:00:00,708.55,"31230","Employment and Recruitment Agencies","REDACTED DATA","MATRIX SCM LTD","2227962","http://opencorporates.com/companies/gb/2227962","249573468"
"London Borough of Redbridge","http://opendatacommunities.org/doc/london-borough-council/redbridge","9BNONBVO","Outside the BVACOP Objective Structure","9CNONBVO","Outside the BVACOP Objective Structure","REV","Revenue","R7602","Street Cleansing","01-EMPLOYEES","Employees","01A","Direct employee expenses","4","Agency Staff - Pay","3713732","202307",26/10/2022 00:00:00,572.42,"31230","Employment and Recruitment Agencies","REDACTED DATA","MATRIX SCM LTD","2227962","http://opencorporates.com/companies/gb/2227962","249573468"
"London Borough of Redbridge","http://opendatacommunities.org/doc/london-borough-council/redbridge","9BNONBVO","Outside the BVACOP Objective Structure","9CNONBVO","Outside the BVACOP Objective Structure","REV","Revenue","R7602","Street Cleansing","01-EMPLOYEES","Employees","01A","Direct employee expenses","4","Agency Staff - Pay","3713732","202307",26/10/2022 00:00:00,441.72,"31230","Employment and Recruitment Agencies","REDACTED DATA","MATRIX SCM LTD","2227962","http://opencorporates.com/companies/gb/2227962","249573468"
"London Borough of Redbridge","http://opendatacommunities.org/doc/london-borough-council/redbridge","9BNONBVO","Outside the BVACOP Objective Structure","9CNONBVO","Outside the BVACOP Objective Structure","REV","Revenue","R7602","Street Cleansing","01-EMPLOYEES","Employees","01A","Direct employee expenses","4","Agency Staff - Pay","3713732","202307",26/10/2022 00:00:00,492.92,"31230","Employment and Recruitment Agencies","REDACTED DATA","MATRIX SCM LTD","2227962","http://opencorporates.com/companies/gb/2227962","249573468"
"London Borough of Redbridge","http://opendatacommunities.org/doc/london-borough-council/redbridge","9BNONBVO","Outside the BVACOP Objective Structure","9CNONBVO","Outside the BVACOP Objective Structure","REV","Revenue","R7602","Street Cleansing","01-EMPLOYEES","Employees","01A","Direct employee expenses","4","Agency Staff - Pay","3713732","202307",26/10/2022 00:00:00,429.48,"31230","Employment and Recruitment Agencies","REDACTED DATA","MATRIX SCM LTD","2227962","http://opencorporates.com/companies/gb/2227962","249573468"
"London Borough of Redbridge","http://opendatacommunities.org/doc/london-borough-council/redbridge","9BNONBVO","Outside the BVACOP Objective Structure","9CNONBVO","Outside the BVACOP Objective Structure","REV","Revenue","R7602","Street Cleansing","01-EMPLOYEES","Employees","01A","Direct employee expenses","4","Agency Staff - Pay","3713732","202307",26/10/2022 00:00:00,153.34,"31230","Employment and Recruitment Agencies","REDACTED DATA","MATRIX SCM LTD","2227962","http://opencorporates.com/companies/gb/2227962","249573468"
"London Borough of Redbridge","http://opendatacommunities.org/doc/london-borough-council/redbridge","9BNONBVO","Outside the BVACOP Objective Structure","9CNONBVO","Outside the BVACOP Objective Structure","REV","Revenue","R7602","Street Cleansing","01-EMPLOYEES","Employees","01A","Direct employee expenses","4","Agency Staff - Pay","3713732","202307",26/10/2022 00:00:00,603.71,"31230","Employment and Recruitment Agencies","REDACTED DATA","MATRIX SCM LTD","2227962","http://opencorporates.com/companies/gb/2227962","249573468"
"London Borough of Redbridge","http://opendatacommunities.org/doc/london-borough-council/redbridge","9BNONBVO","Outside the BVACOP Objective Structure","9CNONBVO","Outside the BVACOP Objective Structure","REV","Revenue","R7602","Street Cleansing","01-EMPLOYEES","Employees","01A","Direct employee expenses","4","Agency Staff - Pay","3713732","202307",26/10/2022 00:00:00,603.71,"31230","Employment and Recruitment Agencies","REDACTED DATA","MATRIX SCM LTD","2227962","http://opencorporates.com/companies/gb/2227962","249573468"
"London Borough of Redbridge","http://opendatacommunities.org/doc/london-borough-council/redbridge","9BNONBVO","Outside the BVACOP Objective Structure","9CNONBVO","Outside the BVACOP Objective Structure","REV","Revenue","R7602","Street Cleansing","01-EMPLOYEES","Employees","01A","Direct employee expenses","4","Agency Staff - Pay","3713732","202307",26/10/2022 00:00:00,599.24,"31230","Employment and Recruitment Agencies","REDACTED DATA","MATRIX SCM LTD","2227962","http://opencorporates.com/companies/gb/2227962","249573468"
"London Borough of Redbridge","http://opendatacommunities.org/doc/london-borough-council/redbridge","9BNONBVO","Outside the BVACOP Objective Structure","9CNONBVO","Outside the BVACOP Objective Structure","REV","Revenue","R7602","Street Cleansing","01-EMPLOYEES","Employees","01A","Direct employee expenses","4","Agency Staff - Pay","3713732","202307",26/10/2022 00:00:00,427.63,"31230","Employment and Recruitment Agencies","REDACTED DATA","MATRIX SCM LTD","2227962","http://opencorporates.com/companies/gb/2227962","249573468"
"London Borough of Redbridge","http://opendatacommunities.org/doc/london-borough-council/redbridge","9BNONBVO","Outside the BVACOP Objective Structure","9CNONBVO","Outside the BVACOP Objective Structure","REV","Revenue","R7602","Street Cleansing","01-EMPLOYEES","Employees","01A","Direct employee expenses","4","Agency Staff - Pay","3713732","202307",26/10/2022 00:00:00,176.12,"31230","Employment and Recruitment Agencies","REDACTED DATA","MATRIX SCM LTD","2227962","http://opencorporates.com/companies/gb/2227962","249573468"
"London Borough of Redbridge","http://opendatacommunities.org/doc/london-borough-council/redbridge","9BNONBVO","Outside the BVACOP Objective Structure","9CNONBVO","Outside the BVACOP Objective Structure","REV","Revenue","R7602","Street Cleansing","01-EMPLOYEES","Employees","01A","Direct employee expenses","4","Agency Staff - Pay","3713732","202307",26/10/2022 00:00:00,156.17,"31230","Employment and Recruitment Agencies","REDACTED DATA","MATRIX SCM LTD","2227962","http://opencorporates.com/companies/gb/2227962","249573468"
"London Borough of Redbridge","http://opendatacommunities.org/doc/london-borough-council/redbridge","9BNONBVO","Outside the BVACOP Objective Structure","9CNONBVO","Outside the BVACOP Objective Structure","REV","Revenue","R7602","Street Cleansing","01-EMPLOYEES","Employees","01A","Direct employee expenses","4","Agency Staff - Pay","3713732","202307",26/10/2022 00:00:00,607.9,"31230","Employment and Recruitment Agencies","REDACTED DATA","MATRIX SCM LTD","2227962","http://opencorporates.com/companies/gb/2227962","249573468"
"London Borough of Redbridge","http://opendatacommunities.org/doc/london-borough-council/redbridge","9BNONBVO","Outside the BVACOP Objective Structure","9CNONBVO","Outside the BVACOP Objective Structure","REV","Revenue","R7602","Street Cleansing","01-EMPLOYEES","Employees","01A","Direct employee expenses","4","Agency Staff - Pay","3713732","202307",26/10/2022 00:00:00,146.91,"31230","Employment and Recruitment Agencies","REDACTED DATA","MATRIX SCM LTD","2227962","http://opencorporates.com/companies/gb/2227962","249573468"
"London Borough of Redbridge","http://opendatacommunities.org/doc/london-borough-council/redbridge","9BNONBVO","Outside the BVACOP Objective Structure","9CNONBVO","Outside the BVACOP Objective Structure","REV","Revenue","R7702","Vehicle Workshop","01-EMPLOYEES","Employees","01A","Direct employee expenses","4","Agency Staff - Pay","3713732","202307",26/10/2022 00:00:00,621.89,"31230","Employment and Recruitment Agencies","REDACTED DATA","MATRIX SCM LTD","2227962","http://opencorporates.com/companies/gb/2227962","249573468"
"London Borough of Redbridge","http://opendatacommunities.org/doc/london-borough-council/redbridge","1BCENTRALPUB","Central Services to the Public","1CTRADSURDEF","Trading Account Surpluses & Deficits","REV","Revenue","R3976","Local London Work and Health Programme (ESF)","04-SUPPLIES","Supplies And Services","04H","Grants and subscriptions","5955","Fees","60500516","202307",23/09/2022 00:00:00,250320,"31235","Employment Service","REDACTED DATA","Maximus UK Services Ltd","9072343","http://opencorporates.com/companies/gb/9072343","200 2210 05"
"London Borough of Redbridge","http://opendatacommunities.org/doc/london-borough-council/redbridge","1BCENTRALPUB","Central Services to the Public","1CTRADSURDEF","Trading Account Surpluses & Deficits","REV","Revenue","R3976","Local London Work and Health Programme (ESF)","04-SUPPLIES","Supplies And Services","04H","Grants and subscriptions","5955","Fees","60500517","202307",23/09/2022 00:00:00,247340,"31235","Employment Service","REDACTED DATA","Maximus UK Services Ltd","9072343","http://opencorporates.com/companies/gb/9072343","200 2210 05"
"London Borough of Redbridge","http://opendatacommunities.org/doc/london-borough-council/redbridge","3BINDSCHFUND","Individual School Funds","3CDELPRIMARY","Delegated Individual Primary School Budgets","REV","Revenue","R3590","Gearies Primary School","05-THIRD","Third Party Payments","05G","Other establishments","7451","LMS Bank Accounts Pilot","3712609","202307",27/10/2022 00:00:00,294500,"67981","Schools - Local Authority","REDACTED DATA","GEARIES PRIMARY SCHOOL A/C NO2","",,""
"London Borough of Redbridge","http://opendatacommunities.org/doc/london-borough-council/redbridge","3BLEACENTFND","LEA Centrally Held School Funds","3CNONSCH","Non Schools","REV","Revenue","R2231","Special School Top Up Fees","05-THIRD","Third Party Payments","05G","Other establishments","7430","LBR Pre 16 Top Up","3709823","202307",05/10/2022 00:00:00,260595.16,"68200","Schools - Special","REDACTED DATA","ASTRUM MULTI ACADEMY TRUST T/A NEWBRIDGE SCHOOL","",,""
"London Borough of Redbridge","http://opendatacommunities.org/doc/london-borough-council/redbridge","3BINDSCHFUND","Individual School Funds","3CDELPRIMARY","Delegated Individual Primary School Budgets","REV","Revenue","R3515","Chadwell Primary School","05-THIRD","Third Party Payments","05G","Other establishments","7451","LMS Bank Accounts Pilot","3712604","202307",27/10/2022 00:00:00,258409.95,"67981","Schools - Local Authority","REDACTED DATA","CHADWELL PRIMARY SCHOOL 2ND A/C.","",,""
"London Borough of Redbridge","http://opendatacommunities.org/doc/london-borough-council/redbridge","3BLEACENTFND","LEA Centrally Held School Funds","3CASSURACCES","Assuring Access to Schools","REV","Revenue","R3859","PFI Sch Local Authority Liability","04-SUPPLIES","Supplies And Services","04I","PFI and Public Private Partnership Schemes","6000","PFI - Unitary Payment","60501635","202307",03/10/2022 00:00:00,213466.14,"21557","Construction Management","REDACTED DATA","NU SCHOOLS FOR REDBRIDGE LTD(MAMG)","4048932","http://opencorporates.com/companies/gb/4048932","858914279"
"London Borough of Redbridge","http://opendatacommunities.org/doc/london-borough-council/redbridge","3BLEACENTFND","LEA Centrally Held School Funds","3CNONSCH","Non Schools","REV","Revenue","R2231","Special School Top Up Fees","05-THIRD","Third Party Payments","05G","Other establishments","7430","LBR Pre 16 Top Up","3713723","202307",28/10/2022 00:00:00,248403.21,"68200","Schools - Special","REDACTED DATA","ASTRUM MULTI ACADEMY TRUST T/A NEWBRIDGE SCHOOL","",,""
"London Borough of Redbridge","http://opendatacommunities.org/doc/london-borough-council/redbridge","3BINDSCHFUND","Individual School Funds","3CDELPRIMARY","Delegated Individual Primary School Budgets","REV","Revenue","R3528","Fairlop Primary School","05-THIRD","Third Party Payments","05G","Other establishments","7451","LMS Bank Accounts Pilot","3712608","202307",27/10/2022 00:00:00,244149.91,"67981","Schools - Local Authority","REDACTED DATA","FAIRLOP PRIMARY SCHOOL PAYROLL A/C","",,""
"London Borough of Redbridge","http://opendatacommunities.org/doc/london-borough-council/redbridge","3BINDSCHFUND","Individual School Funds","3CDELPRIMARY","Delegated Individual Primary School Budgets","REV","Revenue","R3557","Roding Primary School","05-THIRD","Third Party Payments","05G","Other establishments","7451","LMS Bank Accounts Pilot","3712617","202307",27/10/2022 00:00:00,233894.25,"67981","Schools - Local Authority","REDACTED DATA","RODING PRIMARY SCHOOL A/C NO2","",,""
"London Borough of Redbridge","http://opendatacommunities.org/doc/london-borough-council/redbridge","3BINDSCHFUND","Individual School Funds","3CDELPRIMARY","Delegated Individual Primary School Budgets","REV","Revenue","R3510","Aldersbrook Primary School","05-THIRD","Third Party Payments","05G","Other establishments","7451","LMS Bank Accounts Pilot","3712603","202307",27/10/2022 00:00:00,233209.89,"67981","Schools - Local Authority","REDACTED DATA","ALDERSBROOK PRIMARY SCHOOL PAYROLL A/C","",,""
"London Borough of Redbridge","http://opendatacommunities.org/doc/london-borough-council/redbridge","3BINDSCHFUND","Individual School Funds","3CDELPRIMARY","Delegated Individual Primary School Budgets","REV","Revenue","R3586","William Torbitt Primary School","05-THIRD","Third Party Payments","05G","Other establishments","7451","LMS Bank Accounts Pilot","3712626","202307",27/10/2022 00:00:00,229658.98,"67981","Schools - Local Authority","REDACTED DATA","WILLIAM TORBITT PRIMARY SCHOOL (Payroll act)","",,""
"London Borough of Redbridge","http://opendatacommunities.org/doc/london-borough-council/redbridge","9BNONBVO","Outside the BVACOP Objective Structure","9CNONBVO","Outside the BVACOP Objective Structure","REV","Revenue","R5131","Repairs and Maintenance - MFS","02-PREMISES","Premises","02A","Repairs, alteration and maintenance of buildings","3050","General Repairs HRA","70125702","202307",05/09/2022 00:00:00,138972.78,"11371","Building Refurbishment and Restoration Contractors","REDACTED DATA","MEARS LTD","2519234","http://opencorporates.com/companies/gb/2519234","682002758"
"London Borough of Redbridge","http://opendatacommunities.org/doc/london-borough-council/redbridge","9BNONBVO","Outside the BVACOP Objective Structure","9CNONBVO","Outside the BVACOP Objective Structure","REV","Revenue","R5131","Repairs and Maintenance - MFS","02-PREMISES","Premises","02A","Repairs, alteration and maintenance of buildings","3050","General Repairs HRA","70125702","202307",05/09/2022 00:00:00,27634.49,"11371","Building Refurbishment and Restoration Contractors","REDACTED DATA","MEARS LTD","2519234","http://opencorporates.com/companies/gb/2519234","682002758"
"London Borough of Redbridge","http://opendatacommunities.org/doc/london-borough-council/redbridge","6BPUBHEALTH","Public Health","6CSUBSTANCEM","Substance Misuse","REV","Revenue","R4815","Drug Misuse - Adults","05-THIRD","Third Party Payments","05F","Voluntary associations","6800","Voluntary Organisations","60496225","202307",01/08/2022 00:00:00,197174.07,"79980","Training Services","REDACTED DATA","WESTMINSTER DRUG PROJECT LTD","2807934","http://opencorporates.com/companies/gb/2807934",""
"London Borough of Redbridge","http://opendatacommunities.org/doc/london-borough-council/redbridge","6BPUBHEALTH","Public Health","6CSUBSTANCEM","Substance Misuse","REV","Revenue","R4815","Drug Misuse - Adults","05-THIRD","Third Party Payments","05F","Voluntary associations","6800","Voluntary Organisations","60499409","202307",01/09/2022 00:00:00,197174.07,"79980","Training Services","REDACTED DATA","WESTMINSTER DRUG PROJECT LTD","2807934","http://opencorporates.com/companies/gb/2807934",""
"London Borough of Redbridge","http://opendatacommunities.org/doc/london-borough-council/redbridge","9BNONBVO","Outside the BVACOP Objective Structure","9CNONBVO","Outside the BVACOP Objective Structure","REV","Revenue","R5131","Repairs and Maintenance - MFS","02-PREMISES","Premises","02A","Repairs, alteration and maintenance of buildings","3026","Minor Maintenance","70125842","202307",05/09/2022 00:00:00,161626.51,"11371","Building Refurbishment and Restoration Contractors","REDACTED DATA","MEARS LTD","2519234","http://opencorporates.com/companies/gb/2519234","682002758"
"London Borough of Redbridge","http://opendatacommunities.org/doc/london-borough-council/redbridge","4BPUBLICTRAN","Public Transport","4CPARKING","Parking Services","REV","Revenue","R7037","Attendants Parking Enforcement","05-THIRD","Third Party Payments","05H","Private contractors","6911","Parking and Traffic Enforcement Contract","60501906","202307",30/09/2022 00:00:00,158642.44,"13750","Car Parking and Garaging","REDACTED DATA","APCOA PARKING (UK) LTD","2572947","http://opencorporates.com/companies/gb/2572947","674177607"
"London Borough of Redbridge","http://opendatacommunities.org/doc/london-borough-council/redbridge","9BNONBVO","Outside the BVACOP Objective Structure","9CNONBVO","Outside the BVACOP Objective Structure","CAP","Capital","C2106","External","99-NONBV","Capital, Balance Sheet and Control","50E","Capital - Contract Payments","9150","Main Contract","60502713","202307",08/09/2022 00:00:00,156551.25,"21555","Construction Contractors - General","REDACTED DATA","Quill Construction Limited","3806388","http://opencorporates.com/companies/gb/3806388","740199924"
"London Borough of Redbridge","http://opendatacommunities.org/doc/london-borough-council/redbridge","3BINDSCHFUND","Individual School Funds","3CDELPRIMARY","Delegated Individual Primary School Budgets","REV","Revenue","R3524","Coppice Primary School","05-THIRD","Third Party Payments","05G","Other establishments","7451","LMS Bank Accounts Pilot","3712606","202307",27/10/2022 00:00:00,175193.34,"67981","Schools - Local Authority","REDACTED DATA","COPPICE PRIMARY SCHOOL PAYROLL A/C","",,""
"London Borough of Redbridge","http://opendatacommunities.org/doc/london-borough-council/redbridge","9BNONBVO","Outside the BVACOP Objective Structure","9CNONBVO","Outside the BVACOP Objective Structure","CAP","Capital","C3103","Development of Hainault Forest Country Park (Capital)","99-NONBV","Capital, Balance Sheet and Control","50E","Capital - Contract Payments","9150","Main Contract","60502819","202307",18/10/2022 00:00:00,138957.39,"21555","Construction Contractors - General","REDACTED DATA","Buxton Building Contractors Ltd","2261235","http://opencorporates.com/companies/gb/2261235","997 3160 77"
"London Borough of Redbridge","http://opendatacommunities.org/doc/london-borough-council/redbridge","3BINDSCHFUND","Individual School Funds","3CDELPRIMARY","Delegated Individual Primary School Budgets","REV","Revenue","R3541","John Bramston Primary School","05-THIRD","Third Party Payments","05G","Other establishments","7451","LMS Bank Accounts Pilot","3712613","202307",27/10/2022 00:00:00,166336.5,"67981","Schools - Local Authority","REDACTED DATA","JOHN BRAMSTON PRIMARY SCHOOL NO2 PAYROLL ACCOUNT","",,""
"London Borough of Redbridge","http://opendatacommunities.org/doc/london-borough-council/redbridge","3BINDSCHFUND","Individual School Funds","3CDELPRIMARY","Delegated Individual Primary School Budgets","REV","Revenue","R3533","Glade Primary School","05-THIRD","Third Party Payments","05G","Other establishments","7451","LMS Bank Accounts Pilot","3712611","202307",27/10/2022 00:00:00,160776.82,"67981","Schools - Local Authority","REDACTED DATA","GLADE PRIMARY SCHOOL PAYROLL A/C","",,""
"London Borough of Redbridge","http://opendatacommunities.org/doc/london-borough-council/redbridge","5BGFHOUSING","General Fund Housing","5CHOMELESS","Homelessness","REV","Revenue","R5641","Uxbridge","05-THIRD","Third Party Payments","05H","Private contractors","6916","Leasing Payments To Landlords","70125714","202306",08/09/2022 00:00:00,154027.9,"61896","Property and Estate Management","REDACTED DATA","TOUCHSTONE CORPORATE PROPERTY SERVICES LTD RE: ANNINGTON RENT CLIENT ACCOUNT","3232852","http://opencorporates.com/companies/gb/3232852",""
"London Borough of Redbridge","http://opendatacommunities.org/doc/london-borough-council/redbridge","9BNONBVO","Outside the BVACOP Objective Structure","9CNONBVO","Outside the BVACOP Objective Structure","CAP","Capital","C4344","School Conditioning","99-NONBV","Capital, Balance Sheet and Control","50E","Capital - Contract Payments","9150","Main Contract","3709901","202307",31/08/2022 00:00:00,125600,"11040","Builders","REDACTED DATA","M & G CONSTRUCTION LTD.","1918880","http://opencorporates.com/companies/gb/1918880","406392853"
"London Borough of Redbridge","http://opendatacommunities.org/doc/london-borough-council/redbridge","3BINDSCHFUND","Individual School Funds","3CDELPRIMARY","Delegated Individual Primary School Budgets","REV","Revenue","R3519","Churchfields Infants' School","05-THIRD","Third Party Payments","05G","Other establishments","7451","LMS Bank Accounts Pilot","3712605","202307",27/10/2022 00:00:00,145193.63,"67981","Schools - Local Authority","REDACTED DATA","CHURCHFIELDS INFANT SCHOOL NURSERY UNIT PAYROLL ACCT","",,""
"London Borough of Redbridge","http://opendatacommunities.org/doc/london-borough-council/redbridge","3BINDSCHFUND","Individual School Funds","3CDELPRIMARY","Delegated Individual Primary School Budgets","REV","Revenue","R3532","Gilbert Colvin Primary School","05-THIRD","Third Party Payments","05G","Other establishments","7451","LMS Bank Accounts Pilot","3712610","202307",27/10/2022 00:00:00,142000,"67981","Schools - Local Authority","REDACTED DATA","GILBERT COLVIN PRIMARY SCHOOL PAYROLL ACCOUNT","",,""
"London Borough of Redbridge","http://opendatacommunities.org/doc/london-borough-council/redbridge","9BNONBVO","Outside the BVACOP Objective Structure","9CNONBVO","Outside the BVACOP Objective Structure","REV","Revenue","R5131","Repairs and Maintenance - MFS","02-PREMISES","Premises","02A","Repairs, alteration and maintenance of buildings","3026","Minor Maintenance","70125739","202307",31/08/2022 00:00:00,116705.59,"11371","Building Refurbishment and Restoration Contractors","REDACTED DATA","MEARS LTD","2519234","http://opencorporates.com/companies/gb/2519234","682002758"
"London Borough of Redbridge","http://opendatacommunities.org/doc/london-borough-council/redbridge","3BINDSCHFUND","Individual School Funds","3CDELPRIMARY","Delegated Individual Primary School Budgets","REV","Revenue","R3587","Al-Noor Primary School","05-THIRD","Third Party Payments","05G","Other establishments","7451","LMS Bank Accounts Pilot","3712622","202307",27/10/2022 00:00:00,139123.23,"67981","Schools - Local Authority","REDACTED DATA","AL NOOR VOLUNTARY AIDED PRIMARY SCHOOL","",,""
"London Borough of Redbridge","http://opendatacommunities.org/doc/london-borough-council/redbridge","9BNONBVO","Outside the BVACOP Objective Structure","9CNONBVO","Outside the BVACOP Objective Structure","REV","Revenue","R5131","Repairs and Maintenance - MFS","02-PREMISES","Premises","02A","Repairs, alteration and maintenance of buildings","3026","Minor Maintenance","70125736","202307",29/07/2022 00:00:00,107345.55,"11371","Building Refurbishment and Restoration Contractors","REDACTED DATA","MEARS LTD","2519234","http://opencorporates.com/companies/gb/2519234","682002758"
"London Borough of Redbridge","http://opendatacommunities.org/doc/london-borough-council/redbridge","3BLEACENTFND","LEA Centrally Held School Funds","3CNONSCH","Non Schools","REV","Revenue","R3327","The New Rush Hall School","05-THIRD","Third Party Payments","05G","Other establishments","7451","LMS Bank Accounts Pilot","3712625","202307",27/10/2022 00:00:00,125742.6,"67981","Schools - Local Authority","REDACTED DATA","NEW RUSH HALL SCHOOL PAYROLL A/C","",,"246546447"
"London Borough of Redbridge","http://opendatacommunities.org/doc/london-borough-council/redbridge","2BCULTUR&REL","Cultural & Related Services","2CREC&SPORT","Recreation & Sport","REV","Revenue","R6999","Leisure Client","05-THIRD","Third Party Payments","05H","Private contractors","6915","Contractor Payments","60502466","202307",05/10/2022 00:00:00,125000,"48583","Local Government","REDACTED DATA","VISION REDBRIDGE CULTURE AND LEISURE","6032714","http://opencorporates.com/companies/gb/6032714","906429031"
"London Borough of Redbridge","http://opendatacommunities.org/doc/london-borough-council/redbridge","3BINDSCHFUND","Individual School Funds","3CDELPRIMARY","Delegated Individual Primary School Budgets","REV","Revenue","R3549","Oakdale Juniors School","05-THIRD","Third Party Payments","05G","Other establishments","7451","LMS Bank Accounts Pilot","3712615","202307",27/10/2022 00:00:00,124275.21,"67981","Schools - Local Authority","REDACTED DATA","OAKDALE JUNIOR SCHOOL A/C NO2","",,""
"London Borough of Redbridge","http://opendatacommunities.org/doc/london-borough-council/redbridge","9BNONBVO","Outside the BVACOP Objective Structure","9CNONBVO","Outside the BVACOP Objective Structure","REV","Revenue","R5131","Repairs and Maintenance - MFS","02-PREMISES","Premises","02A","Repairs, alteration and maintenance of buildings","3029","Gas Safety (H&S)","70125701","202307",05/09/2022 00:00:00,85725.33,"11371","Building Refurbishment and Restoration Contractors","REDACTED DATA","MEARS LTD","2519234","http://opencorporates.com/companies/gb/2519234","682002758"
"London Borough of Redbridge","http://opendatacommunities.org/doc/london-borough-council/redbridge","9BNONBVO","Outside the BVACOP Objective Structure","9CNONBVO","Outside the BVACOP Objective Structure","REV","Revenue","R5131","Repairs and Maintenance - MFS","02-PREMISES","Premises","02A","Repairs, alteration and maintenance of buildings","3029","Gas Safety (H&S)","70125701","202307",05/09/2022 00:00:00,17037.53,"11371","Building Refurbishment and Restoration Contractors","REDACTED DATA","MEARS LTD","2519234","http://opencorporates.com/companies/gb/2519234","682002758"
"London Borough of Redbridge","http://opendatacommunities.org/doc/london-borough-council/redbridge","9BNONBVO","Outside the BVACOP Objective Structure","9CNONBVO","Outside the BVACOP Objective Structure","REV","Revenue","R5131","Repairs and Maintenance - MFS","02-PREMISES","Premises","02A","Repairs, alteration and maintenance of buildings","3048","Void Repairs","70125741","202307",31/08/2022 00:00:00,11344.77,"11371","Building Refurbishment and Restoration Contractors","REDACTED DATA","MEARS LTD","2519234","http://opencorporates.com/companies/gb/2519234","682002758"
"London Borough of Redbridge","http://opendatacommunities.org/doc/london-borough-council/redbridge","9BNONBVO","Outside the BVACOP Objective Structure","9CNONBVO","Outside the BVACOP Objective Structure","REV","Revenue","R5131","Repairs and Maintenance - MFS","02-PREMISES","Premises","02A","Repairs, alteration and maintenance of buildings","3048","Void Repairs","70125741","202307",31/08/2022 00:00:00,91148.48,"11371","Building Refurbishment and Restoration Contractors","REDACTED DATA","MEARS LTD","2519234","http://opencorporates.com/companies/gb/2519234","682002758"
"London Borough of Redbridge","http://opendatacommunities.org/doc/london-borough-council/redbridge","9BNONBVO","Outside the BVACOP Objective Structure","9CNONBVO","Outside the BVACOP Objective Structure","CAP","Capital","C4344","School Conditioning","99-NONBV","Capital, Balance Sheet and Control","50E","Capital - Contract Payments","9150","Main Contract","70125921","202307",05/10/2022 00:00:00,100658.04,"50275","Mechanical Engineers","REDACTED DATA","SJP MECHANICAL SERVICES LTD","1495029221","http://opencorporates.com/companies/gb/1495029221",""
"London Borough of Redbridge","http://opendatacommunities.org/doc/london-borough-council/redbridge","9BNONBVO","Outside the BVACOP Objective Structure","9CNONBVO","Outside the BVACOP Objective Structure","CAP","Capital","C2235","Crossrail Capital","99-NONBV","Capital, Balance Sheet and Control","50E","Capital - Contract Payments","9157","Footways & cycle tracks","3712211","202307",20/10/2022 00:00:00,100000,"18632","Civil Engineers","REDACTED DATA","KENSON CONTRACTORS BENINGTON LTD","1314691","http://opencorporates.com/companies/gb/1314691","301629589"
"London Borough of Redbridge","http://opendatacommunities.org/doc/london-borough-council/redbridge","3BINDSCHFUND","Individual School Funds","3CDELPRIMARY","Delegated Individual Primary School Budgets","REV","Revenue","R3548","Oakdale Infants' School","05-THIRD","Third Party Payments","05G","Other establishments","7451","LMS Bank Accounts Pilot","3712614","202307",27/10/2022 00:00:00,117624.9,"67981","Schools - Local Authority","REDACTED DATA","OAKDALE INFANTS SCHOOL A/C NO2","",,""
"London Borough of Redbridge","http://opendatacommunities.org/doc/london-borough-council/redbridge","3BINDSCHFUND","Individual School Funds","3CNONSCH","Non Schools","REV","Revenue","R2001","Secondary Schools SEN Top Up Fees","05-THIRD","Third Party Payments","05G","Other establishments","7430","LBR Pre 16 Top Up","3713715","202307",28/10/2022 00:00:00,116058.77,"67981","Schools - Local Authority","REDACTED DATA","THE FOREST ACADEMY","7835788","http://opencorporates.com/companies/gb/7835788",""
"London Borough of Redbridge","http://opendatacommunities.org/doc/london-borough-council/redbridge","3BLEACENTFND","LEA Centrally Held School Funds","3CNONSCH","Non Schools","REV","Revenue","R2231","Special School Top Up Fees","05-THIRD","Third Party Payments","05G","Other establishments","7430","LBR Pre 16 Top Up","3713731","202307",28/10/2022 00:00:00,109395.35,"90038","Expenses","REDACTED DATA","Astrum Multi Academy Trust T/A Hatchside School","",,""
"London Borough of Redbridge","http://opendatacommunities.org/doc/london-borough-council/redbridge","4BMANGT&SUPP","Management & Support Services","4CHIGHRDROUT","Highways/Roads (Routine)","REV","Revenue","R7064","Markings and Traffic Lights","05-THIRD","Third Party Payments","05E","Government departments","6751","Services Of Government Departments","60502010","202307",06/10/2022 00:00:00,109386.01,"48583","Local Government","REDACTED DATA","TFL SURFACE TRANSPORT","",,"756276990"
"London Borough of Redbridge","http://opendatacommunities.org/doc/london-borough-council/redbridge","9BNONBVO","Outside the BVACOP Objective Structure","9CNONBVO","Outside the BVACOP Objective Structure","CAP","Capital","C2116","Internal Housing","99-NONBV","Capital, Balance Sheet and Control","50E","Capital - Contract Payments","9150","Main Contract","60500854","202307",27/09/2022 00:00:00,82401.35,"21555","Construction Contractors - General","REDACTED DATA","GERDA SECURITY PRODUCTS LTD","3456399","http://opencorporates.com/companies/gb/3456399","700490572"
"London Borough of Redbridge","http://opendatacommunities.org/doc/london-borough-council/redbridge","5BGFHOUSING","General Fund Housing","5CHOMELESS","Homelessness","REV","Revenue","R5639","Rough Sleeping Initiatives","04-SUPPLIES","Supplies And Services","04H","Grants and subscriptions","5950","Grants","3713835","202307",01/07/2022 00:00:00,97527,"17020","Charities and Voluntary Organisations","REDACTED DATA","SINGLE HOMELESS PROJECT","1741926","http://opencorporates.com/companies/gb/1741926",""
"London Borough of Redbridge","http://opendatacommunities.org/doc/london-borough-council/redbridge","9BNONBVO","Outside the BVACOP Objective Structure","9CNONBVO","Outside the BVACOP Objective Structure","CAP","Capital","C4344","School Conditioning","99-NONBV","Capital, Balance Sheet and Control","50E","Capital - Contract Payments","9150","Main Contract","70125922","202307",10/10/2022 00:00:00,77566.34,"21555","Construction Contractors - General","REDACTED DATA","Longley Group Ltd","7633349","http://opencorporates.com/companies/gb/7633349","165771972"
"London Borough of Redbridge","http://opendatacommunities.org/doc/london-borough-council/redbridge","9BNONBVO","Outside the BVACOP Objective Structure","9CNONBVO","Outside the BVACOP Objective Structure","REV","Revenue","R0026","Collection Fund","05-THIRD","Third Party Payments","05E","Government departments","6283","Business Rate Supplement","60502052","202307",01/10/2022 00:00:00,88996,"48583","Local Government","REDACTED DATA","GREATER LONDON AUTHORITY","",,"GB743811731"
"London Borough of Redbridge","http://opendatacommunities.org/doc/london-borough-council/redbridge","2BENVIRONMEN","Environmental Services","2CWASTECOLLN","Waste Collection","REV","Revenue","R6151","Household Waste","05-THIRD","Third Party Payments","05H","Private contractors","6915","Contractor Payments","60502333","202307",01/10/2022 00:00:00,71260.37,"83380","Waste Disposal Services","REDACTED DATA","REDBRIDGE CIVIC SERVICES LTD","11841636","http://opencorporates.com/companies/gb/11841636","325311735"
"London Borough of Redbridge","http://opendatacommunities.org/doc/london-borough-council/redbridge","3BLEACENTFND","LEA Centrally Held School Funds","3CSCHSTRATMG","Schools Strategic Management","REV","Revenue","R3232","Eleven Plus","04-SUPPLIES","Supplies And Services","04A","Equipment, furniture and materials","5503","Equipment Rentals","60500440","202306",20/09/2022 00:00:00,71065,"33630","Facilities Management","REDACTED DATA","AD2000 PROPERTY SERVICES LTD","9508663","http://opencorporates.com/companies/gb/9508663","218096308"
"London Borough of Redbridge","http://opendatacommunities.org/doc/london-borough-council/redbridge","9BNONBVO","Outside the BVACOP Objective Structure","9CNONBVO","Outside the BVACOP Objective Structure","CAP","Capital","C4286","Cleveland Infant School","99-NONBV","Capital, Balance Sheet and Control","50B","Capital - Contracted Works","9044","Main Building Services","60503420","202307",24/10/2022 00:00:00,69635,"21555","Construction Contractors - General","REDACTED DATA","ENSIGNA CONSTRUCTION LTD","5771179","http://opencorporates.com/companies/gb/5771179","881866475"
"London Borough of Redbridge","http://opendatacommunities.org/doc/london-borough-council/redbridge","9BNONBVO","Outside the BVACOP Objective Structure","9CNONBVO","Outside the BVACOP Objective Structure","CAP","Capital","C4344","School Conditioning","99-NONBV","Capital, Balance Sheet and Control","50E","Capital - Contract Payments","9150","Main Contract","70126034","202307",17/10/2022 00:00:00,64853.94,"65470","Roofing Services","REDACTED DATA","CWG ROOFING LTD","6688404","http://opencorporates.com/companies/gb/6688404","945262612"
"London Borough of Redbridge","http://opendatacommunities.org/doc/london-borough-council/redbridge","9BNONBVO","Outside the BVACOP Objective Structure","9CNONBVO","Outside the BVACOP Objective Structure","CAP","Capital","C4344","School Conditioning","99-NONBV","Capital, Balance Sheet and Control","50E","Capital - Contract Payments","9150","Main Contract","70126032","202307",17/10/2022 00:00:00,63740.38,"65470","Roofing Services","REDACTED DATA","CWG ROOFING LTD","6688404","http://opencorporates.com/companies/gb/6688404","945262612"
"London Borough of Redbridge","http://opendatacommunities.org/doc/london-borough-council/redbridge","9BNONBVO","Outside the BVACOP Objective Structure","9CNONBVO","Outside the BVACOP Objective Structure","CAP","Capital","C2108","Aids and Adaptations","99-NONBV","Capital, Balance Sheet and Control","50E","Capital - Contract Payments","9150","Main Contract","60503584","202307",24/09/2022 00:00:00,60950.12,"11400","Building Services","REDACTED DATA","ATLANTIC BUILDERS UK LTD","5559317","http://opencorporates.com/companies/gb/5559317","108686688"
"London Borough of Redbridge","http://opendatacommunities.org/doc/london-borough-council/redbridge","3BNONSCHFUND","Non-School Funding","6CCHILLOOKED","Children Looked After","REV","Revenue","R2238","Looked After Children Placements LA","05-THIRD","Third Party Payments","05H","Private contractors","6907","Private Homes","60500740","202306",26/09/2022 00:00:00,70501.14,"48583","Local Government","REDACTED DATA","LONDON BOROUGH OF HAVERING","",,"246347944"
"London Borough of Redbridge","http://opendatacommunities.org/doc/london-borough-council/redbridge","6BPUBHEALTH","Public Health","6CSMOKING","Smoking and Tobacco","REV","Revenue","R4818","Stop Smoking Service & Interventions","05-THIRD","Third Party Payments","05F","Voluntary associations","6800","Voluntary Organisations","60501652","202307",03/10/2022 00:00:00,58471.58,"42200","Health Authorities","REDACTED DATA","EVERYONE HEALTH LTD","4215584","http://opencorporates.com/companies/gb/4215584","799386347"
"London Borough of Redbridge","http://opendatacommunities.org/doc/london-borough-council/redbridge","2BENVIRONMEN","Environmental Services","2CENVTLHEALT","Environmental Health","REV","Revenue","R6814","VAWG","04-SUPPLIES","Supplies And Services","04K","Miscellaneous expenses","6263","Supportive Activities","60502513","202307",11/10/2022 00:00:00,70000,"17020","Charities and Voluntary Organisations","REDACTED DATA","REFUGE","1412276","http://opencorporates.com/companies/gb/1412276",""
"London Borough of Redbridge","http://opendatacommunities.org/doc/london-borough-council/redbridge","2BENVIRONMEN","Environmental Services","2CENVTLHEALT","Environmental Health","REV","Revenue","R6814","VAWG","04-SUPPLIES","Supplies And Services","04K","Miscellaneous expenses","6263","Supportive Activities","60502514","202307",11/10/2022 00:00:00,70000,"17020","Charities and Voluntary Organisations","REDACTED DATA","REFUGE","1412276","http://opencorporates.com/companies/gb/1412276",""
"London Borough of Redbridge","http://opendatacommunities.org/doc/london-borough-council/redbridge","6BADULTSOCIA","Adult Social Care","6CADMENHLTH","Adults Under 65 with Mental Health Needs","REV","Revenue","R4392","MH Voluntary Contracts","05-THIRD","Third Party Payments","05F","Voluntary associations","6800","Voluntary Organisations","91352817","202307",30/09/2022 00:00:00,69548.71,"17020","Charities and Voluntary Organisations","REDACTED DATA","IMAGINE INDEPENDENCE","2699682","http://opencorporates.com/companies/gb/2699682",""
"London Borough of Redbridge","http://opendatacommunities.org/doc/london-borough-council/redbridge","5BGFHOUSING","General Fund Housing","5CHOUSADVICE","Housing Advice","REV","Revenue","R5616","Rough Sleeper Projects","04-SUPPLIES","Supplies And Services","04H","Grants and subscriptions","5950","Grants","3713834","202307",01/07/2022 00:00:00,68831,"17020","Charities and Voluntary Organisations","REDACTED DATA","SINGLE HOMELESS PROJECT","1741926","http://opencorporates.com/companies/gb/1741926",""
"London Borough of Redbridge","http://opendatacommunities.org/doc/london-borough-council/redbridge","2BENVIRONMEN","Environmental Services","2CENVTLHEALT","Environmental Health","REV","Revenue","R6750","Pollution","04-SUPPLIES","Supplies And Services","04K","Miscellaneous expenses","6251","Resource Fund","60502083","202307",26/09/2022 00:00:00,56589.85,"11280","Building Consultants","REDACTED DATA","E.ON Energy Solutions Lmited","3407430","http://opencorporates.com/companies/gb/3407430","GB 559097889"
"London Borough of Redbridge","http://opendatacommunities.org/doc/london-borough-council/redbridge","3BNONSCHFUND","Non-School Funding","6CCHILLOOKED","Children Looked After","REV","Revenue","R2238","Looked After Children Placements LA","05-THIRD","Third Party Payments","05H","Private contractors","6907","Private Homes","60500617","202306",02/09/2022 00:00:00,56087.1,"17780","Children's Homes","REDACTED DATA","A Wilderness Way Group Limited","12664540","http://opencorporates.com/companies/gb/12664540","395 9327 42"
"London Borough of Redbridge","http://opendatacommunities.org/doc/london-borough-council/redbridge","9BNONBVO","Outside the BVACOP Objective Structure","9CNONBVO","Outside the BVACOP Objective Structure","CAP","Capital","C4344","School Conditioning","99-NONBV","Capital, Balance Sheet and Control","50E","Capital - Contract Payments","9150","Main Contract","70126033","202307",17/10/2022 00:00:00,52745.33,"65470","Roofing Services","REDACTED DATA","CWG ROOFING LTD","6688404","http://opencorporates.com/companies/gb/6688404","945262612"
"London Borough of Redbridge","http://opendatacommunities.org/doc/london-borough-council/redbridge","9BNONBVO","Outside the BVACOP Objective Structure","9CNONBVO","Outside the BVACOP Objective Structure","REV","Revenue","R7705","Fuel Service","03-TRANSPORT","Transport","03A","Direct - transport costs","5006","Diesel Oil","60503312","202307",14/10/2022 00:00:00,52566.5,"38120","Fuel Dealers","REDACTED DATA","CERTAS ENERGY UK LTD","4168225","http://opencorporates.com/companies/gb/4168225","844283419"
"London Borough of Redbridge","http://opendatacommunities.org/doc/london-borough-council/redbridge","3BINDSCHFUND","Individual School Funds","3CNONSCH","Non Schools","REV","Revenue","R2001","Secondary Schools SEN Top Up Fees","05-THIRD","Third Party Payments","05G","Other establishments","7430","LBR Pre 16 Top Up","3709813","202307",05/10/2022 00:00:00,61075.85,"67981","Schools - Local Authority","REDACTED DATA","BEACON MULTI ACADEMY TRUST LTD","",,"246546447"
"London Borough of Redbridge","http://opendatacommunities.org/doc/london-borough-council/redbridge","3BLEACENTFND","LEA Centrally Held School Funds","3CNONSCH","Non Schools","REV","Revenue","R2010","Spec Transport LEA","03-TRANSPORT","Transport","03A","Direct - transport costs","5207","School Support - Contractors (Children Services)","60503058","202307",12/10/2022 00:00:00,36368.5,"31230","Employment and Recruitment Agencies","REDACTED DATA","ACCESS UK LTD T/AS ADAM","2343760","http://opencorporates.com/companies/gb/2343760","GB 108 2213 56"
"London Borough of Redbridge","http://opendatacommunities.org/doc/london-borough-council/redbridge","3BLEACENTFND","LEA Centrally Held School Funds","3CNONSCH","Non Schools","REV","Revenue","R2011","Prim School Transport LEA","03-TRANSPORT","Transport","03A","Direct - transport costs","5207","School Support - Contractors (Children Services)","60503058","202307",12/10/2022 00:00:00,6559,"31230","Employment and Recruitment Agencies","REDACTED DATA","ACCESS UK LTD T/AS ADAM","2343760","http://opencorporates.com/companies/gb/2343760","GB 108 2213 56"
"London Borough of Redbridge","http://opendatacommunities.org/doc/london-borough-council/redbridge","3BLEACENTFND","LEA Centrally Held School Funds","3CNONSCH","Non Schools","REV","Revenue","R2012","Sec School Transport LEA","03-TRANSPORT","Transport","03A","Direct - transport costs","5207","School Support - Contractors (Children Services)","60503058","202307",12/10/2022 00:00:00,3032,"31230","Employment and Recruitment Agencies","REDACTED DATA","ACCESS UK LTD T/AS ADAM","2343760","http://opencorporates.com/companies/gb/2343760","GB 108 2213 56"
"London Borough of Redbridge","http://opendatacommunities.org/doc/london-borough-council/redbridge","5BGFHOUSING","General Fund Housing","5CHOMELESS","Homelessness","REV","Revenue","R5630","HAC Temporary Accomodation","05-THIRD","Third Party Payments","05H","Private contractors","6900","Nightly Let Plus Charges","3710081","202307",02/10/2022 00:00:00,855,"31230","Employment and Recruitment Agencies","REDACTED DATA","ACCESS UK LTD T/AS ADAM","2343760","http://opencorporates.com/companies/gb/2343760","GB 108 2213 56"
"London Borough of Redbridge","http://opendatacommunities.org/doc/london-borough-council/redbridge","5BGFHOUSING","General Fund Housing","5CHOMELESS","Homelessness","REV","Revenue","R5630","HAC Temporary Accomodation","05-THIRD","Third Party Payments","05H","Private contractors","6900","Nightly Let Plus Charges","3710081","202307",02/10/2022 00:00:00,0,"31230","Employment and Recruitment Agencies","REDACTED DATA","ACCESS UK LTD T/AS ADAM","2343760","http://opencorporates.com/companies/gb/2343760","GB 108 2213 56"
"London Borough of Redbridge","http://opendatacommunities.org/doc/london-borough-council/redbridge","5BGFHOUSING","General Fund Housing","5CHOMELESS","Homelessness","REV","Revenue","R5630","HAC Temporary Accomodation","05-THIRD","Third Party Payments","05H","Private contractors","6900","Nightly Let Plus Charges","3710081","202307",02/10/2022 00:00:00,0,"31230","Employment and Recruitment Agencies","REDACTED DATA","ACCESS UK LTD T/AS ADAM","2343760","http://opencorporates.com/companies/gb/2343760","GB 108 2213 56"
"London Borough of Redbridge","http://opendatacommunities.org/doc/london-borough-council/redbridge","5BGFHOUSING","General Fund Housing","5CHOMELESS","Homelessness","REV","Revenue","R5630","HAC Temporary Accomodation","05-THIRD","Third Party Payments","05H","Private contractors","6900","Nightly Let Plus Charges","3710081","202307",02/10/2022 00:00:00,0,"31230","Employment and Recruitment Agencies","REDACTED DATA","ACCESS UK LTD T/AS ADAM","2343760","http://opencorporates.com/companies/gb/2343760","GB 108 2213 56"
"London Borough of Redbridge","http://opendatacommunities.org/doc/london-borough-council/redbridge","5BGFHOUSING","General Fund Housing","5CHOMELESS","Homelessness","REV","Revenue","R5630","HAC Temporary Accomodation","05-THIRD","Third Party Payments","05H","Private contractors","6900","Nightly Let Plus Charges","3710081","202307",02/10/2022 00:00:00,1050,"31230","Employment and Recruitment Agencies","REDACTED DATA","ACCESS UK LTD T/AS ADAM","2343760","http://opencorporates.com/companies/gb/2343760","GB 108 2213 56"
"London Borough of Redbridge","http://opendatacommunities.org/doc/london-borough-council/redbridge","5BGFHOUSING","General Fund Housing","5CHOMELESS","Homelessness","REV","Revenue","R5630","HAC Temporary Accomodation","05-THIRD","Third Party Payments","05H","Private contractors","6900","Nightly Let Plus Charges","3710081","202307",02/10/2022 00:00:00,0,"31230","Employment and Recruitment Agencies","REDACTED DATA","ACCESS UK LTD T/AS ADAM","2343760","http://opencorporates.com/companies/gb/2343760","GB 108 2213 56"
"London Borough of Redbridge","http://opendatacommunities.org/doc/london-borough-council/redbridge","5BGFHOUSING","General Fund Housing","5CHOMELESS","Homelessness","REV","Revenue","R5630","HAC Temporary Accomodation","05-THIRD","Third Party Payments","05H","Private contractors","6900","Nightly Let Plus Charges","3710081","202307",02/10/2022 00:00:00,1140,"31230","Employment and Recruitment Agencies","REDACTED DATA","ACCESS UK LTD T/AS ADAM","2343760","http://opencorporates.com/companies/gb/2343760","GB 108 2213 56"
"London Borough of Redbridge","http://opendatacommunities.org/doc/london-borough-council/redbridge","5BGFHOUSING","General Fund Housing","5CHOMELESS","Homelessness","REV","Revenue","R5630","HAC Temporary Accomodation","05-THIRD","Third Party Payments","05H","Private contractors","6900","Nightly Let Plus Charges","3710081","202307",02/10/2022 00:00:00,0,"31230","Employment and Recruitment Agencies","REDACTED DATA","ACCESS UK LTD T/AS ADAM","2343760","http://opencorporates.com/companies/gb/2343760","GB 108 2213 56"
"London Borough of Redbridge","http://opendatacommunities.org/doc/london-borough-council/redbridge","5BGFHOUSING","General Fund Housing","5CHOMELESS","Homelessness","REV","Revenue","R5630","HAC Temporary Accomodation","05-THIRD","Third Party Payments","05H","Private contractors","6900","Nightly Let Plus Charges","3710081","202307",02/10/2022 00:00:00,855,"31230","Employment and Recruitment Agencies","REDACTED DATA","ACCESS UK LTD T/AS ADAM","2343760","http://opencorporates.com/companies/gb/2343760","GB 108 2213 56"
"London Borough of Redbridge","http://opendatacommunities.org/doc/london-borough-council/redbridge","5BGFHOUSING","General Fund Housing","5CHOMELESS","Homelessness","REV","Revenue","R5630","HAC Temporary Accomodation","05-THIRD","Third Party Payments","05H","Private contractors","6900","Nightly Let Plus Charges","3710081","202307",02/10/2022 00:00:00,0,"31230","Employment and Recruitment Agencies","REDACTED DATA","ACCESS UK LTD T/AS ADAM","2343760","http://opencorporates.com/companies/gb/2343760","GB 108 2213 56"
"London Borough of Redbridge","http://opendatacommunities.org/doc/london-borough-council/redbridge","5BGFHOUSING","General Fund Housing","5CHOMELESS","Homelessness","REV","Revenue","R5630","HAC Temporary Accomodation","05-THIRD","Third Party Payments","05H","Private contractors","6900","Nightly Let Plus Charges","3710081","202307",02/10/2022 00:00:00,855,"31230","Employment and Recruitment Agencies","REDACTED DATA","ACCESS UK LTD T/AS ADAM","2343760","http://opencorporates.com/companies/gb/2343760","GB 108 2213 56"
"London Borough of Redbridge","http://opendatacommunities.org/doc/london-borough-council/redbridge","3BLEACENTFND","LEA Centrally Held School Funds","3CNONSCH","Non Schools","REV","Revenue","R2215","SEN Student Transport","03-TRANSPORT","Transport","03A","Direct - transport costs","5207","School Support - Contractors (Children Services)","60503058","202307",12/10/2022 00:00:00,5250,"31230","Employment and Recruitment Agencies","REDACTED DATA","ACCESS UK LTD T/AS ADAM","2343760","http://opencorporates.com/companies/gb/2343760","GB 108 2213 56"
"London Borough of Redbridge","http://opendatacommunities.org/doc/london-borough-council/redbridge","9BNONBVO","Outside the BVACOP Objective Structure","9CNONBVO","Outside the BVACOP Objective Structure","CAP","Capital","C4344","School Conditioning","99-NONBV","Capital, Balance Sheet and Control","50E","Capital - Contract Payments","9150","Main Contract","70125920","202307",04/10/2022 00:00:00,50509.63,"65470","Roofing Services","REDACTED DATA","THAMESIDE ROOFING LTD","7962341","http://opencorporates.com/companies/gb/7962341","134137342"
"London Borough of Redbridge","http://opendatacommunities.org/doc/london-borough-council/redbridge","9BNONBVO","Outside the BVACOP Objective Structure","9CNONBVO","Outside the BVACOP Objective Structure","CAP","Capital","C4344","School Conditioning","99-NONBV","Capital, Balance Sheet and Control","50E","Capital - Contract Payments","9150","Main Contract","3712767","202307",13/09/2022 00:00:00,50441.51,"85744","Energy Efficient Products and Services","REDACTED DATA","Smart Electronic Technologies","4437964","http://opencorporates.com/companies/gb/4437964","799523566"
"London Borough of Redbridge","http://opendatacommunities.org/doc/london-borough-council/redbridge","6BADULTSOCIA","Adult Social Care","6CLONGT1864","Long-Term Support 18 - 64 Years","REV","Revenue","R4437","Learning Disabilities - Cranbrook & Loxford","06-TRANSFER","Transfer Payments","06B","Social Services Clients","7066","Supported Living","91355740","202307",30/09/2022 00:00:00,2687.14,"64710","Residential Care Homes","REDACTED DATA","TLC CARE HOMES LTD","3193730","http://opencorporates.com/companies/gb/3193730",""
"London Borough of Redbridge","http://opendatacommunities.org/doc/london-borough-council/redbridge","6BADULTSOCIA","Adult Social Care","6CLONGT1864","Long-Term Support 18 - 64 Years","REV","Revenue","R4437","Learning Disabilities - Cranbrook & Loxford","06-TRANSFER","Transfer Payments","06B","Social Services Clients","7066","Supported Living","91355740","202307",30/09/2022 00:00:00,8330.14,"64710","Residential Care Homes","REDACTED DATA","TLC CARE HOMES LTD","3193730","http://opencorporates.com/companies/gb/3193730",""
"London Borough of Redbridge","http://opendatacommunities.org/doc/london-borough-council/redbridge","6BADULTSOCIA","Adult Social Care","6CLONGT1864","Long-Term Support 18 - 64 Years","REV","Revenue","R4437","Learning Disabilities - Cranbrook & Loxford","06-TRANSFER","Transfer Payments","06B","Social Services Clients","7066","Supported Living","91355740","202307",30/09/2022 00:00:00,49276.83,"64710","Residential Care Homes","REDACTED DATA","TLC CARE HOMES LTD","3193730","http://opencorporates.com/companies/gb/3193730",""
"London Borough of Redbridge","http://opendatacommunities.org/doc/london-borough-council/redbridge","9BNONBVO","Outside the BVACOP Objective Structure","9CNONBVO","Outside the BVACOP Objective Structure","REV","Revenue","R7705","Fuel Service","03-TRANSPORT","Transport","03A","Direct - transport costs","5006","Diesel Oil","60503218","202307",29/09/2022 00:00:00,48526.18,"38120","Fuel Dealers","REDACTED DATA","CERTAS ENERGY UK LTD","4168225","http://opencorporates.com/companies/gb/4168225","844283419"
"London Borough of Redbridge","http://opendatacommunities.org/doc/london-borough-council/redbridge","5BGFHOUSING","General Fund Housing","5CHOMELESS","Homelessness","REV","Revenue","R5639","Rough Sleeping Initiatives","04-SUPPLIES","Supplies And Services","04H","Grants and subscriptions","5950","Grants","3713833","202307",01/07/2022 00:00:00,58188,"17020","Charities and Voluntary Organisations","REDACTED DATA","SINGLE HOMELESS PROJECT","1741926","http://opencorporates.com/companies/gb/1741926",""
"London Borough of Redbridge","http://opendatacommunities.org/doc/london-borough-council/redbridge","9BNONBVO","Outside the BVACOP Objective Structure","9CNONBVO","Outside the BVACOP Objective Structure","REV","Revenue","R7705","Fuel Service","03-TRANSPORT","Transport","03A","Direct - transport costs","5006","Diesel Oil","60502931","202307",23/09/2022 00:00:00,48255.35,"38120","Fuel Dealers","REDACTED DATA","CERTAS ENERGY UK LTD","4168225","http://opencorporates.com/companies/gb/4168225","844283419"
"London Borough of Redbridge","http://opendatacommunities.org/doc/london-borough-council/redbridge","6BADULTSOCIA","Adult Social Care","6CADPHYSDIS","Adults Under 65 with Phys Disab or Sensory Impair","REV","Revenue","R4406","PD Voluntary Contracts","05-THIRD","Third Party Payments","05F","Voluntary associations","6800","Voluntary Organisations","91355906","202307",30/09/2022 00:00:00,47386.31,"25820","Disability and Special Needs - Services","REDACTED DATA","Sensory Specialists Ltd","13526978","http://opencorporates.com/companies/gb/13526978","397992216"
"London Borough of Redbridge","http://opendatacommunities.org/doc/london-borough-council/redbridge","3BINDSCHFUND","Individual School Funds","3CNONSCH","Non Schools","REV","Revenue","R2001","Secondary Schools SEN Top Up Fees","05-THIRD","Third Party Payments","05G","Other establishments","7430","LBR Pre 16 Top Up","3713718","202307",28/10/2022 00:00:00,56767.38,"67981","Schools - Local Authority","REDACTED DATA","LOXFORD SCHOOL TRUST LTD","8743560","http://opencorporates.com/companies/gb/8743560","246546447"
"London Borough of Redbridge","http://opendatacommunities.org/doc/london-borough-council/redbridge","5BGFHOUSING","General Fund Housing","5CHOMELESS","Homelessness","REV","Revenue","R5630","HAC Temporary Accomodation","05-THIRD","Third Party Payments","05H","Private contractors","6900","Nightly Let Plus Charges","3710081","202307",02/10/2022 00:00:00,0,"31230","Employment and Recruitment Agencies","REDACTED DATA","ACCESS UK LTD T/AS ADAM","2343760","http://opencorporates.com/companies/gb/2343760","GB 108 2213 56"
"London Borough of Redbridge","http://opendatacommunities.org/doc/london-borough-council/redbridge","5BGFHOUSING","General Fund Housing","5CHOMELESS","Homelessness","REV","Revenue","R5630","HAC Temporary Accomodation","05-THIRD","Third Party Payments","05H","Private contractors","6900","Nightly Let Plus Charges","3710081","202307",02/10/2022 00:00:00,772.2,"31230","Employment and Recruitment Agencies","REDACTED DATA","ACCESS UK LTD T/AS ADAM","2343760","http://opencorporates.com/companies/gb/2343760","GB 108 2213 56"
"London Borough of Redbridge","http://opendatacommunities.org/doc/london-borough-council/redbridge","5BGFHOUSING","General Fund Housing","5CHOMELESS","Homelessness","REV","Revenue","R5630","HAC Temporary Accomodation","05-THIRD","Third Party Payments","05H","Private contractors","6900","Nightly Let Plus Charges","3710081","202307",02/10/2022 00:00:00,0,"31230","Employment and Recruitment Agencies","REDACTED DATA","ACCESS UK LTD T/AS ADAM","2343760","http://opencorporates.com/companies/gb/2343760","GB 108 2213 56"
"London Borough of Redbridge","http://opendatacommunities.org/doc/london-borough-council/redbridge","5BGFHOUSING","General Fund Housing","5CHOMELESS","Homelessness","REV","Revenue","R5630","HAC Temporary Accomodation","05-THIRD","Third Party Payments","05H","Private contractors","6900","Nightly Let Plus Charges","3710081","202307",02/10/2022 00:00:00,0,"31230","Employment and Recruitment Agencies","REDACTED DATA","ACCESS UK LTD T/AS ADAM","2343760","http://opencorporates.com/companies/gb/2343760","GB 108 2213 56"
"London Borough of Redbridge","http://opendatacommunities.org/doc/london-borough-council/redbridge","5BGFHOUSING","General Fund Housing","5CHOMELESS","Homelessness","REV","Revenue","R5630","HAC Temporary Accomodation","05-THIRD","Third Party Payments","05H","Private contractors","6900","Nightly Let Plus Charges","3710081","202307",02/10/2022 00:00:00,0,"31230","Employment and Recruitment Agencies","REDACTED DATA","ACCESS UK LTD T/AS ADAM","2343760","http://opencorporates.com/companies/gb/2343760","GB 108 2213 56"
"London Borough of Redbridge","http://opendatacommunities.org/doc/london-borough-council/redbridge","5BGFHOUSING","General Fund Housing","5CHOMELESS","Homelessness","REV","Revenue","R5630","HAC Temporary Accomodation","05-THIRD","Third Party Payments","05H","Private contractors","6900","Nightly Let Plus Charges","3710081","202307",02/10/2022 00:00:00,1080,"31230","Employment and Recruitment Agencies","REDACTED DATA","ACCESS UK LTD T/AS ADAM","2343760","http://opencorporates.com/companies/gb/2343760","GB 108 2213 56"
"London Borough of Redbridge","http://opendatacommunities.org/doc/london-borough-council/redbridge","5BGFHOUSING","General Fund Housing","5CHOMELESS","Homelessness","REV","Revenue","R5630","HAC Temporary Accomodation","05-THIRD","Third Party Payments","05H","Private contractors","6900","Nightly Let Plus Charges","3710081","202307",02/10/2022 00:00:00,855,"31230","Employment and Recruitment Agencies","REDACTED DATA","ACCESS UK LTD T/AS ADAM","2343760","http://opencorporates.com/companies/gb/2343760","GB 108 2213 56"
"London Borough of Redbridge","http://opendatacommunities.org/doc/london-borough-council/redbridge","5BGFHOUSING","General Fund Housing","5CHOMELESS","Homelessness","REV","Revenue","R5630","HAC Temporary Accomodation","05-THIRD","Third Party Payments","05H","Private contractors","6900","Nightly Let Plus Charges","3710081","202307",02/10/2022 00:00:00,0,"31230","Employment and Recruitment Agencies","REDACTED DATA","ACCESS UK LTD T/AS ADAM","2343760","http://opencorporates.com/companies/gb/2343760","GB 108 2213 56"
"London Borough of Redbridge","http://opendatacommunities.org/doc/london-borough-council/redbridge","5BGFHOUSING","General Fund Housing","5CHOMELESS","Homelessness","REV","Revenue","R5630","HAC Temporary Accomodation","05-THIRD","Third Party Payments","05H","Private contractors","6900","Nightly Let Plus Charges","3710081","202307",02/10/2022 00:00:00,1230,"31230","Employment and Recruitment Agencies","REDACTED DATA","ACCESS UK LTD T/AS ADAM","2343760","http://opencorporates.com/companies/gb/2343760","GB 108 2213 56"
"London Borough of Redbridge","http://opendatacommunities.org/doc/london-borough-council/redbridge","5BGFHOUSING","General Fund Housing","5CHOMELESS","Homelessness","REV","Revenue","R5630","HAC Temporary Accomodation","05-THIRD","Third Party Payments","05H","Private contractors","6900","Nightly Let Plus Charges","3710081","202307",02/10/2022 00:00:00,0,"31230","Employment and Recruitment Agencies","REDACTED DATA","ACCESS UK LTD T/AS ADAM","2343760","http://opencorporates.com/companies/gb/2343760","GB 108 2213 56"
"London Borough of Redbridge","http://opendatacommunities.org/doc/london-borough-council/redbridge","5BGFHOUSING","General Fund Housing","5CHOMELESS","Homelessness","REV","Revenue","R5630","HAC Temporary Accomodation","05-THIRD","Third Party Payments","05H","Private contractors","6900","Nightly Let Plus Charges","3710081","202307",02/10/2022 00:00:00,855,"31230","Employment and Recruitment Agencies","REDACTED DATA","ACCESS UK LTD T/AS ADAM","2343760","http://opencorporates.com/companies/gb/2343760","GB 108 2213 56"
"London Borough of Redbridge","http://opendatacommunities.org/doc/london-borough-council/redbridge","9BNONBVO","Outside the BVACOP Objective Structure","9CNONBVO","Outside the BVACOP Objective Structure","CAP","Capital","C1041","Corporate Capital Maintenance","99-NONBV","Capital, Balance Sheet and Control","50E","Capital - Contract Payments","9150","Main Contract","3711034","202307",31/08/2022 00:00:00,0,"65470","Roofing Services","REDACTED DATA","THAMESIDE ROOFING LTD","7962341","http://opencorporates.com/companies/gb/7962341","134137342"
"London Borough of Redbridge","http://opendatacommunities.org/doc/london-borough-council/redbridge","9BNONBVO","Outside the BVACOP Objective Structure","9CNONBVO","Outside the BVACOP Objective Structure","CAP","Capital","C1041","Corporate Capital Maintenance","99-NONBV","Capital, Balance Sheet and Control","50E","Capital - Contract Payments","9150","Main Contract","3711034","202307",31/08/2022 00:00:00,47238.32,"65470","Roofing Services","REDACTED DATA","THAMESIDE ROOFING LTD","7962341","http://opencorporates.com/companies/gb/7962341","134137342"
"London Borough of Redbridge","http://opendatacommunities.org/doc/london-borough-council/redbridge","2BPLAN&DEVEL","Planning & Development Services","2CCOMMDEVT","Community Development","REV","Revenue","R9854","Voluntary Sector Support","05-THIRD","Third Party Payments","05C","Other local authorities","6651","London Council Grants Scheme","60501561","202307",03/10/2022 00:00:00,56600,"48583","Local Government","REDACTED DATA","CITY OF LONDON(LONDON COUNCILS)","",,"766069205"
"London Borough of Redbridge","http://opendatacommunities.org/doc/london-borough-council/redbridge","3BINDSCHFUND","Individual School Funds","3CFACILIMPRO","Facilitating School Improvement","REV","Revenue","R3433","Research & Data","04-SUPPLIES","Supplies And Services","04H","Grants and subscriptions","5956","Subscriptions","60502828","202307",18/10/2022 00:00:00,46604.02,"32415","Environmental Consultants","REDACTED DATA","THE KEY SUPPORT SERVICES LTD","8268303","http://opencorporates.com/companies/gb/8268303","185442884"
"London Borough of Redbridge","http://opendatacommunities.org/doc/london-borough-council/redbridge","3BLEACENTFND","LEA Centrally Held School Funds","3CNONSCH","Non Schools","REV","Revenue","R2231","Special School Top Up Fees","05-THIRD","Third Party Payments","05G","Other establishments","7430","LBR Pre 16 Top Up","3709831","202307",05/10/2022 00:00:00,54950.9,"90038","Expenses","REDACTED DATA","Astrum Multi Academy Trust T/A Hatchside School","",,""
"London Borough of Redbridge","http://opendatacommunities.org/doc/london-borough-council/redbridge","4BMANGT&SUPP","Management & Support Services","4CHIGHRDROUT","Highways/Roads (Routine)","REV","Revenue","R7064","Markings and Traffic Lights","05-THIRD","Third Party Payments","05H","Private contractors","6915","Contractor Payments","3710956","202307",06/10/2022 00:00:00,45209.99,"18632","Civil Engineers","REDACTED DATA","KENSON CONTRACTORS BENINGTON LTD","1314691","http://opencorporates.com/companies/gb/1314691","301629589"
"London Borough of Redbridge","http://opendatacommunities.org/doc/london-borough-council/redbridge","9BNONBVO","Outside the BVACOP Objective Structure","9CNONBVO","Outside the BVACOP Objective Structure","CAP","Capital","C2106","External","99-NONBV","Capital, Balance Sheet and Control","50E","Capital - Contract Payments","9150","Main Contract","60500950","202307",08/09/2022 00:00:00,44539.01,"21555","Construction Contractors - General","REDACTED DATA","Quill Construction Limited","3806388","http://opencorporates.com/companies/gb/3806388","740199924"
"London Borough of Redbridge","http://opendatacommunities.org/doc/london-borough-council/redbridge","3BLEACENTFND","LEA Centrally Held School Funds","3CNONSCH","Non Schools","REV","Revenue","R3335","Pupil Premium Y7 and PE Grants","05-THIRD","Third Party Payments","05G","Other establishments","7451","LMS Bank Accounts Pilot","3712047","202307",11/10/2022 00:00:00,53190,"67981","Schools - Local Authority","REDACTED DATA","KING SOLOMON HIGH SCHOOL A/C","",,""
"London Borough of Redbridge","http://opendatacommunities.org/doc/london-borough-council/redbridge","1BOTHEROPI&E","Other Operating Income & Expenditure","1CTRADSURDEF","Trading Account Surpluses & Deficits","REV","Revenue","R9051","Strategic Procurement","05-THIRD","Third Party Payments","05H","Private contractors","6915","Contractor Payments","60503539","202307",26/10/2022 00:00:00,44250,"48583","Local Government","REDACTED DATA","LONDON BOROUGH OF WALTHAM FOREST","",,"248212866"
"London Borough of Redbridge","http://opendatacommunities.org/doc/london-borough-council/redbridge","1BOTHEROPI&E","Other Operating Income & Expenditure","1CTRADSURDEF","Trading Account Surpluses & Deficits","REV","Revenue","R9051","Strategic Procurement","05-THIRD","Third Party Payments","05H","Private contractors","6915","Contractor Payments","60501367","202307",27/09/2022 00:00:00,44250,"48583","Local Government","REDACTED DATA","LONDON BOROUGH OF WALTHAM FOREST","",,"248212866"
"London Borough of Redbridge","http://opendatacommunities.org/doc/london-borough-council/redbridge","1BOTHEROPI&E","Other Operating Income & Expenditure","1CTRADSURDEF","Trading Account Surpluses & Deficits","REV","Revenue","R9051","Strategic Procurement","05-THIRD","Third Party Payments","05H","Private contractors","6915","Contractor Payments","60501401","202307",16/09/2022 00:00:00,44250,"48583","Local Government","REDACTED DATA","LONDON BOROUGH OF WALTHAM FOREST","",,"248212866"
"London Borough of Redbridge","http://opendatacommunities.org/doc/london-borough-council/redbridge","9BNONBVO","Outside the BVACOP Objective Structure","9CNONBVO","Outside the BVACOP Objective Structure","CAP","Capital","C2116","Internal Housing","99-NONBV","Capital, Balance Sheet and Control","50E","Capital - Contract Payments","9150","Main Contract","60500855","202307",27/09/2022 00:00:00,43999.19,"21555","Construction Contractors - General","REDACTED DATA","GERDA SECURITY PRODUCTS LTD","3456399","http://opencorporates.com/companies/gb/3456399","700490572"
"London Borough of Redbridge","http://opendatacommunities.org/doc/london-borough-council/redbridge","9BNONBVO","Outside the BVACOP Objective Structure","9CNONBVO","Outside the BVACOP Objective Structure","CAP","Capital","C1033","Modernising IT Applications","99-NONBV","Capital, Balance Sheet and Control","50E","Capital - Contract Payments","9150","Main Contract","60501861","202307",04/10/2022 00:00:00,43906.72,"31230","Employment and Recruitment Agencies","REDACTED DATA","ACCESS UK LTD T/AS ADAM","2343760","http://opencorporates.com/companies/gb/2343760","GB 108 2213 56"
"London Borough of Redbridge","http://opendatacommunities.org/doc/london-borough-council/redbridge","9BNONBVO","Outside the BVACOP Objective Structure","9CNONBVO","Outside the BVACOP Objective Structure","CAP","Capital","C1033","Modernising IT Applications","99-NONBV","Capital, Balance Sheet and Control","50E","Capital - Contract Payments","9150","Main Contract","60502941","202307",18/10/2022 00:00:00,43906.72,"31230","Employment and Recruitment Agencies","REDACTED DATA","ACCESS UK LTD T/AS ADAM","2343760","http://opencorporates.com/companies/gb/2343760","GB 108 2213 56"
"London Borough of Redbridge","http://opendatacommunities.org/doc/london-borough-council/redbridge","9BNONBVO","Outside the BVACOP Objective Structure","9CNONBVO","Outside the BVACOP Objective Structure","CAP","Capital","C1041","Corporate Capital Maintenance","99-NONBV","Capital, Balance Sheet and Control","50E","Capital - Contract Payments","9150","Main Contract","70125858","202307",28/09/2022 00:00:00,43451.26,"50275","Mechanical Engineers","REDACTED DATA","SJP MECHANICAL SERVICES LTD","1495029221","http://opencorporates.com/companies/gb/1495029221",""
"London Borough of Redbridge","http://opendatacommunities.org/doc/london-borough-council/redbridge","1BCENTRALPUB","Central Services to the Public","1CTRADSURDEF","Trading Account Surpluses & Deficits","REV","Revenue","R6755","Emergency Plan Stratgy","05-THIRD","Third Party Payments","05H","Private contractors","6915","Contractor Payments","60502844","202307",17/10/2022 00:00:00,50688,"48583","Local Government","REDACTED DATA","LONDON BOROUGH OF BARKING & DAGENHAM","",,""
"London Borough of Redbridge","http://opendatacommunities.org/doc/london-borough-council/redbridge","3BNONSCHFUND","Non-School Funding","6CCHILLOOKED","Children Looked After","REV","Revenue","R2238","Looked After Children Placements LA","05-THIRD","Third Party Payments","05H","Private contractors","6907","Private Homes","60501577","202307",03/10/2022 00:00:00,50285.71,"17780","Children's Homes","REDACTED DATA","SV Care Services Limited","12823530","http://opencorporates.com/companies/gb/12823530",""
"London Borough of Redbridge","http://opendatacommunities.org/doc/london-borough-council/redbridge","3BINDSCHFUND","Individual School Funds","3CDELPRIMARY","Delegated Individual Primary School Budgets","REV","Revenue","R3533","Glade Primary School","05-THIRD","Third Party Payments","05G","Other establishments","7451","LMS Bank Accounts Pilot","3709811","202307",05/10/2022 00:00:00,50000,"67981","Schools - Local Authority","REDACTED DATA","GLADE PRIMARY SCHOOL PAYROLL A/C","",,""
"London Borough of Redbridge","http://opendatacommunities.org/doc/london-borough-council/redbridge","5BGFHOUSING","General Fund Housing","5CHOMELESS","Homelessness","REV","Revenue","R5639","Rough Sleeping Initiatives","04-SUPPLIES","Supplies And Services","04H","Grants and subscriptions","5950","Grants","3713832","202307",01/07/2022 00:00:00,50000,"17020","Charities and Voluntary Organisations","REDACTED DATA","SINGLE HOMELESS PROJECT","1741926","http://opencorporates.com/companies/gb/1741926",""
"London Borough of Redbridge","http://opendatacommunities.org/doc/london-borough-council/redbridge","9BNONBVO","Outside the BVACOP Objective Structure","9CNONBVO","Outside the BVACOP Objective Structure","REV","Revenue","R5131","Repairs and Maintenance - MFS","02-PREMISES","Premises","02A","Repairs, alteration and maintenance of buildings","3048","Void Repairs","70125844","202307",26/09/2022 00:00:00,17017.14,"11371","Building Refurbishment and Restoration Contractors","REDACTED DATA","MEARS LTD","2519234","http://opencorporates.com/companies/gb/2519234","682002758"
"London Borough of Redbridge","http://opendatacommunities.org/doc/london-borough-council/redbridge","9BNONBVO","Outside the BVACOP Objective Structure","9CNONBVO","Outside the BVACOP Objective Structure","REV","Revenue","R5131","Repairs and Maintenance - MFS","02-PREMISES","Premises","02A","Repairs, alteration and maintenance of buildings","3048","Void Repairs","70125844","202307",26/09/2022 00:00:00,24039.24,"11371","Building Refurbishment and Restoration Contractors","REDACTED DATA","MEARS LTD","2519234","http://opencorporates.com/companies/gb/2519234","682002758"
"London Borough of Redbridge","http://opendatacommunities.org/doc/london-borough-council/redbridge","3BNONSCHFUND","Non-School Funding","6CCHILLOOKED","Children Looked After","REV","Revenue","R2238","Looked After Children Placements LA","05-THIRD","Third Party Payments","05H","Private contractors","6907","Private Homes","60500741","202306",26/09/2022 00:00:00,47897.48,"48583","Local Government","REDACTED DATA","LONDON BOROUGH OF HAVERING","",,"246347944"
"London Borough of Redbridge","http://opendatacommunities.org/doc/london-borough-council/redbridge","2BPLAN&DEVEL","Planning & Development Services","2CCOMMDEVT","Community Development","REV","Revenue","R9854","Voluntary Sector Support","04-SUPPLIES","Supplies And Services","04H","Grants and subscriptions","5950","Grants","60502270","202307",07/10/2022 00:00:00,47500,"71855","Social Services","REDACTED DATA","REDBRIDGE COUNCIL FOR VOLUNTARY SERVICES","2569614","http://opencorporates.com/companies/gb/2569614",""
"London Borough of Redbridge","http://opendatacommunities.org/doc/london-borough-council/redbridge","3BLEACENTFND","LEA Centrally Held School Funds","3CNONSCH","Non Schools","REV","Revenue","R2010","Spec Transport LEA","03-TRANSPORT","Transport","03A","Direct - transport costs","5207","School Support - Contractors (Children Services)","60503616","202307",19/10/2022 00:00:00,26222.8,"31230","Employment and Recruitment Agencies","REDACTED DATA","ACCESS UK LTD T/AS ADAM","2343760","http://opencorporates.com/companies/gb/2343760","GB 108 2213 56"
"London Borough of Redbridge","http://opendatacommunities.org/doc/london-borough-council/redbridge","3BLEACENTFND","LEA Centrally Held School Funds","3CNONSCH","Non Schools","REV","Revenue","R2011","Prim School Transport LEA","03-TRANSPORT","Transport","03A","Direct - transport costs","5207","School Support - Contractors (Children Services)","60503616","202307",19/10/2022 00:00:00,5455.2,"31230","Employment and Recruitment Agencies","REDACTED DATA","ACCESS UK LTD T/AS ADAM","2343760","http://opencorporates.com/companies/gb/2343760","GB 108 2213 56"
"London Borough of Redbridge","http://opendatacommunities.org/doc/london-borough-council/redbridge","3BLEACENTFND","LEA Centrally Held School Funds","3CNONSCH","Non Schools","REV","Revenue","R2012","Sec School Transport LEA","03-TRANSPORT","Transport","03A","Direct - transport costs","5207","School Support - Contractors (Children Services)","60503616","202307",19/10/2022 00:00:00,2705.1,"31230","Employment and Recruitment Agencies","REDACTED DATA","ACCESS UK LTD T/AS ADAM","2343760","http://opencorporates.com/companies/gb/2343760","GB 108 2213 56"
"London Borough of Redbridge","http://opendatacommunities.org/doc/london-borough-council/redbridge","3BLEACENTFND","LEA Centrally Held School Funds","3CNONSCH","Non Schools","REV","Revenue","R2215","SEN Student Transport","03-TRANSPORT","Transport","03A","Direct - transport costs","5207","School Support - Contractors (Children Services)","60503616","202307",19/10/2022 00:00:00,4500,"31230","Employment and Recruitment Agencies","REDACTED DATA","ACCESS UK LTD T/AS ADAM","2343760","http://opencorporates.com/companies/gb/2343760","GB 108 2213 56"
"London Borough of Redbridge","http://opendatacommunities.org/doc/london-borough-council/redbridge","4BMANGT&SUPP","Management & Support Services","4CHIGHRDROUT","Highways/Roads (Routine)","REV","Revenue","R7061","Lighting Energy","05-THIRD","Third Party Payments","05H","Private contractors","6915","Contractor Payments","80043136","202307",15/09/2022 00:00:00,37485.5,"30586","Electricity Companies","REDACTED DATA","NPOWER LTD","3653277","http://opencorporates.com/companies/gb/3653277","768362492"
"London Borough of Redbridge","http://opendatacommunities.org/doc/london-borough-council/redbridge","6BPUBHEALTH","Public Health","6CSEXHEALTH","Sexual Health","REV","Revenue","R4806","SH Advice Prevention & Promotion","05-THIRD","Third Party Payments","05F","Voluntary associations","6800","Voluntary Organisations","60500857","202306",12/09/2022 00:00:00,43557.5,"54888","NUTRITION and HEALTH CARE ADVICE","REDACTED DATA","POSITIVE EAST-STEPNEY","2546750","http://opencorporates.com/companies/gb/2546750","209238905"
"London Borough of Redbridge","http://opendatacommunities.org/doc/london-borough-council/redbridge","9BNONBVO","Outside the BVACOP Objective Structure","9CNONBVO","Outside the BVACOP Objective Structure","REV","Revenue","R5132","Repairs and Maintenance - Other","02-PREMISES","Premises","02A","Repairs, alteration and maintenance of buildings","3037","Service Contracts","60502806","202307",17/10/2022 00:00:00,36000,"61860","Project Management","REDACTED DATA","Kelleher Group Ltd","9487900","http://opencorporates.com/companies/gb/9487900","168 6868 42"
"London Borough of Redbridge","http://opendatacommunities.org/doc/london-borough-council/redbridge","9BNONBVO","Outside the BVACOP Objective Structure","9CNONBVO","Outside the BVACOP Objective Structure","CAP","Capital","C1045","SMART Programme - IT Related","99-NONBV","Capital, Balance Sheet and Control","50B","Capital - Contracted Works","9094","ICT","60501523","202307",30/09/2022 00:00:00,35112,"56789","E-Mail Marketing","REDACTED DATA","GRANICUS LLC","",,""
"London Borough of Redbridge","http://opendatacommunities.org/doc/london-borough-council/redbridge","6BADULTSOCIA","Adult Social Care","6COLDINCMENT","Older People (65 or over) incl. Older Mentally Ill","REV","Revenue","R4410","OP Voluntary Contracts","05-THIRD","Third Party Payments","05F","Voluntary associations","6800","Voluntary Organisations","91352816","202307",30/09/2022 00:00:00,41252.54,"22570","Counselling and Advice Services","REDACTED DATA","Age UK Redbridge Barking & Havering","CHARITY 1088435","http://opencorporates.com/companies/gb/CHARITY 1088435",""
"London Borough of Redbridge","http://opendatacommunities.org/doc/london-borough-council/redbridge","3BINDSCHFUND","Individual School Funds","3CNONSCH","Non Schools","REV","Revenue","R2000","Primary Schools SEN Top Up Fees","05-THIRD","Third Party Payments","05G","Other establishments","7430","LBR Pre 16 Top Up","3713725","202307",28/10/2022 00:00:00,40950.13,"67981","Schools - Local Authority","REDACTED DATA","FARNHAM GREEN PRIMARY SCH. A/C","",,""
"London Borough of Redbridge","http://opendatacommunities.org/doc/london-borough-council/redbridge","3BINDSCHFUND","Individual School Funds","3CNONSCH","Non Schools","REV","Revenue","R2001","Secondary Schools SEN Top Up Fees","05-THIRD","Third Party Payments","05G","Other establishments","7430","LBR Pre 16 Top Up","3713712","202307",28/10/2022 00:00:00,40675.56,"67981","Schools - Local Authority","REDACTED DATA","BEACON MULTI ACADEMY TRUST LTD","",,"246546447"
"London Borough of Redbridge","http://opendatacommunities.org/doc/london-borough-council/redbridge","3BLEACENTFND","LEA Centrally Held School Funds","3CNONSCH","Non Schools","REV","Revenue","R2010","Spec Transport LEA","03-TRANSPORT","Transport","03A","Direct - transport costs","5207","School Support - Contractors (Children Services)","60502097","202307",28/09/2022 00:00:00,21507.13,"31230","Employment and Recruitment Agencies","REDACTED DATA","ACCESS UK LTD T/AS ADAM","2343760","http://opencorporates.com/companies/gb/2343760","GB 108 2213 56"
"London Borough of Redbridge","http://opendatacommunities.org/doc/london-borough-council/redbridge","3BLEACENTFND","LEA Centrally Held School Funds","3CNONSCH","Non Schools","REV","Revenue","R2011","Prim School Transport LEA","03-TRANSPORT","Transport","03A","Direct - transport costs","5207","School Support - Contractors (Children Services)","60502097","202307",28/09/2022 00:00:00,6098,"31230","Employment and Recruitment Agencies","REDACTED DATA","ACCESS UK LTD T/AS ADAM","2343760","http://opencorporates.com/companies/gb/2343760","GB 108 2213 56"
"London Borough of Redbridge","http://opendatacommunities.org/doc/london-borough-council/redbridge","3BLEACENTFND","LEA Centrally Held School Funds","3CNONSCH","Non Schools","REV","Revenue","R2012","Sec School Transport LEA","03-TRANSPORT","Transport","03A","Direct - transport costs","5207","School Support - Contractors (Children Services)","60502097","202307",28/09/2022 00:00:00,2234.5,"31230","Employment and Recruitment Agencies","REDACTED DATA","ACCESS UK LTD T/AS ADAM","2343760","http://opencorporates.com/companies/gb/2343760","GB 108 2213 56"
"London Borough of Redbridge","http://opendatacommunities.org/doc/london-borough-council/redbridge","3BLEACENTFND","LEA Centrally Held School Funds","3CNONSCH","Non Schools","REV","Revenue","R2215","SEN Student Transport","03-TRANSPORT","Transport","03A","Direct - transport costs","5207","School Support - Contractors (Children Services)","60502097","202307",28/09/2022 00:00:00,4840,"31230","Employment and Recruitment Agencies","REDACTED DATA","ACCESS UK LTD T/AS ADAM","2343760","http://opencorporates.com/companies/gb/2343760","GB 108 2213 56"
"London Borough of Redbridge","http://opendatacommunities.org/doc/london-borough-council/redbridge","2BPLAN&DEVEL","Planning & Development Services","2CCOMMDEVT","Community Development","REV","Revenue","R9854","Voluntary Sector Support","04-SUPPLIES","Supplies And Services","04H","Grants and subscriptions","5950","Grants","60502268","202307",07/10/2022 00:00:00,39981.5,"17020","Charities and Voluntary Organisations","REDACTED DATA","ONE PLACE EAST","3115971","http://opencorporates.com/companies/gb/3115971",""
"London Borough of Redbridge","http://opendatacommunities.org/doc/london-borough-council/redbridge","6BADULTSOCIA","Adult Social Care","6COLDINCMENT","Older People (65 or over) incl. Older Mentally Ill","REV","Revenue","R4410","OP Voluntary Contracts","05-THIRD","Third Party Payments","05F","Voluntary associations","6800","Voluntary Organisations","91352815","202307",30/09/2022 00:00:00,19965.79,"22570","Counselling and Advice Services","REDACTED DATA","Age UK Redbridge Barking & Havering","CHARITY 1088435","http://opencorporates.com/companies/gb/CHARITY 1088435",""
"London Borough of Redbridge","http://opendatacommunities.org/doc/london-borough-council/redbridge","6BADULTSOCIA","Adult Social Care","6COLDINCMENT","Older People (65 or over) incl. Older Mentally Ill","REV","Revenue","R4410","OP Voluntary Contracts","05-THIRD","Third Party Payments","05F","Voluntary associations","6800","Voluntary Organisations","91352815","202307",30/09/2022 00:00:00,19965.79,"22570","Counselling and Advice Services","REDACTED DATA","Age UK Redbridge Barking & Havering","CHARITY 1088435","http://opencorporates.com/companies/gb/CHARITY 1088435",""
"London Borough of Redbridge","http://opendatacommunities.org/doc/london-borough-council/redbridge","3BINDSCHFUND","Individual School Funds","3CNONSCH","Non Schools","REV","Revenue","R2001","Secondary Schools SEN Top Up Fees","05-THIRD","Third Party Payments","05G","Other establishments","7432","OOB Pre 16 Top Up","60502378","202307",11/10/2022 00:00:00,39644.67,"67330","Schools and Colleges - Further Education","REDACTED DATA","WEST HATCH HIGH SCHOOL","",,""
"London Borough of Redbridge","http://opendatacommunities.org/doc/london-borough-council/redbridge","5BGFHOUSING","General Fund Housing","5CHOMELESS","Homelessness","REV","Revenue","R5639","Rough Sleeping Initiatives","04-SUPPLIES","Supplies And Services","04H","Grants and subscriptions","5950","Grants","3713827","202307",01/01/2022 00:00:00,38924,"17020","Charities and Voluntary Organisations","REDACTED DATA","SINGLE HOMELESS PROJECT","1741926","http://opencorporates.com/companies/gb/1741926",""
"London Borough of Redbridge","http://opendatacommunities.org/doc/london-borough-council/redbridge","1BCENTRALPUB","Central Services to the Public","1CLOCALTAXCO","Local Tax Collection","REV","Revenue","R5760","Local Tax Collection","04-SUPPLIES","Supplies And Services","04G","Expenses","5907","Travel & Subsistence","3711010","202307",11/05/2022 00:00:00,38,"80170","Travel Agents and Holiday Companies","REDACTED DATA","CLICK TRAVEL LTD","3770815","http://opencorporates.com/companies/gb/3770815","799566639"
"London Borough of Redbridge","http://opendatacommunities.org/doc/london-borough-council/redbridge","1BCENTRALPUB","Central Services to the Public","1CLOCALTAXCO","Local Tax Collection","REV","Revenue","R5760","Local Tax Collection","04-SUPPLIES","Supplies And Services","04G","Expenses","5907","Travel & Subsistence","3711010","202307",11/05/2022 00:00:00,59,"80170","Travel Agents and Holiday Companies","REDACTED DATA","CLICK TRAVEL LTD","3770815","http://opencorporates.com/companies/gb/3770815","799566639"
"London Borough of Redbridge","http://opendatacommunities.org/doc/london-borough-council/redbridge","1BCENTRALPUB","Central Services to the Public","1CLOCALTAXCO","Local Tax Collection","REV","Revenue","R5760","Local Tax Collection","04-SUPPLIES","Supplies And Services","04G","Expenses","5907","Travel & Subsistence","3711010","202307",11/05/2022 00:00:00,38,"80170","Travel Agents and Holiday Companies","REDACTED DATA","CLICK TRAVEL LTD","3770815","http://opencorporates.com/companies/gb/3770815","799566639"
"London Borough of Redbridge","http://opendatacommunities.org/doc/london-borough-council/redbridge","1BCENTRALPUB","Central Services to the Public","1CLOCALTAXCO","Local Tax Collection","REV","Revenue","R5760","Local Tax Collection","04-SUPPLIES","Supplies And Services","04G","Expenses","5907","Travel & Subsistence","3711010","202307",11/05/2022 00:00:00,59,"80170","Travel Agents and Holiday Companies","REDACTED DATA","CLICK TRAVEL LTD","3770815","http://opencorporates.com/companies/gb/3770815","799566639"
"London Borough of Redbridge","http://opendatacommunities.org/doc/london-borough-council/redbridge","1BCENTRALPUB","Central Services to the Public","1CLOCALTAXCO","Local Tax Collection","REV","Revenue","R5760","Local Tax Collection","04-SUPPLIES","Supplies And Services","04G","Expenses","5907","Travel & Subsistence","3711010","202307",11/05/2022 00:00:00,34.5,"80170","Travel Agents and Holiday Companies","REDACTED DATA","CLICK TRAVEL LTD","3770815","http://opencorporates.com/companies/gb/3770815","799566639"
"London Borough of Redbridge","http://opendatacommunities.org/doc/london-borough-council/redbridge","1BCENTRALPUB","Central Services to the Public","1CLOCALTAXCO","Local Tax Collection","REV","Revenue","R5760","Local Tax Collection","04-SUPPLIES","Supplies And Services","04G","Expenses","5907","Travel & Subsistence","3711010","202307",11/05/2022 00:00:00,34.5,"80170","Travel Agents and Holiday Companies","REDACTED DATA","CLICK TRAVEL LTD","3770815","http://opencorporates.com/companies/gb/3770815","799566639"
"London Borough of Redbridge","http://opendatacommunities.org/doc/london-borough-council/redbridge","1BCORPDEM","Corporate & Democratic Core","1CCORPMGT","Corporate Management","REV","Revenue","R0029","Chief Executive","04-SUPPLIES","Supplies And Services","04G","Expenses","5907","Travel & Subsistence","3711010","202307",17/05/2022 00:00:00,290,"80170","Travel Agents and Holiday Companies","REDACTED DATA","CLICK TRAVEL LTD","3770815","http://opencorporates.com/companies/gb/3770815","799566639"
"London Borough of Redbridge","http://opendatacommunities.org/doc/london-borough-council/redbridge","1BOTHEROPI&E","Other Operating Income & Expenditure","1CTRADSURDEF","Trading Account Surpluses & Deficits","REV","Revenue","R9152","Operational Accounting","04-SUPPLIES","Supplies And Services","04G","Expenses","5907","Travel & Subsistence","3711010","202307",04/05/2022 00:00:00,58.8,"80170","Travel Agents and Holiday Companies","REDACTED DATA","CLICK TRAVEL LTD","3770815","http://opencorporates.com/companies/gb/3770815","799566639"
"London Borough of Redbridge","http://opendatacommunities.org/doc/london-borough-council/redbridge","2BPLANPOL","Planning Policy","","","REV","Revenue","R6511","Strategic Head of Planning & Building Control","04-SUPPLIES","Supplies And Services","04G","Expenses","5907","Travel & Subsistence","3711010","202307",09/05/2022 00:00:00,21,"80170","Travel Agents and Holiday Companies","REDACTED DATA","CLICK TRAVEL LTD","3770815","http://opencorporates.com/companies/gb/3770815","799566639"
"London Borough of Redbridge","http://opendatacommunities.org/doc/london-borough-council/redbridge","3BINDSCHFUND","Individual School Funds","3CFACILIMPRO","Facilitating School Improvement","REV","Revenue","R3373","Looked After Children","04-SUPPLIES","Supplies And Services","04G","Expenses","5907","Travel & Subsistence","3711010","202307",19/05/2022 00:00:00,53,"80170","Travel Agents and Holiday Companies","REDACTED DATA","CLICK TRAVEL LTD","3770815","http://opencorporates.com/companies/gb/3770815","799566639"
"London Borough of Redbridge","http://opendatacommunities.org/doc/london-borough-council/redbridge","3BNONSCHFUND","Non-School Funding","6CCHILLOOKED","Children Looked After","REV","Revenue","R2238","Looked After Children Placements LA","03-TRANSPORT","Transport","03D","Public transport","5301","Children Services Transport Costs","3711010","202307",31/05/2022 00:00:00,20.3,"80170","Travel Agents and Holiday Companies","REDACTED DATA","CLICK TRAVEL LTD","3770815","http://opencorporates.com/companies/gb/3770815","799566639"
"London Borough of Redbridge","http://opendatacommunities.org/doc/london-borough-council/redbridge","3BNONSCHFUND","Non-School Funding","6CCHILLOOKED","Children Looked After","REV","Revenue","R2238","Looked After Children Placements LA","03-TRANSPORT","Transport","03D","Public transport","5301","Children Services Transport Costs","3711010","202307",04/05/2022 00:00:00,5.1,"80170","Travel Agents and Holiday Companies","REDACTED DATA","CLICK TRAVEL LTD","3770815","http://opencorporates.com/companies/gb/3770815","799566639"
"London Borough of Redbridge","http://opendatacommunities.org/doc/london-borough-council/redbridge","3BNONSCHFUND","Non-School Funding","6CCHILLOOKED","Children Looked After","REV","Revenue","R2238","Looked After Children Placements LA","03-TRANSPORT","Transport","03D","Public transport","5301","Children Services Transport Costs","3711010","202307",31/05/2022 00:00:00,20.3,"80170","Travel Agents and Holiday Companies","REDACTED DATA","CLICK TRAVEL LTD","3770815","http://opencorporates.com/companies/gb/3770815","799566639"
"London Borough of Redbridge","http://opendatacommunities.org/doc/london-borough-council/redbridge","3BNONSCHFUND","Non-School Funding","6CCHILLOOKED","Children Looked After","REV","Revenue","R2238","Looked After Children Placements LA","03-TRANSPORT","Transport","03D","Public transport","5301","Children Services Transport Costs","3711010","202307",31/05/2022 00:00:00,20.3,"80170","Travel Agents and Holiday Companies","REDACTED DATA","CLICK TRAVEL LTD","3770815","http://opencorporates.com/companies/gb/3770815","799566639"
"London Borough of Redbridge","http://opendatacommunities.org/doc/london-borough-council/redbridge","3BNONSCHFUND","Non-School Funding","6CCHILLOOKED","Children Looked After","REV","Revenue","R2238","Looked After Children Placements LA","03-TRANSPORT","Transport","03D","Public transport","5301","Children Services Transport Costs","3711010","202307",04/05/2022 00:00:00,5.1,"80170","Travel Agents and Holiday Companies","REDACTED DATA","CLICK TRAVEL LTD","3770815","http://opencorporates.com/companies/gb/3770815","799566639"
"London Borough of Redbridge","http://opendatacommunities.org/doc/london-borough-council/redbridge","3BNONSCHFUND","Non-School Funding","6CCHILLOOKED","Children Looked After","REV","Revenue","R2238","Looked After Children Placements LA","03-TRANSPORT","Transport","03D","Public transport","5301","Children Services Transport Costs","3711010","202307",31/05/2022 00:00:00,5.95,"80170","Travel Agents and Holiday Companies","REDACTED DATA","CLICK TRAVEL LTD","3770815","http://opencorporates.com/companies/gb/3770815","799566639"
"London Borough of Redbridge","http://opendatacommunities.org/doc/london-borough-council/redbridge","3BNONSCHFUND","Non-School Funding","6CCHILLOOKED","Children Looked After","REV","Revenue","R2238","Looked After Children Placements LA","03-TRANSPORT","Transport","03D","Public transport","5301","Children Services Transport Costs","3711010","202307",04/05/2022 00:00:00,7.4,"80170","Travel Agents and Holiday Companies","REDACTED DATA","CLICK TRAVEL LTD","3770815","http://opencorporates.com/companies/gb/3770815","799566639"
"London Borough of Redbridge","http://opendatacommunities.org/doc/london-borough-council/redbridge","3BNONSCHFUND","Non-School Funding","6CCHILLOOKED","Children Looked After","REV","Revenue","R2238","Looked After Children Placements LA","03-TRANSPORT","Transport","03D","Public transport","5301","Children Services Transport Costs","3711010","202307",10/05/2022 00:00:00,177.48,"80170","Travel Agents and Holiday Companies","REDACTED DATA","CLICK TRAVEL LTD","3770815","http://opencorporates.com/companies/gb/3770815","799566639"
"London Borough of Redbridge","http://opendatacommunities.org/doc/london-borough-council/redbridge","3BNONSCHFUND","Non-School Funding","6CCHILLOOKED","Children Looked After","REV","Revenue","R2238","Looked After Children Placements LA","03-TRANSPORT","Transport","03D","Public transport","5301","Children Services Transport Costs","3711010","202307",27/05/2022 00:00:00,41.1,"80170","Travel Agents and Holiday Companies","REDACTED DATA","CLICK TRAVEL LTD","3770815","http://opencorporates.com/companies/gb/3770815","799566639"
"London Borough of Redbridge","http://opendatacommunities.org/doc/london-borough-council/redbridge","3BNONSCHFUND","Non-School Funding","6CCHILLOOKED","Children Looked After","REV","Revenue","R2238","Looked After Children Placements LA","03-TRANSPORT","Transport","03D","Public transport","5301","Children Services Transport Costs","3711010","202307",10/05/2022 00:00:00,14.4,"80170","Travel Agents and Holiday Companies","REDACTED DATA","CLICK TRAVEL LTD","3770815","http://opencorporates.com/companies/gb/3770815","799566639"
"London Borough of Redbridge","http://opendatacommunities.org/doc/london-borough-council/redbridge","3BNONSCHFUND","Non-School Funding","6CCHILLOOKED","Children Looked After","REV","Revenue","R2238","Looked After Children Placements LA","03-TRANSPORT","Transport","03D","Public transport","5301","Children Services Transport Costs","3711010","202307",10/05/2022 00:00:00,14.4,"80170","Travel Agents and Holiday Companies","REDACTED DATA","CLICK TRAVEL LTD","3770815","http://opencorporates.com/companies/gb/3770815","799566639"
"London Borough of Redbridge","http://opendatacommunities.org/doc/london-borough-council/redbridge","3BNONSCHFUND","Non-School Funding","6CCHILLOOKED","Children Looked After","REV","Revenue","R2238","Looked After Children Placements LA","03-TRANSPORT","Transport","03D","Public transport","5301","Children Services Transport Costs","3711010","202307",06/05/2022 00:00:00,8.3,"80170","Travel Agents and Holiday Companies","REDACTED DATA","CLICK TRAVEL LTD","3770815","http://opencorporates.com/companies/gb/3770815","799566639"
"London Borough of Redbridge","http://opendatacommunities.org/doc/london-borough-council/redbridge","3BNONSCHFUND","Non-School Funding","6CCHILLOOKED","Children Looked After","REV","Revenue","R2238","Looked After Children Placements LA","03-TRANSPORT","Transport","03D","Public transport","5301","Children Services Transport Costs","3711010","202307",31/05/2022 00:00:00,20.3,"80170","Travel Agents and Holiday Companies","REDACTED DATA","CLICK TRAVEL LTD","3770815","http://opencorporates.com/companies/gb/3770815","799566639"
"London Borough of Redbridge","http://opendatacommunities.org/doc/london-borough-council/redbridge","3BNONSCHFUND","Non-School Funding","6CCHILLOOKED","Children Looked After","REV","Revenue","R2238","Looked After Children Placements LA","03-TRANSPORT","Transport","03D","Public transport","5301","Children Services Transport Costs","3711010","202307",30/05/2022 00:00:00,5.1,"80170","Travel Agents and Holiday Companies","REDACTED DATA","CLICK TRAVEL LTD","3770815","http://opencorporates.com/companies/gb/3770815","799566639"
"London Borough of Redbridge","http://opendatacommunities.org/doc/london-borough-council/redbridge","3BNONSCHFUND","Non-School Funding","6CCHILLOOKED","Children Looked After","REV","Revenue","R2238","Looked After Children Placements LA","03-TRANSPORT","Transport","03D","Public transport","5301","Children Services Transport Costs","3711010","202307",10/05/2022 00:00:00,150.4,"80170","Travel Agents and Holiday Companies","REDACTED DATA","CLICK TRAVEL LTD","3770815","http://opencorporates.com/companies/gb/3770815","799566639"
"London Borough of Redbridge","http://opendatacommunities.org/doc/london-borough-council/redbridge","3BNONSCHFUND","Non-School Funding","6CCHILLOOKED","Children Looked After","REV","Revenue","R2238","Looked After Children Placements LA","03-TRANSPORT","Transport","03D","Public transport","5301","Children Services Transport Costs","3711010","202307",06/05/2022 00:00:00,7.2,"80170","Travel Agents and Holiday Companies","REDACTED DATA","CLICK TRAVEL LTD","3770815","http://opencorporates.com/companies/gb/3770815","799566639"
"London Borough of Redbridge","http://opendatacommunities.org/doc/london-borough-council/redbridge","3BNONSCHFUND","Non-School Funding","6CCHILLOOKED","Children Looked After","REV","Revenue","R2238","Looked After Children Placements LA","03-TRANSPORT","Transport","03D","Public transport","5301","Children Services Transport Costs","3711010","202307",30/05/2022 00:00:00,20.3,"80170","Travel Agents and Holiday Companies","REDACTED DATA","CLICK TRAVEL LTD","3770815","http://opencorporates.com/companies/gb/3770815","799566639"
"London Borough of Redbridge","http://opendatacommunities.org/doc/london-borough-council/redbridge","3BNONSCHFUND","Non-School Funding","6CCHILLOOKED","Children Looked After","REV","Revenue","R2238","Looked After Children Placements LA","03-TRANSPORT","Transport","03D","Public transport","5301","Children Services Transport Costs","3711010","202307",06/05/2022 00:00:00,8.3,"80170","Travel Agents and Holiday Companies","REDACTED DATA","CLICK TRAVEL LTD","3770815","http://opencorporates.com/companies/gb/3770815","799566639"
"London Borough of Redbridge","http://opendatacommunities.org/doc/london-borough-council/redbridge","3BNONSCHFUND","Non-School Funding","6CCHILLOOKED","Children Looked After","REV","Revenue","R2238","Looked After Children Placements LA","03-TRANSPORT","Transport","03D","Public transport","5301","Children Services Transport Costs","3711010","202307",10/05/2022 00:00:00,98.1,"80170","Travel Agents and Holiday Companies","REDACTED DATA","CLICK TRAVEL LTD","3770815","http://opencorporates.com/companies/gb/3770815","799566639"
"London Borough of Redbridge","http://opendatacommunities.org/doc/london-borough-council/redbridge","3BNONSCHFUND","Non-School Funding","6CCHILLOOKED","Children Looked After","REV","Revenue","R2238","Looked After Children Placements LA","03-TRANSPORT","Transport","03D","Public transport","5301","Children Services Transport Costs","3711010","202307",27/05/2022 00:00:00,14.4,"80170","Travel Agents and Holiday Companies","REDACTED DATA","CLICK TRAVEL LTD","3770815","http://opencorporates.com/companies/gb/3770815","799566639"
"London Borough of Redbridge","http://opendatacommunities.org/doc/london-borough-council/redbridge","3BNONSCHFUND","Non-School Funding","6CCHILLOOKED","Children Looked After","REV","Revenue","R2238","Looked After Children Placements LA","03-TRANSPORT","Transport","03D","Public transport","5301","Children Services Transport Costs","3711010","202307",11/05/2022 00:00:00,14.4,"80170","Travel Agents and Holiday Companies","REDACTED DATA","CLICK TRAVEL LTD","3770815","http://opencorporates.com/companies/gb/3770815","799566639"
"London Borough of Redbridge","http://opendatacommunities.org/doc/london-borough-council/redbridge","3BNONSCHFUND","Non-School Funding","6CCHILLOOKED","Children Looked After","REV","Revenue","R2238","Looked After Children Placements LA","03-TRANSPORT","Transport","03D","Public transport","5301","Children Services Transport Costs","3711010","202307",04/05/2022 00:00:00,5.1,"80170","Travel Agents and Holiday Companies","REDACTED DATA","CLICK TRAVEL LTD","3770815","http://opencorporates.com/companies/gb/3770815","799566639"
"London Borough of Redbridge","http://opendatacommunities.org/doc/london-borough-council/redbridge","3BNONSCHFUND","Non-School Funding","6CCHILLOOKED","Children Looked After","REV","Revenue","R2238","Looked After Children Placements LA","03-TRANSPORT","Transport","03D","Public transport","5301","Children Services Transport Costs","3711010","202307",09/05/2022 00:00:00,19.5,"80170","Travel Agents and Holiday Companies","REDACTED DATA","CLICK TRAVEL LTD","3770815","http://opencorporates.com/companies/gb/3770815","799566639"
"London Borough of Redbridge","http://opendatacommunities.org/doc/london-borough-council/redbridge","3BNONSCHFUND","Non-School Funding","6CCHILLOOKED","Children Looked After","REV","Revenue","R2238","Looked After Children Placements LA","03-TRANSPORT","Transport","03D","Public transport","5301","Children Services Transport Costs","3711010","202307",06/05/2022 00:00:00,7.2,"80170","Travel Agents and Holiday Companies","REDACTED DATA","CLICK TRAVEL LTD","3770815","http://opencorporates.com/companies/gb/3770815","799566639"
"London Borough of Redbridge","http://opendatacommunities.org/doc/london-borough-council/redbridge","3BNONSCHFUND","Non-School Funding","6CCHILLOOKED","Children Looked After","REV","Revenue","R2238","Looked After Children Placements LA","03-TRANSPORT","Transport","03D","Public transport","5301","Children Services Transport Costs","3711010","202307",10/05/2022 00:00:00,11,"80170","Travel Agents and Holiday Companies","REDACTED DATA","CLICK TRAVEL LTD","3770815","http://opencorporates.com/companies/gb/3770815","799566639"
"London Borough of Redbridge","http://opendatacommunities.org/doc/london-borough-council/redbridge","3BNONSCHFUND","Non-School Funding","6CCHILLOOKED","Children Looked After","REV","Revenue","R2238","Looked After Children Placements LA","03-TRANSPORT","Transport","03D","Public transport","5301","Children Services Transport Costs","3711010","202307",31/05/2022 00:00:00,14.4,"80170","Travel Agents and Holiday Companies","REDACTED DATA","CLICK TRAVEL LTD","3770815","http://opencorporates.com/companies/gb/3770815","799566639"
"London Borough of Redbridge","http://opendatacommunities.org/doc/london-borough-council/redbridge","3BNONSCHFUND","Non-School Funding","6CCHILLOOKED","Children Looked After","REV","Revenue","R2238","Looked After Children Placements LA","03-TRANSPORT","Transport","03D","Public transport","5301","Children Services Transport Costs","3711010","202307",10/05/2022 00:00:00,40.9,"80170","Travel Agents and Holiday Companies","REDACTED DATA","CLICK TRAVEL LTD","3770815","http://opencorporates.com/companies/gb/3770815","799566639"
"London Borough of Redbridge","http://opendatacommunities.org/doc/london-borough-council/redbridge","3BNONSCHFUND","Non-School Funding","6CCHILLOOKED","Children Looked After","REV","Revenue","R2238","Looked After Children Placements LA","03-TRANSPORT","Transport","03D","Public transport","5301","Children Services Transport Costs","3711010","202307",04/05/2022 00:00:00,6.5,"80170","Travel Agents and Holiday Companies","REDACTED DATA","CLICK TRAVEL LTD","3770815","http://opencorporates.com/companies/gb/3770815","799566639"
"London Borough of Redbridge","http://opendatacommunities.org/doc/london-borough-council/redbridge","3BNONSCHFUND","Non-School Funding","6CCHILLOOKED","Children Looked After","REV","Revenue","R2238","Looked After Children Placements LA","03-TRANSPORT","Transport","03D","Public transport","5301","Children Services Transport Costs","3711010","202307",10/05/2022 00:00:00,7.5,"80170","Travel Agents and Holiday Companies","REDACTED DATA","CLICK TRAVEL LTD","3770815","http://opencorporates.com/companies/gb/3770815","799566639"
"London Borough of Redbridge","http://opendatacommunities.org/doc/london-borough-council/redbridge","3BNONSCHFUND","Non-School Funding","6CCHILLOOKED","Children Looked After","REV","Revenue","R2238","Looked After Children Placements LA","03-TRANSPORT","Transport","03D","Public transport","5301","Children Services Transport Costs","3711010","202307",18/05/2022 00:00:00,5.1,"80170","Travel Agents and Holiday Companies","REDACTED DATA","CLICK TRAVEL LTD","3770815","http://opencorporates.com/companies/gb/3770815","799566639"
"London Borough of Redbridge","http://opendatacommunities.org/doc/london-borough-council/redbridge","3BNONSCHFUND","Non-School Funding","6CCHILLOOKED","Children Looked After","REV","Revenue","R2238","Looked After Children Placements LA","03-TRANSPORT","Transport","03D","Public transport","5301","Children Services Transport Costs","3711010","202307",31/05/2022 00:00:00,7.2,"80170","Travel Agents and Holiday Companies","REDACTED DATA","CLICK TRAVEL LTD","3770815","http://opencorporates.com/companies/gb/3770815","799566639"
"London Borough of Redbridge","http://opendatacommunities.org/doc/london-borough-council/redbridge","3BNONSCHFUND","Non-School Funding","6CCHILLOOKED","Children Looked After","REV","Revenue","R2238","Looked After Children Placements LA","03-TRANSPORT","Transport","03D","Public transport","5301","Children Services Transport Costs","3711010","202307",27/05/2022 00:00:00,15.9,"80170","Travel Agents and Holiday Companies","REDACTED DATA","CLICK TRAVEL LTD","3770815","http://opencorporates.com/companies/gb/3770815","799566639"
"London Borough of Redbridge","http://opendatacommunities.org/doc/london-borough-council/redbridge","3BNONSCHFUND","Non-School Funding","6CCHILLOOKED","Children Looked After","REV","Revenue","R2238","Looked After Children Placements LA","03-TRANSPORT","Transport","03D","Public transport","5301","Children Services Transport Costs","3711010","202307",31/05/2022 00:00:00,14.4,"80170","Travel Agents and Holiday Companies","REDACTED DATA","CLICK TRAVEL LTD","3770815","http://opencorporates.com/companies/gb/3770815","799566639"
"London Borough of Redbridge","http://opendatacommunities.org/doc/london-borough-council/redbridge","3BNONSCHFUND","Non-School Funding","6CCHILLOOKED","Children Looked After","REV","Revenue","R2238","Looked After Children Placements LA","03-TRANSPORT","Transport","03D","Public transport","5301","Children Services Transport Costs","3711010","202307",30/05/2022 00:00:00,40.9,"80170","Travel Agents and Holiday Companies","REDACTED DATA","CLICK TRAVEL LTD","3770815","http://opencorporates.com/companies/gb/3770815","799566639"
"London Borough of Redbridge","http://opendatacommunities.org/doc/london-borough-council/redbridge","3BNONSCHFUND","Non-School Funding","6CCHILLOOKED","Children Looked After","REV","Revenue","R2238","Looked After Children Placements LA","03-TRANSPORT","Transport","03D","Public transport","5301","Children Services Transport Costs","3711010","202307",31/05/2022 00:00:00,7.2,"80170","Travel Agents and Holiday Companies","REDACTED DATA","CLICK TRAVEL LTD","3770815","http://opencorporates.com/companies/gb/3770815","799566639"
"London Borough of Redbridge","http://opendatacommunities.org/doc/london-borough-council/redbridge","3BNONSCHFUND","Non-School Funding","6CCHILLOOKED","Children Looked After","REV","Revenue","R2238","Looked After Children Placements LA","03-TRANSPORT","Transport","03D","Public transport","5301","Children Services Transport Costs","3711010","202307",06/05/2022 00:00:00,8.3,"80170","Travel Agents and Holiday Companies","REDACTED DATA","CLICK TRAVEL LTD","3770815","http://opencorporates.com/companies/gb/3770815","799566639"
"London Borough of Redbridge","http://opendatacommunities.org/doc/london-borough-council/redbridge","3BNONSCHFUND","Non-School Funding","6CCHILLOOKED","Children Looked After","REV","Revenue","R2238","Looked After Children Placements LA","03-TRANSPORT","Transport","03D","Public transport","5301","Children Services Transport Costs","3711010","202307",06/05/2022 00:00:00,7.2,"80170","Travel Agents and Holiday Companies","REDACTED DATA","CLICK TRAVEL LTD","3770815","http://opencorporates.com/companies/gb/3770815","799566639"
"London Borough of Redbridge","http://opendatacommunities.org/doc/london-borough-council/redbridge","3BNONSCHFUND","Non-School Funding","6CCHILLOOKED","Children Looked After","REV","Revenue","R2238","Looked After Children Placements LA","03-TRANSPORT","Transport","03D","Public transport","5301","Children Services Transport Costs","3711010","202307",30/05/2022 00:00:00,20.3,"80170","Travel Agents and Holiday Companies","REDACTED DATA","CLICK TRAVEL LTD","3770815","http://opencorporates.com/companies/gb/3770815","799566639"
"London Borough of Redbridge","http://opendatacommunities.org/doc/london-borough-council/redbridge","3BNONSCHFUND","Non-School Funding","6CCHILLOOKED","Children Looked After","REV","Revenue","R2238","Looked After Children Placements LA","03-TRANSPORT","Transport","03D","Public transport","5301","Children Services Transport Costs","3711010","202307",03/05/2022 00:00:00,10.25,"80170","Travel Agents and Holiday Companies","REDACTED DATA","CLICK TRAVEL LTD","3770815","http://opencorporates.com/companies/gb/3770815","799566639"
"London Borough of Redbridge","http://opendatacommunities.org/doc/london-borough-council/redbridge","3BNONSCHFUND","Non-School Funding","6CCHILLOOKED","Children Looked After","REV","Revenue","R2238","Looked After Children Placements LA","03-TRANSPORT","Transport","03D","Public transport","5301","Children Services Transport Costs","3711010","202307",10/05/2022 00:00:00,14.4,"80170","Travel Agents and Holiday Companies","REDACTED DATA","CLICK TRAVEL LTD","3770815","http://opencorporates.com/companies/gb/3770815","799566639"
"London Borough of Redbridge","http://opendatacommunities.org/doc/london-borough-council/redbridge","3BNONSCHFUND","Non-School Funding","6CCHILLOOKED","Children Looked After","REV","Revenue","R2238","Looked After Children Placements LA","03-TRANSPORT","Transport","03D","Public transport","5301","Children Services Transport Costs","3711010","202307",06/05/2022 00:00:00,34,"80170","Travel Agents and Holiday Companies","REDACTED DATA","CLICK TRAVEL LTD","3770815","http://opencorporates.com/companies/gb/3770815","799566639"
"London Borough of Redbridge","http://opendatacommunities.org/doc/london-borough-council/redbridge","3BNONSCHFUND","Non-School Funding","6CCHILLOOKED","Children Looked After","REV","Revenue","R2238","Looked After Children Placements LA","03-TRANSPORT","Transport","03D","Public transport","5301","Children Services Transport Costs","3711010","202307",05/05/2022 00:00:00,14.4,"80170","Travel Agents and Holiday Companies","REDACTED DATA","CLICK TRAVEL LTD","3770815","http://opencorporates.com/companies/gb/3770815","799566639"
"London Borough of Redbridge","http://opendatacommunities.org/doc/london-borough-council/redbridge","3BNONSCHFUND","Non-School Funding","6CCHILLOOKED","Children Looked After","REV","Revenue","R2238","Looked After Children Placements LA","03-TRANSPORT","Transport","03D","Public transport","5301","Children Services Transport Costs","3711010","202307",18/05/2022 00:00:00,7.4,"80170","Travel Agents and Holiday Companies","REDACTED DATA","CLICK TRAVEL LTD","3770815","http://opencorporates.com/companies/gb/3770815","799566639"
"London Borough of Redbridge","http://opendatacommunities.org/doc/london-borough-council/redbridge","3BNONSCHFUND","Non-School Funding","6CCHILLOOKED","Children Looked After","REV","Revenue","R2238","Looked After Children Placements LA","03-TRANSPORT","Transport","03D","Public transport","5301","Children Services Transport Costs","3711010","202307",25/05/2022 00:00:00,14.4,"80170","Travel Agents and Holiday Companies","REDACTED DATA","CLICK TRAVEL LTD","3770815","http://opencorporates.com/companies/gb/3770815","799566639"
"London Borough of Redbridge","http://opendatacommunities.org/doc/london-borough-council/redbridge","3BNONSCHFUND","Non-School Funding","6CCHILLOOKED","Children Looked After","REV","Revenue","R2238","Looked After Children Placements LA","03-TRANSPORT","Transport","03D","Public transport","5301","Children Services Transport Costs","3711010","202307",09/05/2022 00:00:00,52.4,"80170","Travel Agents and Holiday Companies","REDACTED DATA","CLICK TRAVEL LTD","3770815","http://opencorporates.com/companies/gb/3770815","799566639"
"London Borough of Redbridge","http://opendatacommunities.org/doc/london-borough-council/redbridge","3BNONSCHFUND","Non-School Funding","6CCHILLOOKED","Children Looked After","REV","Revenue","R2238","Looked After Children Placements LA","03-TRANSPORT","Transport","03D","Public transport","5301","Children Services Transport Costs","3711010","202307",10/05/2022 00:00:00,11,"80170","Travel Agents and Holiday Companies","REDACTED DATA","CLICK TRAVEL LTD","3770815","http://opencorporates.com/companies/gb/3770815","799566639"
"London Borough of Redbridge","http://opendatacommunities.org/doc/london-borough-council/redbridge","3BNONSCHFUND","Non-School Funding","6CCHILLOOKED","Children Looked After","REV","Revenue","R2238","Looked After Children Placements LA","03-TRANSPORT","Transport","03D","Public transport","5301","Children Services Transport Costs","3711010","202307",10/05/2022 00:00:00,150.4,"80170","Travel Agents and Holiday Companies","REDACTED DATA","CLICK TRAVEL LTD","3770815","http://opencorporates.com/companies/gb/3770815","799566639"
"London Borough of Redbridge","http://opendatacommunities.org/doc/london-borough-council/redbridge","3BNONSCHFUND","Non-School Funding","6CCHILLOOKED","Children Looked After","REV","Revenue","R2238","Looked After Children Placements LA","03-TRANSPORT","Transport","03D","Public transport","5301","Children Services Transport Costs","3711010","202307",11/05/2022 00:00:00,14.4,"80170","Travel Agents and Holiday Companies","REDACTED DATA","CLICK TRAVEL LTD","3770815","http://opencorporates.com/companies/gb/3770815","799566639"
"London Borough of Redbridge","http://opendatacommunities.org/doc/london-borough-council/redbridge","3BNONSCHFUND","Non-School Funding","6CCHILLOOKED","Children Looked After","REV","Revenue","R2238","Looked After Children Placements LA","03-TRANSPORT","Transport","03D","Public transport","5301","Children Services Transport Costs","3711010","202307",10/05/2022 00:00:00,150.4,"80170","Travel Agents and Holiday Companies","REDACTED DATA","CLICK TRAVEL LTD","3770815","http://opencorporates.com/companies/gb/3770815","799566639"
"London Borough of Redbridge","http://opendatacommunities.org/doc/london-borough-council/redbridge","3BNONSCHFUND","Non-School Funding","6CCHILLOOKED","Children Looked After","REV","Revenue","R2238","Looked After Children Placements LA","03-TRANSPORT","Transport","03D","Public transport","5301","Children Services Transport Costs","3711010","202307",10/05/2022 00:00:00,14.4,"80170","Travel Agents and Holiday Companies","REDACTED DATA","CLICK TRAVEL LTD","3770815","http://opencorporates.com/companies/gb/3770815","799566639"
"London Borough of Redbridge","http://opendatacommunities.org/doc/london-borough-council/redbridge","3BNONSCHFUND","Non-School Funding","6CCHILLOOKED","Children Looked After","REV","Revenue","R2238","Looked After Children Placements LA","03-TRANSPORT","Transport","03D","Public transport","5301","Children Services Transport Costs","3711010","202307",10/05/2022 00:00:00,177.48,"80170","Travel Agents and Holiday Companies","REDACTED DATA","CLICK TRAVEL LTD","3770815","http://opencorporates.com/companies/gb/3770815","799566639"
"London Borough of Redbridge","http://opendatacommunities.org/doc/london-borough-council/redbridge","3BNONSCHFUND","Non-School Funding","6CCHILLOOKED","Children Looked After","REV","Revenue","R2238","Looked After Children Placements LA","03-TRANSPORT","Transport","03D","Public transport","5301","Children Services Transport Costs","3711010","202307",11/05/2022 00:00:00,14.4,"80170","Travel Agents and Holiday Companies","REDACTED DATA","CLICK TRAVEL LTD","3770815","http://opencorporates.com/companies/gb/3770815","799566639"
"London Borough of Redbridge","http://opendatacommunities.org/doc/london-borough-council/redbridge","3BNONSCHFUND","Non-School Funding","6CCHILLOOKED","Children Looked After","REV","Revenue","R2238","Looked After Children Placements LA","03-TRANSPORT","Transport","03D","Public transport","5301","Children Services Transport Costs","3711010","202307",10/05/2022 00:00:00,732.42,"80170","Travel Agents and Holiday Companies","REDACTED DATA","CLICK TRAVEL LTD","3770815","http://opencorporates.com/companies/gb/3770815","799566639"
"London Borough of Redbridge","http://opendatacommunities.org/doc/london-borough-council/redbridge","3BNONSCHFUND","Non-School Funding","6CCHILLOOKED","Children Looked After","REV","Revenue","R2238","Looked After Children Placements LA","03-TRANSPORT","Transport","03D","Public transport","5301","Children Services Transport Costs","3711010","202307",27/05/2022 00:00:00,30,"80170","Travel Agents and Holiday Companies","REDACTED DATA","CLICK TRAVEL LTD","3770815","http://opencorporates.com/companies/gb/3770815","799566639"
"London Borough of Redbridge","http://opendatacommunities.org/doc/london-borough-council/redbridge","3BNONSCHFUND","Non-School Funding","6CCHILLOOKED","Children Looked After","REV","Revenue","R2238","Looked After Children Placements LA","03-TRANSPORT","Transport","03D","Public transport","5301","Children Services Transport Costs","3711010","202307",31/05/2022 00:00:00,11.9,"80170","Travel Agents and Holiday Companies","REDACTED DATA","CLICK TRAVEL LTD","3770815","http://opencorporates.com/companies/gb/3770815","799566639"
"London Borough of Redbridge","http://opendatacommunities.org/doc/london-borough-council/redbridge","3BNONSCHFUND","Non-School Funding","6CCHILLOOKED","Children Looked After","REV","Revenue","R2238","Looked After Children Placements LA","03-TRANSPORT","Transport","03D","Public transport","5301","Children Services Transport Costs","3711010","202307",06/05/2022 00:00:00,8.3,"80170","Travel Agents and Holiday Companies","REDACTED DATA","CLICK TRAVEL LTD","3770815","http://opencorporates.com/companies/gb/3770815","799566639"
"London Borough of Redbridge","http://opendatacommunities.org/doc/london-borough-council/redbridge","3BNONSCHFUND","Non-School Funding","6CCHILLOOKED","Children Looked After","REV","Revenue","R2238","Looked After Children Placements LA","03-TRANSPORT","Transport","03D","Public transport","5301","Children Services Transport Costs","3711010","202307",18/05/2022 00:00:00,5.1,"80170","Travel Agents and Holiday Companies","REDACTED DATA","CLICK TRAVEL LTD","3770815","http://opencorporates.com/companies/gb/3770815","799566639"
"London Borough of Redbridge","http://opendatacommunities.org/doc/london-borough-council/redbridge","3BNONSCHFUND","Non-School Funding","6CCHILLOOKED","Children Looked After","REV","Revenue","R2238","Looked After Children Placements LA","03-TRANSPORT","Transport","03D","Public transport","5301","Children Services Transport Costs","3711010","202307",06/05/2022 00:00:00,7.2,"80170","Travel Agents and Holiday Companies","REDACTED DATA","CLICK TRAVEL LTD","3770815","http://opencorporates.com/companies/gb/3770815","799566639"
"London Borough of Redbridge","http://opendatacommunities.org/doc/london-borough-council/redbridge","3BNONSCHFUND","Non-School Funding","6CCHILLOOKED","Children Looked After","REV","Revenue","R2238","Looked After Children Placements LA","03-TRANSPORT","Transport","03D","Public transport","5301","Children Services Transport Costs","3711010","202307",09/05/2022 00:00:00,114.8,"80170","Travel Agents and Holiday Companies","REDACTED DATA","CLICK TRAVEL LTD","3770815","http://opencorporates.com/companies/gb/3770815","799566639"
"London Borough of Redbridge","http://opendatacommunities.org/doc/london-borough-council/redbridge","3BNONSCHFUND","Non-School Funding","6CCHILLOOKED","Children Looked After","REV","Revenue","R2238","Looked After Children Placements LA","03-TRANSPORT","Transport","03D","Public transport","5301","Children Services Transport Costs","3711010","202307",03/05/2022 00:00:00,10.25,"80170","Travel Agents and Holiday Companies","REDACTED DATA","CLICK TRAVEL LTD","3770815","http://opencorporates.com/companies/gb/3770815","799566639"
"London Borough of Redbridge","http://opendatacommunities.org/doc/london-borough-council/redbridge","3BNONSCHFUND","Non-School Funding","6CCHILLOOKED","Children Looked After","REV","Revenue","R2238","Looked After Children Placements LA","03-TRANSPORT","Transport","03D","Public transport","5301","Children Services Transport Costs","3711010","202307",06/05/2022 00:00:00,7.2,"80170","Travel Agents and Holiday Companies","REDACTED DATA","CLICK TRAVEL LTD","3770815","http://opencorporates.com/companies/gb/3770815","799566639"
"London Borough of Redbridge","http://opendatacommunities.org/doc/london-borough-council/redbridge","3BNONSCHFUND","Non-School Funding","6CCHILLOOKED","Children Looked After","REV","Revenue","R2238","Looked After Children Placements LA","03-TRANSPORT","Transport","03D","Public transport","5301","Children Services Transport Costs","3711010","202307",06/05/2022 00:00:00,8.3,"80170","Travel Agents and Holiday Companies","REDACTED DATA","CLICK TRAVEL LTD","3770815","http://opencorporates.com/companies/gb/3770815","799566639"
"London Borough of Redbridge","http://opendatacommunities.org/doc/london-borough-council/redbridge","3BNONSCHFUND","Non-School Funding","6CCHILLOOKED","Children Looked After","REV","Revenue","R2238","Looked After Children Placements LA","03-TRANSPORT","Transport","03D","Public transport","5301","Children Services Transport Costs","3711010","202307",18/05/2022 00:00:00,5.1,"80170","Travel Agents and Holiday Companies","REDACTED DATA","CLICK TRAVEL LTD","3770815","http://opencorporates.com/companies/gb/3770815","799566639"
"London Borough of Redbridge","http://opendatacommunities.org/doc/london-borough-council/redbridge","3BNONSCHFUND","Non-School Funding","6CCHILLOOKED","Children Looked After","REV","Revenue","R2238","Looked After Children Placements LA","03-TRANSPORT","Transport","03D","Public transport","5301","Children Services Transport Costs","3711010","202307",11/05/2022 00:00:00,14.4,"80170","Travel Agents and Holiday Companies","REDACTED DATA","CLICK TRAVEL LTD","3770815","http://opencorporates.com/companies/gb/3770815","799566639"
"London Borough of Redbridge","http://opendatacommunities.org/doc/london-borough-council/redbridge","3BNONSCHFUND","Non-School Funding","6CCHILLOOKED","Children Looked After","REV","Revenue","R2238","Looked After Children Placements LA","03-TRANSPORT","Transport","03D","Public transport","5301","Children Services Transport Costs","3711010","202307",31/05/2022 00:00:00,21,"80170","Travel Agents and Holiday Companies","REDACTED DATA","CLICK TRAVEL LTD","3770815","http://opencorporates.com/companies/gb/3770815","799566639"
"London Borough of Redbridge","http://opendatacommunities.org/doc/london-borough-council/redbridge","3BNONSCHFUND","Non-School Funding","6CCHILLOOKED","Children Looked After","REV","Revenue","R2238","Looked After Children Placements LA","03-TRANSPORT","Transport","03D","Public transport","5301","Children Services Transport Costs","3711010","202307",31/05/2022 00:00:00,14.4,"80170","Travel Agents and Holiday Companies","REDACTED DATA","CLICK TRAVEL LTD","3770815","http://opencorporates.com/companies/gb/3770815","799566639"
"London Borough of Redbridge","http://opendatacommunities.org/doc/london-borough-council/redbridge","3BNONSCHFUND","Non-School Funding","6CCHILLOOKED","Children Looked After","REV","Revenue","R2238","Looked After Children Placements LA","03-TRANSPORT","Transport","03D","Public transport","5301","Children Services Transport Costs","3711010","202307",06/05/2022 00:00:00,14.4,"80170","Travel Agents and Holiday Companies","REDACTED DATA","CLICK TRAVEL LTD","3770815","http://opencorporates.com/companies/gb/3770815","799566639"
"London Borough of Redbridge","http://opendatacommunities.org/doc/london-borough-council/redbridge","3BNONSCHFUND","Non-School Funding","6CCHILLOOKED","Children Looked After","REV","Revenue","R2238","Looked After Children Placements LA","03-TRANSPORT","Transport","03D","Public transport","5301","Children Services Transport Costs","3711010","202307",10/05/2022 00:00:00,11,"80170","Travel Agents and Holiday Companies","REDACTED DATA","CLICK TRAVEL LTD","3770815","http://opencorporates.com/companies/gb/3770815","799566639"
"London Borough of Redbridge","http://opendatacommunities.org/doc/london-borough-council/redbridge","3BNONSCHFUND","Non-School Funding","6CCHILLOOKED","Children Looked After","REV","Revenue","R2238","Looked After Children Placements LA","03-TRANSPORT","Transport","03D","Public transport","5301","Children Services Transport Costs","3711010","202307",06/05/2022 00:00:00,8.3,"80170","Travel Agents and Holiday Companies","REDACTED DATA","CLICK TRAVEL LTD","3770815","http://opencorporates.com/companies/gb/3770815","799566639"
"London Borough of Redbridge","http://opendatacommunities.org/doc/london-borough-council/redbridge","3BNONSCHFUND","Non-School Funding","6CCHILLOOKED","Children Looked After","REV","Revenue","R2238","Looked After Children Placements LA","03-TRANSPORT","Transport","03D","Public transport","5301","Children Services Transport Costs","3711010","202307",27/05/2022 00:00:00,30,"80170","Travel Agents and Holiday Companies","REDACTED DATA","CLICK TRAVEL LTD","3770815","http://opencorporates.com/companies/gb/3770815","799566639"
"London Borough of Redbridge","http://opendatacommunities.org/doc/london-borough-council/redbridge","3BNONSCHFUND","Non-School Funding","6CCHILLOOKED","Children Looked After","REV","Revenue","R2238","Looked After Children Placements LA","03-TRANSPORT","Transport","03D","Public transport","5301","Children Services Transport Costs","3711010","202307",06/05/2022 00:00:00,14.4,"80170","Travel Agents and Holiday Companies","REDACTED DATA","CLICK TRAVEL LTD","3770815","http://opencorporates.com/companies/gb/3770815","799566639"
"London Borough of Redbridge","http://opendatacommunities.org/doc/london-borough-council/redbridge","3BNONSCHFUND","Non-School Funding","6CCHILLOOKED","Children Looked After","REV","Revenue","R2238","Looked After Children Placements LA","03-TRANSPORT","Transport","03D","Public transport","5301","Children Services Transport Costs","3711010","202307",10/05/2022 00:00:00,41.7,"80170","Travel Agents and Holiday Companies","REDACTED DATA","CLICK TRAVEL LTD","3770815","http://opencorporates.com/companies/gb/3770815","799566639"
"London Borough of Redbridge","http://opendatacommunities.org/doc/london-borough-council/redbridge","3BNONSCHFUND","Non-School Funding","6CCHILLOOKED","Children Looked After","REV","Revenue","R2238","Looked After Children Placements LA","03-TRANSPORT","Transport","03D","Public transport","5301","Children Services Transport Costs","3711010","202307",17/05/2022 00:00:00,20.3,"80170","Travel Agents and Holiday Companies","REDACTED DATA","CLICK TRAVEL LTD","3770815","http://opencorporates.com/companies/gb/3770815","799566639"
"London Borough of Redbridge","http://opendatacommunities.org/doc/london-borough-council/redbridge","3BNONSCHFUND","Non-School Funding","6CCHILLOOKED","Children Looked After","REV","Revenue","R2238","Looked After Children Placements LA","03-TRANSPORT","Transport","03D","Public transport","5301","Children Services Transport Costs","3711010","202307",26/05/2022 00:00:00,20.3,"80170","Travel Agents and Holiday Companies","REDACTED DATA","CLICK TRAVEL LTD","3770815","http://opencorporates.com/companies/gb/3770815","799566639"
"London Borough of Redbridge","http://opendatacommunities.org/doc/london-borough-council/redbridge","3BNONSCHFUND","Non-School Funding","6CCHILLOOKED","Children Looked After","REV","Revenue","R2238","Looked After Children Placements LA","03-TRANSPORT","Transport","03D","Public transport","5301","Children Services Transport Costs","3711010","202307",06/05/2022 00:00:00,144.1,"80170","Travel Agents and Holiday Companies","REDACTED DATA","CLICK TRAVEL LTD","3770815","http://opencorporates.com/companies/gb/3770815","799566639"
"London Borough of Redbridge","http://opendatacommunities.org/doc/london-borough-council/redbridge","3BNONSCHFUND","Non-School Funding","6CCHILLOOKED","Children Looked After","REV","Revenue","R2238","Looked After Children Placements LA","03-TRANSPORT","Transport","03D","Public transport","5301","Children Services Transport Costs","3711010","202307",31/05/2022 00:00:00,20.3,"80170","Travel Agents and Holiday Companies","REDACTED DATA","CLICK TRAVEL LTD","3770815","http://opencorporates.com/companies/gb/3770815","799566639"
"London Borough of Redbridge","http://opendatacommunities.org/doc/london-borough-council/redbridge","3BNONSCHFUND","Non-School Funding","6CCHILLOOKED","Children Looked After","REV","Revenue","R2238","Looked After Children Placements LA","03-TRANSPORT","Transport","03D","Public transport","5301","Children Services Transport Costs","3711010","202307",27/05/2022 00:00:00,22.1,"80170","Travel Agents and Holiday Companies","REDACTED DATA","CLICK TRAVEL LTD","3770815","http://opencorporates.com/companies/gb/3770815","799566639"
"London Borough of Redbridge","http://opendatacommunities.org/doc/london-borough-council/redbridge","3BNONSCHFUND","Non-School Funding","6CCHILLOOKED","Children Looked After","REV","Revenue","R2238","Looked After Children Placements LA","03-TRANSPORT","Transport","03D","Public transport","5301","Children Services Transport Costs","3711010","202307",31/05/2022 00:00:00,20.3,"80170","Travel Agents and Holiday Companies","REDACTED DATA","CLICK TRAVEL LTD","3770815","http://opencorporates.com/companies/gb/3770815","799566639"
"London Borough of Redbridge","http://opendatacommunities.org/doc/london-borough-council/redbridge","3BNONSCHFUND","Non-School Funding","6CCHILLOOKED","Children Looked After","REV","Revenue","R2238","Looked After Children Placements LA","03-TRANSPORT","Transport","03D","Public transport","5301","Children Services Transport Costs","3711010","202307",03/05/2022 00:00:00,10.25,"80170","Travel Agents and Holiday Companies","REDACTED DATA","CLICK TRAVEL LTD","3770815","http://opencorporates.com/companies/gb/3770815","799566639"
"London Borough of Redbridge","http://opendatacommunities.org/doc/london-borough-council/redbridge","3BNONSCHFUND","Non-School Funding","6CCHILLOOKED","Children Looked After","REV","Revenue","R2238","Looked After Children Placements LA","03-TRANSPORT","Transport","03D","Public transport","5301","Children Services Transport Costs","3711010","202307",30/05/2022 00:00:00,20.3,"80170","Travel Agents and Holiday Companies","REDACTED DATA","CLICK TRAVEL LTD","3770815","http://opencorporates.com/companies/gb/3770815","799566639"
"London Borough of Redbridge","http://opendatacommunities.org/doc/london-borough-council/redbridge","3BNONSCHFUND","Non-School Funding","6CCHILLOOKED","Children Looked After","REV","Revenue","R2238","Looked After Children Placements LA","03-TRANSPORT","Transport","03D","Public transport","5301","Children Services Transport Costs","3711010","202307",03/05/2022 00:00:00,20.5,"80170","Travel Agents and Holiday Companies","REDACTED DATA","CLICK TRAVEL LTD","3770815","http://opencorporates.com/companies/gb/3770815","799566639"
"London Borough of Redbridge","http://opendatacommunities.org/doc/london-borough-council/redbridge","3BNONSCHFUND","Non-School Funding","6CCHILLOOKED","Children Looked After","REV","Revenue","R2238","Looked After Children Placements LA","03-TRANSPORT","Transport","03D","Public transport","5301","Children Services Transport Costs","3711010","202307",04/05/2022 00:00:00,5.1,"80170","Travel Agents and Holiday Companies","REDACTED DATA","CLICK TRAVEL LTD","3770815","http://opencorporates.com/companies/gb/3770815","799566639"
"London Borough of Redbridge","http://opendatacommunities.org/doc/london-borough-council/redbridge","3BNONSCHFUND","Non-School Funding","6CCHILLOOKED","Children Looked After","REV","Revenue","R2238","Looked After Children Placements LA","03-TRANSPORT","Transport","03D","Public transport","5301","Children Services Transport Costs","3711010","202307",04/05/2022 00:00:00,5.1,"80170","Travel Agents and Holiday Companies","REDACTED DATA","CLICK TRAVEL LTD","3770815","http://opencorporates.com/companies/gb/3770815","799566639"
"London Borough of Redbridge","http://opendatacommunities.org/doc/london-borough-council/redbridge","3BNONSCHFUND","Non-School Funding","6CCHILLOOKED","Children Looked After","REV","Revenue","R2238","Looked After Children Placements LA","03-TRANSPORT","Transport","03D","Public transport","5301","Children Services Transport Costs","3711010","202307",06/05/2022 00:00:00,8.3,"80170","Travel Agents and Holiday Companies","REDACTED DATA","CLICK TRAVEL LTD","3770815","http://opencorporates.com/companies/gb/3770815","799566639"
"London Borough of Redbridge","http://opendatacommunities.org/doc/london-borough-council/redbridge","3BNONSCHFUND","Non-School Funding","6CCHILLOOKED","Children Looked After","REV","Revenue","R2238","Looked After Children Placements LA","03-TRANSPORT","Transport","03D","Public transport","5301","Children Services Transport Costs","3711010","202307",09/05/2022 00:00:00,24.1,"80170","Travel Agents and Holiday Companies","REDACTED DATA","CLICK TRAVEL LTD","3770815","http://opencorporates.com/companies/gb/3770815","799566639"
"London Borough of Redbridge","http://opendatacommunities.org/doc/london-borough-council/redbridge","3BNONSCHFUND","Non-School Funding","6CCHILLOOKED","Children Looked After","REV","Revenue","R2238","Looked After Children Placements LA","03-TRANSPORT","Transport","03D","Public transport","5301","Children Services Transport Costs","3711010","202307",23/05/2022 00:00:00,11.8,"80170","Travel Agents and Holiday Companies","REDACTED DATA","CLICK TRAVEL LTD","3770815","http://opencorporates.com/companies/gb/3770815","799566639"
"London Borough of Redbridge","http://opendatacommunities.org/doc/london-borough-council/redbridge","3BNONSCHFUND","Non-School Funding","6CCHILLOOKED","Children Looked After","REV","Revenue","R2238","Looked After Children Placements LA","03-TRANSPORT","Transport","03D","Public transport","5301","Children Services Transport Costs","3711010","202307",31/05/2022 00:00:00,28.5,"80170","Travel Agents and Holiday Companies","REDACTED DATA","CLICK TRAVEL LTD","3770815","http://opencorporates.com/companies/gb/3770815","799566639"
"London Borough of Redbridge","http://opendatacommunities.org/doc/london-borough-council/redbridge","3BNONSCHFUND","Non-School Funding","6CCHILLOOKED","Children Looked After","REV","Revenue","R2238","Looked After Children Placements LA","03-TRANSPORT","Transport","03D","Public transport","5301","Children Services Transport Costs","3711010","202307",18/05/2022 00:00:00,7.4,"80170","Travel Agents and Holiday Companies","REDACTED DATA","CLICK TRAVEL LTD","3770815","http://opencorporates.com/companies/gb/3770815","799566639"
"London Borough of Redbridge","http://opendatacommunities.org/doc/london-borough-council/redbridge","3BNONSCHFUND","Non-School Funding","6CCHILLOOKED","Children Looked After","REV","Revenue","R2238","Looked After Children Placements LA","03-TRANSPORT","Transport","03D","Public transport","5301","Children Services Transport Costs","3711010","202307",31/05/2022 00:00:00,20.3,"80170","Travel Agents and Holiday Companies","REDACTED DATA","CLICK TRAVEL LTD","3770815","http://opencorporates.com/companies/gb/3770815","799566639"
"London Borough of Redbridge","http://opendatacommunities.org/doc/london-borough-council/redbridge","5BGFHOUSING","General Fund Housing","5CHOMELESS","Homelessness","REV","Revenue","R5630","HAC Temporary Accomodation","05-THIRD","Third Party Payments","05H","Private contractors","6900","Nightly Let Plus Charges","3710081","202307",02/10/2022 00:00:00,0,"31230","Employment and Recruitment Agencies","REDACTED DATA","ACCESS UK LTD T/AS ADAM","2343760","http://opencorporates.com/companies/gb/2343760","GB 108 2213 56"
"London Borough of Redbridge","http://opendatacommunities.org/doc/london-borough-council/redbridge","5BGFHOUSING","General Fund Housing","5CHOMELESS","Homelessness","REV","Revenue","R5630","HAC Temporary Accomodation","05-THIRD","Third Party Payments","05H","Private contractors","6900","Nightly Let Plus Charges","3710081","202307",02/10/2022 00:00:00,927.9,"31230","Employment and Recruitment Agencies","REDACTED DATA","ACCESS UK LTD T/AS ADAM","2343760","http://opencorporates.com/companies/gb/2343760","GB 108 2213 56"
"London Borough of Redbridge","http://opendatacommunities.org/doc/london-borough-council/redbridge","5BGFHOUSING","General Fund Housing","5CHOMELESS","Homelessness","REV","Revenue","R5630","HAC Temporary Accomodation","05-THIRD","Third Party Payments","05H","Private contractors","6900","Nightly Let Plus Charges","3710081","202307",02/10/2022 00:00:00,0,"31230","Employment and Recruitment Agencies","REDACTED DATA","ACCESS UK LTD T/AS ADAM","2343760","http://opencorporates.com/companies/gb/2343760","GB 108 2213 56"
"London Borough of Redbridge","http://opendatacommunities.org/doc/london-borough-council/redbridge","5BGFHOUSING","General Fund Housing","5CHOMELESS","Homelessness","REV","Revenue","R5630","HAC Temporary Accomodation","05-THIRD","Third Party Payments","05H","Private contractors","6900","Nightly Let Plus Charges","3710081","202307",02/10/2022 00:00:00,1818,"31230","Employment and Recruitment Agencies","REDACTED DATA","ACCESS UK LTD T/AS ADAM","2343760","http://opencorporates.com/companies/gb/2343760","GB 108 2213 56"
"London Borough of Redbridge","http://opendatacommunities.org/doc/london-borough-council/redbridge","5BGFHOUSING","General Fund Housing","5CHOMELESS","Homelessness","REV","Revenue","R5630","HAC Temporary Accomodation","05-THIRD","Third Party Payments","05H","Private contractors","6900","Nightly Let Plus Charges","3710081","202307",02/10/2022 00:00:00,1260,"31230","Employment and Recruitment Agencies","REDACTED DATA","ACCESS UK LTD T/AS ADAM","2343760","http://opencorporates.com/companies/gb/2343760","GB 108 2213 56"
"London Borough of Redbridge","http://opendatacommunities.org/doc/london-borough-council/redbridge","5BGFHOUSING","General Fund Housing","5CHOMELESS","Homelessness","REV","Revenue","R5630","HAC Temporary Accomodation","05-THIRD","Third Party Payments","05H","Private contractors","6900","Nightly Let Plus Charges","3710081","202307",02/10/2022 00:00:00,855,"31230","Employment and Recruitment Agencies","REDACTED DATA","ACCESS UK LTD T/AS ADAM","2343760","http://opencorporates.com/companies/gb/2343760","GB 108 2213 56"
"London Borough of Redbridge","http://opendatacommunities.org/doc/london-borough-council/redbridge","5BGFHOUSING","General Fund Housing","5CHOMELESS","Homelessness","REV","Revenue","R5630","HAC Temporary Accomodation","05-THIRD","Third Party Payments","05H","Private contractors","6900","Nightly Let Plus Charges","3710081","202307",02/10/2022 00:00:00,0,"31230","Employment and Recruitment Agencies","REDACTED DATA","ACCESS UK LTD T/AS ADAM","2343760","http://opencorporates.com/companies/gb/2343760","GB 108 2213 56"
"London Borough of Redbridge","http://opendatacommunities.org/doc/london-borough-council/redbridge","5BGFHOUSING","General Fund Housing","5CHOMELESS","Homelessness","REV","Revenue","R5630","HAC Temporary Accomodation","05-THIRD","Third Party Payments","05H","Private contractors","6900","Nightly Let Plus Charges","3710081","202307",02/10/2022 00:00:00,0,"31230","Employment and Recruitment Agencies","REDACTED DATA","ACCESS UK LTD T/AS ADAM","2343760","http://opencorporates.com/companies/gb/2343760","GB 108 2213 56"
"London Borough of Redbridge","http://opendatacommunities.org/doc/london-borough-council/redbridge","5BGFHOUSING","General Fund Housing","5CHOMELESS","Homelessness","REV","Revenue","R5630","HAC Temporary Accomodation","05-THIRD","Third Party Payments","05H","Private contractors","6900","Nightly Let Plus Charges","3710081","202307",02/10/2022 00:00:00,1015,"31230","Employment and Recruitment Agencies","REDACTED DATA","ACCESS UK LTD T/AS ADAM","2343760","http://opencorporates.com/companies/gb/2343760","GB 108 2213 56"
"London Borough of Redbridge","http://opendatacommunities.org/doc/london-borough-council/redbridge","5BGFHOUSING","General Fund Housing","5CHOMELESS","Homelessness","REV","Revenue","R5630","HAC Temporary Accomodation","05-THIRD","Third Party Payments","05H","Private contractors","6900","Nightly Let Plus Charges","3710081","202307",02/10/2022 00:00:00,0,"31230","Employment and Recruitment Agencies","REDACTED DATA","ACCESS UK LTD T/AS ADAM","2343760","http://opencorporates.com/companies/gb/2343760","GB 108 2213 56"
"London Borough of Redbridge","http://opendatacommunities.org/doc/london-borough-council/redbridge","5BGFHOUSING","General Fund Housing","5CHOMELESS","Homelessness","REV","Revenue","R5630","HAC Temporary Accomodation","05-THIRD","Third Party Payments","05H","Private contractors","6900","Nightly Let Plus Charges","3710081","202307",02/10/2022 00:00:00,45.72,"31230","Employment and Recruitment Agencies","REDACTED DATA","ACCESS UK LTD T/AS ADAM","2343760","http://opencorporates.com/companies/gb/2343760","GB 108 2213 56"
"London Borough of Redbridge","http://opendatacommunities.org/doc/london-borough-council/redbridge","3BNONSCHFUND","Non-School Funding","6CCHILLOOKED","Children Looked After","REV","Revenue","R2238","Looked After Children Placements LA","03-TRANSPORT","Transport","03D","Public transport","5301","Children Services Transport Costs","3711010","202307",20/05/2022 00:00:00,14.4,"80170","Travel Agents and Holiday Companies","REDACTED DATA","CLICK TRAVEL LTD","3770815","http://opencorporates.com/companies/gb/3770815","799566639"
"London Borough of Redbridge","http://opendatacommunities.org/doc/london-borough-council/redbridge","3BNONSCHFUND","Non-School Funding","6CCHILLOOKED","Children Looked After","REV","Revenue","R2238","Looked After Children Placements LA","03-TRANSPORT","Transport","03D","Public transport","5301","Children Services Transport Costs","3711010","202307",09/05/2022 00:00:00,63,"80170","Travel Agents and Holiday Companies","REDACTED DATA","CLICK TRAVEL LTD","3770815","http://opencorporates.com/companies/gb/3770815","799566639"
"London Borough of Redbridge","http://opendatacommunities.org/doc/london-borough-council/redbridge","3BNONSCHFUND","Non-School Funding","6CCHILLOOKED","Children Looked After","REV","Revenue","R2238","Looked After Children Placements LA","03-TRANSPORT","Transport","03D","Public transport","5301","Children Services Transport Costs","3711010","202307",06/05/2022 00:00:00,14.4,"80170","Travel Agents and Holiday Companies","REDACTED DATA","CLICK TRAVEL LTD","3770815","http://opencorporates.com/companies/gb/3770815","799566639"
"London Borough of Redbridge","http://opendatacommunities.org/doc/london-borough-council/redbridge","3BNONSCHFUND","Non-School Funding","6CCHILLOOKED","Children Looked After","REV","Revenue","R2238","Looked After Children Placements LA","03-TRANSPORT","Transport","03D","Public transport","5301","Children Services Transport Costs","3711010","202307",31/05/2022 00:00:00,5.95,"80170","Travel Agents and Holiday Companies","REDACTED DATA","CLICK TRAVEL LTD","3770815","http://opencorporates.com/companies/gb/3770815","799566639"
"London Borough of Redbridge","http://opendatacommunities.org/doc/london-borough-council/redbridge","3BNONSCHFUND","Non-School Funding","6CCHILLOOKED","Children Looked After","REV","Revenue","R2238","Looked After Children Placements LA","03-TRANSPORT","Transport","03D","Public transport","5301","Children Services Transport Costs","3711010","202307",26/05/2022 00:00:00,52.8,"80170","Travel Agents and Holiday Companies","REDACTED DATA","CLICK TRAVEL LTD","3770815","http://opencorporates.com/companies/gb/3770815","799566639"
"London Borough of Redbridge","http://opendatacommunities.org/doc/london-borough-council/redbridge","3BNONSCHFUND","Non-School Funding","6CCHILLOOKED","Children Looked After","REV","Revenue","R2238","Looked After Children Placements LA","03-TRANSPORT","Transport","03D","Public transport","5301","Children Services Transport Costs","3711010","202307",25/05/2022 00:00:00,20.3,"80170","Travel Agents and Holiday Companies","REDACTED DATA","CLICK TRAVEL LTD","3770815","http://opencorporates.com/companies/gb/3770815","799566639"
"London Borough of Redbridge","http://opendatacommunities.org/doc/london-borough-council/redbridge","3BNONSCHFUND","Non-School Funding","6CCHILLOOKED","Children Looked After","REV","Revenue","R2238","Looked After Children Placements LA","03-TRANSPORT","Transport","03D","Public transport","5301","Children Services Transport Costs","3711010","202307",31/05/2022 00:00:00,14.4,"80170","Travel Agents and Holiday Companies","REDACTED DATA","CLICK TRAVEL LTD","3770815","http://opencorporates.com/companies/gb/3770815","799566639"
"London Borough of Redbridge","http://opendatacommunities.org/doc/london-borough-council/redbridge","3BNONSCHFUND","Non-School Funding","6CCHILLOOKED","Children Looked After","REV","Revenue","R2238","Looked After Children Placements LA","03-TRANSPORT","Transport","03D","Public transport","5301","Children Services Transport Costs","3711010","202307",31/05/2022 00:00:00,15,"80170","Travel Agents and Holiday Companies","REDACTED DATA","CLICK TRAVEL LTD","3770815","http://opencorporates.com/companies/gb/3770815","799566639"
"London Borough of Redbridge","http://opendatacommunities.org/doc/london-borough-council/redbridge","3BNONSCHFUND","Non-School Funding","6CCHILLOOKED","Children Looked After","REV","Revenue","R2238","Looked After Children Placements LA","03-TRANSPORT","Transport","03D","Public transport","5301","Children Services Transport Costs","3711010","202307",10/05/2022 00:00:00,177.48,"80170","Travel Agents and Holiday Companies","REDACTED DATA","CLICK TRAVEL LTD","3770815","http://opencorporates.com/companies/gb/3770815","799566639"
"London Borough of Redbridge","http://opendatacommunities.org/doc/london-borough-council/redbridge","3BNONSCHFUND","Non-School Funding","6CCHILLOOKED","Children Looked After","REV","Revenue","R2238","Looked After Children Placements LA","03-TRANSPORT","Transport","03D","Public transport","5301","Children Services Transport Costs","3711010","202307",19/05/2022 00:00:00,26.8,"80170","Travel Agents and Holiday Companies","REDACTED DATA","CLICK TRAVEL LTD","3770815","http://opencorporates.com/companies/gb/3770815","799566639"
"London Borough of Redbridge","http://opendatacommunities.org/doc/london-borough-council/redbridge","3BNONSCHFUND","Non-School Funding","6CCHILLOOKED","Children Looked After","REV","Revenue","R2238","Looked After Children Placements LA","03-TRANSPORT","Transport","03D","Public transport","5301","Children Services Transport Costs","3711010","202307",25/05/2022 00:00:00,20.3,"80170","Travel Agents and Holiday Companies","REDACTED DATA","CLICK TRAVEL LTD","3770815","http://opencorporates.com/companies/gb/3770815","799566639"
"London Borough of Redbridge","http://opendatacommunities.org/doc/london-borough-council/redbridge","5BGFHOUSING","General Fund Housing","5CHOMELESS","Homelessness","REV","Revenue","R5630","HAC Temporary Accomodation","05-THIRD","Third Party Payments","05H","Private contractors","6900","Nightly Let Plus Charges","3710081","202307",02/10/2022 00:00:00,0,"31230","Employment and Recruitment Agencies","REDACTED DATA","ACCESS UK LTD T/AS ADAM","2343760","http://opencorporates.com/companies/gb/2343760","GB 108 2213 56"
"London Borough of Redbridge","http://opendatacommunities.org/doc/london-borough-council/redbridge","5BGFHOUSING","General Fund Housing","5CHOMELESS","Homelessness","REV","Revenue","R5630","HAC Temporary Accomodation","05-THIRD","Third Party Payments","05H","Private contractors","6900","Nightly Let Plus Charges","3710081","202307",02/10/2022 00:00:00,0,"31230","Employment and Recruitment Agencies","REDACTED DATA","ACCESS UK LTD T/AS ADAM","2343760","http://opencorporates.com/companies/gb/2343760","GB 108 2213 56"
"London Borough of Redbridge","http://opendatacommunities.org/doc/london-borough-council/redbridge","5BGFHOUSING","General Fund Housing","5CHOMELESS","Homelessness","REV","Revenue","R5630","HAC Temporary Accomodation","05-THIRD","Third Party Payments","05H","Private contractors","6900","Nightly Let Plus Charges","3710081","202307",02/10/2022 00:00:00,1417.5,"31230","Employment and Recruitment Agencies","REDACTED DATA","ACCESS UK LTD T/AS ADAM","2343760","http://opencorporates.com/companies/gb/2343760","GB 108 2213 56"
"London Borough of Redbridge","http://opendatacommunities.org/doc/london-borough-council/redbridge","5BGFHOUSING","General Fund Housing","5CHOMELESS","Homelessness","REV","Revenue","R5630","HAC Temporary Accomodation","05-THIRD","Third Party Payments","05H","Private contractors","6900","Nightly Let Plus Charges","3710081","202307",02/10/2022 00:00:00,0,"31230","Employment and Recruitment Agencies","REDACTED DATA","ACCESS UK LTD T/AS ADAM","2343760","http://opencorporates.com/companies/gb/2343760","GB 108 2213 56"
"London Borough of Redbridge","http://opendatacommunities.org/doc/london-borough-council/redbridge","5BGFHOUSING","General Fund Housing","5CHOMELESS","Homelessness","REV","Revenue","R5630","HAC Temporary Accomodation","05-THIRD","Third Party Payments","05H","Private contractors","6900","Nightly Let Plus Charges","3710081","202307",02/10/2022 00:00:00,1200,"31230","Employment and Recruitment Agencies","REDACTED DATA","ACCESS UK LTD T/AS ADAM","2343760","http://opencorporates.com/companies/gb/2343760","GB 108 2213 56"
"London Borough of Redbridge","http://opendatacommunities.org/doc/london-borough-council/redbridge","5BGFHOUSING","General Fund Housing","5CHOMELESS","Homelessness","REV","Revenue","R5630","HAC Temporary Accomodation","05-THIRD","Third Party Payments","05H","Private contractors","6900","Nightly Let Plus Charges","3710081","202307",02/10/2022 00:00:00,855,"31230","Employment and Recruitment Agencies","REDACTED DATA","ACCESS UK LTD T/AS ADAM","2343760","http://opencorporates.com/companies/gb/2343760","GB 108 2213 56"
"London Borough of Redbridge","http://opendatacommunities.org/doc/london-borough-council/redbridge","5BGFHOUSING","General Fund Housing","5CHOMELESS","Homelessness","REV","Revenue","R5630","HAC Temporary Accomodation","05-THIRD","Third Party Payments","05H","Private contractors","6900","Nightly Let Plus Charges","3710081","202307",02/10/2022 00:00:00,0,"31230","Employment and Recruitment Agencies","REDACTED DATA","ACCESS UK LTD T/AS ADAM","2343760","http://opencorporates.com/companies/gb/2343760","GB 108 2213 56"
"London Borough of Redbridge","http://opendatacommunities.org/doc/london-borough-council/redbridge","5BGFHOUSING","General Fund Housing","5CHOMELESS","Homelessness","REV","Revenue","R5630","HAC Temporary Accomodation","05-THIRD","Third Party Payments","05H","Private contractors","6900","Nightly Let Plus Charges","3710081","202307",02/10/2022 00:00:00,1062.9,"31230","Employment and Recruitment Agencies","REDACTED DATA","ACCESS UK LTD T/AS ADAM","2343760","http://opencorporates.com/companies/gb/2343760","GB 108 2213 56"
"London Borough of Redbridge","http://opendatacommunities.org/doc/london-borough-council/redbridge","5BGFHOUSING","General Fund Housing","5CHOMELESS","Homelessness","REV","Revenue","R5630","HAC Temporary Accomodation","05-THIRD","Third Party Payments","05H","Private contractors","6900","Nightly Let Plus Charges","3710081","202307",02/10/2022 00:00:00,855,"31230","Employment and Recruitment Agencies","REDACTED DATA","ACCESS UK LTD T/AS ADAM","2343760","http://opencorporates.com/companies/gb/2343760","GB 108 2213 56"
"London Borough of Redbridge","http://opendatacommunities.org/doc/london-borough-council/redbridge","5BGFHOUSING","General Fund Housing","5CHOMELESS","Homelessness","REV","Revenue","R5630","HAC Temporary Accomodation","05-THIRD","Third Party Payments","05H","Private contractors","6900","Nightly Let Plus Charges","3710081","202307",02/10/2022 00:00:00,855,"31230","Employment and Recruitment Agencies","REDACTED DATA","ACCESS UK LTD T/AS ADAM","2343760","http://opencorporates.com/companies/gb/2343760","GB 108 2213 56"
"London Borough of Redbridge","http://opendatacommunities.org/doc/london-borough-council/redbridge","5BGFHOUSING","General Fund Housing","5CHOMELESS","Homelessness","REV","Revenue","R5630","HAC Temporary Accomodation","05-THIRD","Third Party Payments","05H","Private contractors","6900","Nightly Let Plus Charges","3710081","202307",02/10/2022 00:00:00,0,"31230","Employment and Recruitment Agencies","REDACTED DATA","ACCESS UK LTD T/AS ADAM","2343760","http://opencorporates.com/companies/gb/2343760","GB 108 2213 56"
"London Borough of Redbridge","http://opendatacommunities.org/doc/london-borough-council/redbridge","3BNONSCHFUND","Non-School Funding","6CCHILLOOKED","Children Looked After","REV","Revenue","R2238","Looked After Children Placements LA","03-TRANSPORT","Transport","03D","Public transport","5301","Children Services Transport Costs","3711010","202307",27/05/2022 00:00:00,30,"80170","Travel Agents and Holiday Companies","REDACTED DATA","CLICK TRAVEL LTD","3770815","http://opencorporates.com/companies/gb/3770815","799566639"
"London Borough of Redbridge","http://opendatacommunities.org/doc/london-borough-council/redbridge","3BNONSCHFUND","Non-School Funding","6CCHILLOOKED","Children Looked After","REV","Revenue","R2238","Looked After Children Placements LA","03-TRANSPORT","Transport","03D","Public transport","5301","Children Services Transport Costs","3711010","202307",03/05/2022 00:00:00,20.5,"80170","Travel Agents and Holiday Companies","REDACTED DATA","CLICK TRAVEL LTD","3770815","http://opencorporates.com/companies/gb/3770815","799566639"
"London Borough of Redbridge","http://opendatacommunities.org/doc/london-borough-council/redbridge","3BNONSCHFUND","Non-School Funding","6CCHILLOOKED","Children Looked After","REV","Revenue","R2238","Looked After Children Placements LA","03-TRANSPORT","Transport","03D","Public transport","5301","Children Services Transport Costs","3711010","202307",10/05/2022 00:00:00,11,"80170","Travel Agents and Holiday Companies","REDACTED DATA","CLICK TRAVEL LTD","3770815","http://opencorporates.com/companies/gb/3770815","799566639"
"London Borough of Redbridge","http://opendatacommunities.org/doc/london-borough-council/redbridge","3BNONSCHFUND","Non-School Funding","6CCHILLOOKED","Children Looked After","REV","Revenue","R2238","Looked After Children Placements LA","03-TRANSPORT","Transport","03D","Public transport","5301","Children Services Transport Costs","3711010","202307",26/05/2022 00:00:00,20.3,"80170","Travel Agents and Holiday Companies","REDACTED DATA","CLICK TRAVEL LTD","3770815","http://opencorporates.com/companies/gb/3770815","799566639"
"London Borough of Redbridge","http://opendatacommunities.org/doc/london-borough-council/redbridge","3BNONSCHFUND","Non-School Funding","6CCHILLOOKED","Children Looked After","REV","Revenue","R2238","Looked After Children Placements LA","03-TRANSPORT","Transport","03D","Public transport","5301","Children Services Transport Costs","3711010","202307",31/05/2022 00:00:00,5.95,"80170","Travel Agents and Holiday Companies","REDACTED DATA","CLICK TRAVEL LTD","3770815","http://opencorporates.com/companies/gb/3770815","799566639"
"London Borough of Redbridge","http://opendatacommunities.org/doc/london-borough-council/redbridge","3BNONSCHFUND","Non-School Funding","6CCHILLOOKED","Children Looked After","REV","Revenue","R2238","Looked After Children Placements LA","03-TRANSPORT","Transport","03D","Public transport","5301","Children Services Transport Costs","3711010","202307",31/05/2022 00:00:00,7.2,"80170","Travel Agents and Holiday Companies","REDACTED DATA","CLICK TRAVEL LTD","3770815","http://opencorporates.com/companies/gb/3770815","799566639"
"London Borough of Redbridge","http://opendatacommunities.org/doc/london-borough-council/redbridge","3BNONSCHFUND","Non-School Funding","6CCHILLOOKED","Children Looked After","REV","Revenue","R2238","Looked After Children Placements LA","03-TRANSPORT","Transport","03D","Public transport","5301","Children Services Transport Costs","3711010","202307",31/05/2022 00:00:00,14.4,"80170","Travel Agents and Holiday Companies","REDACTED DATA","CLICK TRAVEL LTD","3770815","http://opencorporates.com/companies/gb/3770815","799566639"
